Workbook

Sheet Visibility (hidden)
I2: Hide Based on Characteristic
B3: ComponentVisibility | C3: Hide Row(s) | E3: Hide Colum(s) | K3: IsPrograms
B4: SheetName | C4: StartRow | D4: EndRow | E4: StartCol | F4: EndCol | G4: Visible | H4: Description | I4: Force True | J4: Force False | K4: Program True
B5: Overview | C5: =ROW(Overview!A8) -> 8 | D5: =ROW(Overview!A10) -> 10 | G5: =OR(ComponentVisibility[[#This Row],[Force True]],AND(ComponentVisibility[[#This Row],[Program True]],NOT(ComponentVisibility[[#This Row],[Force False]]))) -> FALSE | I5: =IF(LEFT(vmPPA,3)="(1)",FALSE,IF(LEFT(vmPPA,4)="(2a)",FALSE,IF(LEFT(vmPPA,4)="(2b)",FALSE,IF(LEFT(vmPPA,4)="(2c)",TRUE,IF(LEFT(vmPPA,4)="(2d)",TRUE,IF(LEFT(vmPPA,4)="(2e)",TRUE,IF(LEFT(vmPPA,4)="(2f)",TRUE,IF(LEFT(vmPPA,4)="(2g)",TRUE)))))))) -> FALSE | K5: FALSE
B6: Development Info | G6: =OR(ComponentVisibility[[#This Row],[Force True]],AND(ComponentVisibility[[#This Row],[Program True]],NOT(ComponentVisibility[[#This Row],[Force False]]))) -> FALSE | H6: Visible Sheet if true | I6: =IF(LEFT(vmPPA,3)="(1)",TRUE,IF(LEFT(vmPPA,4)="(2a)",TRUE,IF(LEFT(vmPPA,4)="(2b)",TRUE,IF(LEFT(vmPPA,4)="(2c)",FALSE,IF(LEFT(vmPPA,4)="(2d)",FALSE,IF(LEFT(vmPPA,4)="(2e)",FALSE,IF(LEFT(vmPPA,4)="(2f)",FALSE,IF(LEFT(vmPPA,4)="(2g)",FALSE)))))))) -> FALSE | K6: FALSE
B7: Development Info | C7: =ROW('Development Info'!A53) -> 53 | D7: =ROW('Development Info'!A69) -> 69 | G7: =OR(ComponentVisibility[[#This Row],[Force True]],AND(ComponentVisibility[[#This Row],[Program True]],NOT(ComponentVisibility[[#This Row],[Force False]]))) -> FALSE | H7: Visible Rows if true | I7: =IF(LEFT(vmPPA,3)="(1)",TRUE,IF(LEFT(vmPPA,4)="(2a)",FALSE,IF(LEFT(vmPPA,4)="(2b)",FALSE))) -> FALSE | K7: FALSE
B8: Rental Development Team | G8: =OR(ComponentVisibility[[#This Row],[Force True]],AND(ComponentVisibility[[#This Row],[Program True]],NOT(ComponentVisibility[[#This Row],[Force False]]))) -> FALSE | H8: Visible Sheet if true | I8: =IF(LEFT(vmPPA,3)="(1)",TRUE,IF(LEFT(vmPPA,4)="(2a)",FALSE,IF(LEFT(vmPPA,4)="(2b)",TRUE,IF(LEFT(vmPPA,4)="(2c)",FALSE,IF(LEFT(vmPPA,4)="(2d)",FALSE,IF(LEFT(vmPPA,4)="(2e)",FALSE,IF(LEFT(vmPPA,4)="(2f)",FALSE,IF(LEFT(vmPPA,4)="(2g)",FALSE)))))))) -> FALSE | K8: FALSE
B9: Annual Operating Budget | G9: =OR(ComponentVisibility[[#This Row],[Force True]],AND(ComponentVisibility[[#This Row],[Program True]],NOT(ComponentVisibility[[#This Row],[Force False]]))) -> FALSE | H9: Visible Sheet if true | I9: =IF(LEFT(vmPPA,3)="(1)",FALSE,IF(LEFT(vmPPA,4)="(2a)",TRUE,IF(LEFT(vmPPA,4)="(2b)",FALSE,IF(LEFT(vmPPA,4)="(2c)",TRUE,IF(LEFT(vmPPA,4)="(2d)",TRUE,IF(LEFT(vmPPA,4)="(2e)",TRUE,IF(LEFT(vmPPA,4)="(2f)",TRUE,IF(LEFT(vmPPA,4)="(2g)",TRUE)))))))) -> FALSE | K9: FALSE
B10: Dev Budget - Navigation Center | G10: =OR(ComponentVisibility[[#This Row],[Force True]],AND(ComponentVisibility[[#This Row],[Program True]],NOT(ComponentVisibility[[#This Row],[Force False]]))) -> FALSE | H10: Visible Sheet if true | I10: =IF(LEFT(vmPPA,3)="(1)",FALSE,IF(LEFT(vmPPA,4)="(2a)",TRUE,IF(LEFT(vmPPA,4)="(2b)",FALSE,IF(LEFT(vmPPA,4)="(2c)",FALSE,IF(LEFT(vmPPA,4)="(2d)",FALSE,IF(LEFT(vmPPA,4)="(2e)",FALSE,IF(LEFT(vmPPA,4)="(2f)",FALSE,IF(LEFT(vmPPA,4)="(2g)",FALSE)))))))) -> FALSE | K10: FALSE
B11: Unit Mix | G11: =OR(ComponentVisibility[[#This Row],[Force True]],AND(ComponentVisibility[[#This Row],[Program True]],NOT(ComponentVisibility[[#This Row],[Force False]]))) -> FALSE | H11: Visible Sheet if true | I11: =IF(LEFT(vmPPA,3)="(1)",TRUE,IF(LEFT(vmPPA,4)="(2a)",FALSE,IF(LEFT(vmPPA,4)="(2b)",TRUE,IF(LEFT(vmPPA,4)="(2c)",FALSE,IF(LEFT(vmPPA,4)="(2d)",FALSE,IF(LEFT(vmPPA,4)="(2e)",FALSE,IF(LEFT(vmPPA,4)="(2f)",FALSE,IF(LEFT(vmPPA,4)="(2g)",FALSE)))))))) -> FALSE | K11: FALSE
B12: Dev Sources | G12: =OR(ComponentVisibility[[#This Row],[Force True]],AND(ComponentVisibility[[#This Row],[Program True]],NOT(ComponentVisibility[[#This Row],[Force False]]))) -> FALSE | H12: Visible Sheet if true | I12: =IF(LEFT(vmPPA,3)="(1)",TRUE,IF(LEFT(vmPPA,4)="(2a)",FALSE,IF(LEFT(vmPPA,4)="(2b)",TRUE,IF(LEFT(vmPPA,4)="(2c)",FALSE,IF(LEFT(vmPPA,4)="(2d)",FALSE,IF(LEFT(vmPPA,4)="(2e)",FALSE,IF(LEFT(vmPPA,4)="(2f)",FALSE,IF(LEFT(vmPPA,4)="(2g)",FALSE)))))))) -> FALSE | K12: FALSE
B13: Dev Budget | G13: =OR(ComponentVisibility[[#This Row],[Force True]],AND(ComponentVisibility[[#This Row],[Program True]],NOT(ComponentVisibility[[#This Row],[Force False]]))) -> FALSE | H13: Visible Sheet if true | I13: =IF(LEFT(vmPPA,3)="(1)",TRUE,IF(LEFT(vmPPA,4)="(2a)",FALSE,IF(LEFT(vmPPA,4)="(2b)",TRUE,IF(LEFT(vmPPA,4)="(2c)",FALSE,IF(LEFT(vmPPA,4)="(2d)",FALSE,IF(LEFT(vmPPA,4)="(2e)",FALSE,IF(LEFT(vmPPA,4)="(2f)",FALSE,IF(LEFT(vmPPA,4)="(2g)",FALSE)))))))) -> FALSE | K13: FALSE
B14: Supportive Services Costs | G14: =OR(ComponentVisibility[[#This Row],[Force True]],AND(ComponentVisibility[[#This Row],[Program True]],NOT(ComponentVisibility[[#This Row],[Force False]]))) -> FALSE | H14: Visible Sheet if true | I14: =IF(LEFT(vmPPA,3)="(1)",TRUE,IF(LEFT(vmPPA,4)="(2a)",FALSE,IF(LEFT(vmPPA,4)="(2b)",TRUE,IF(LEFT(vmPPA,4)="(2c)",FALSE,IF(LEFT(vmPPA,4)="(2d)",FALSE,IF(LEFT(vmPPA,4)="(2e)",FALSE,IF(LEFT(vmPPA,4)="(2f)",FALSE,IF(LEFT(vmPPA,4)="(2g)",FALSE)))))))) -> FALSE | K14: FALSE
B15: HCD Reserves Calculator | G15: =OR(ComponentVisibility[[#This Row],[Force True]],AND(ComponentVisibility[[#This Row],[Program True]],NOT(ComponentVisibility[[#This Row],[Force False]]))) -> FALSE | H15: Visible Sheet if true | I15: =IF(LEFT(vmPPA,3)="(1)",TRUE,IF(LEFT(vmPPA,4)="(2a)",FALSE,IF(LEFT(vmPPA,4)="(2b)",TRUE,IF(LEFT(vmPPA,4)="(2c)",FALSE,IF(LEFT(vmPPA,4)="(2d)",FALSE,IF(LEFT(vmPPA,4)="(2e)",FALSE,IF(LEFT(vmPPA,4)="(2f)",FALSE,IF(LEFT(vmPPA,4)="(2g)",FALSE)))))))) -> FALSE | K15: FALSE
B16: HCD Reserves Calculator | C16: =ROW('High-Cost Verification'!A34) -> 34 | D16: =ROW('High-Cost Verification'!A54) -> 54 | G16: =OR(ComponentVisibility[[#This Row],[Force True]],AND(ComponentVisibility[[#This Row],[Program True]],NOT(ComponentVisibility[[#This Row],[Force False]]))) -> FALSE | H16: Visible row(s) if true | I16: =vmTRPF="Yes" -> FALSE | K16: FALSE
B17: Operating | G17: =OR(ComponentVisibility[[#This Row],[Force True]],AND(ComponentVisibility[[#This Row],[Program True]],NOT(ComponentVisibility[[#This Row],[Force False]]))) -> FALSE | H17: Visible Sheet if true | I17: =IF(LEFT(vmPPA,3)="(1)",TRUE,IF(LEFT(vmPPA,4)="(2a)",FALSE,IF(LEFT(vmPPA,4)="(2b)",TRUE,IF(LEFT(vmPPA,4)="(2c)",FALSE,IF(LEFT(vmPPA,4)="(2d)",FALSE,IF(LEFT(vmPPA,4)="(2e)",FALSE,IF(LEFT(vmPPA,4)="(2f)",FALSE,IF(LEFT(vmPPA,4)="(2g)",FALSE)))))))) -> FALSE | K17: FALSE
B18: Cash Flow | G18: =OR(ComponentVisibility[[#This Row],[Force True]],AND(ComponentVisibility[[#This Row],[Program True]],NOT(ComponentVisibility[[#This Row],[Force False]]))) -> FALSE | H18: Visible Sheet if true | I18: =IF(LEFT(vmPPA,3)="(1)",TRUE,IF(LEFT(vmPPA,4)="(2a)",FALSE,IF(LEFT(vmPPA,4)="(2b)",TRUE,IF(LEFT(vmPPA,4)="(2c)",FALSE,IF(LEFT(vmPPA,4)="(2d)",FALSE,IF(LEFT(vmPPA,4)="(2e)",FALSE,IF(LEFT(vmPPA,4)="(2f)",FALSE,IF(LEFT(vmPPA,4)="(2g)",FALSE)))))))) -> FALSE | K18: FALSE
B19: High-Cost Verification | G19: =OR(ComponentVisibility[[#This Row],[Force True]],AND(ComponentVisibility[[#This Row],[Program True]],NOT(ComponentVisibility[[#This Row],[Force False]]))) -> FALSE | H19: Visible Sheet if true | I19: =IF(LEFT(vmPPA,3)="(1)",TRUE,IF(LEFT(vmPPA,4)="(2a)",FALSE,IF(LEFT(vmPPA,4)="(2b)",TRUE,IF(LEFT(vmPPA,4)="(2c)",FALSE,IF(LEFT(vmPPA,4)="(2d)",FALSE,IF(LEFT(vmPPA,4)="(2e)",FALSE,IF(LEFT(vmPPA,4)="(2f)",FALSE,IF(LEFT(vmPPA,4)="(2g)",FALSE)))))))) -> FALSE | K19: FALSE
B20: High-Cost Verification | C20: =ROW('High-Cost Verification'!A23) -> 23 | D20: =ROW('High-Cost Verification'!A40) -> 40 | G20: =OR(ComponentVisibility[[#This Row],[Force True]],AND(ComponentVisibility[[#This Row],[Program True]],NOT(ComponentVisibility[[#This Row],[Force False]]))) -> FALSE | H20: Visible Rows if true | I20: =vmHighE="Yes" -> FALSE | K20: FALSE
B21: Developer Fee | G21: =OR(ComponentVisibility[[#This Row],[Force True]],AND(ComponentVisibility[[#This Row],[Program True]],NOT(ComponentVisibility[[#This Row],[Force False]]))) -> FALSE | H21: Visible Sheet if true | I21: =IF(LEFT(vmPPA,3)="(1)",TRUE,IF(LEFT(vmPPA,4)="(2a)",FALSE,IF(LEFT(vmPPA,4)="(2b)",TRUE,IF(LEFT(vmPPA,4)="(2c)",FALSE,IF(LEFT(vmPPA,4)="(2d)",FALSE,IF(LEFT(vmPPA,4)="(2e)",FALSE,IF(LEFT(vmPPA,4)="(2f)",FALSE,IF(LEFT(vmPPA,4)="(2g)",FALSE)))))))) -> FALSE | K21: FALSE
B22: Developer Fee | C22: =ROW('Developer Fee'!A14) -> 14 | D22: =ROW('Developer Fee'!A61) -> 61 | G22: =OR(ComponentVisibility[[#This Row],[Force True]],AND(ComponentVisibility[[#This Row],[Program True]],NOT(ComponentVisibility[[#This Row],[Force False]]))) -> TRUE | H22: Visible row(s) if true | I22: =vmDF="" -> TRUE | K22: FALSE
B23: Developer Fee | C23: =ROW('Developer Fee'!A35) -> 35 | D23: =ROW('Developer Fee'!A61) -> 61 | G23: =OR(ComponentVisibility[[#This Row],[Force True]],AND(ComponentVisibility[[#This Row],[Program True]],NOT(ComponentVisibility[[#This Row],[Force False]]))) -> FALSE | H23: Visible row(s) if true | I23: =vmDF="No Tax Credits" -> FALSE | K23: FALSE
B24: Developer Fee | C24: =ROW('Developer Fee'!A14) -> 14 | D24: =ROW('Developer Fee'!A33) -> 33 | G24: =OR(ComponentVisibility[[#This Row],[Force True]],AND(ComponentVisibility[[#This Row],[Program True]],NOT(ComponentVisibility[[#This Row],[Force False]]))) -> FALSE | H24: Visible row(s) if true | I24: =OR(vmDF="4% Credits New Construction",vmDF="4% Credits Rehabilitation",vmDF="4% Credits Acq. Rehabilitation",vmDF="4% Credits Adaptive Reuse") -> FALSE | K24: FALSE
B25: Developer Fee | C25: =ROW('Developer Fee'!A14) -> 14 | D25: =ROW('Developer Fee'!A20) -> 20 | G25: =OR(ComponentVisibility[[#This Row],[Force True]],AND(ComponentVisibility[[#This Row],[Program True]],NOT(ComponentVisibility[[#This Row],[Force False]]))) -> FALSE | H25: Visible row(s) if true | I25: =IF(OR(vmDF="9% Credits New Construction",vmDF="9% Credits Rehabilitation",vmDF="9% Credits Acq. Rehabilitation",vmDF="9% Credits Adaptive Reuse"),TRUE,IF($I$197=TRUE,TRUE,FALSE)) -> FALSE | K25: FALSE
B26: Certifications & Legal Status | G26: =OR(ComponentVisibility[[#This Row],[Force True]],AND(ComponentVisibility[[#This Row],[Program True]],NOT(ComponentVisibility[[#This Row],[Force False]]))) -> FALSE | H26: Visible Sheet if true | I26: =IF(LEFT(vmPPA,3)="(1)",TRUE,IF(LEFT(vmPPA,4)="(2a)",TRUE,IF(LEFT(vmPPA,4)="(2b)",TRUE,IF(LEFT(vmPPA,4)="(2c)",FALSE,IF(LEFT(vmPPA,4)="(2d)",FALSE,IF(LEFT(vmPPA,4)="(2e)",FALSE,IF(LEFT(vmPPA,4)="(2f)",FALSE,IF(LEFT(vmPPA,4)="(2g)",FALSE)))))))) -> FALSE | K26: FALSE
B27: Env & Land Use | G27: =OR(ComponentVisibility[[#This Row],[Force True]],AND(ComponentVisibility[[#This Row],[Program True]],NOT(ComponentVisibility[[#This Row],[Force False]]))) -> FALSE | H27: Visible Sheet if true | I27: =IF(LEFT(vmPPA,3)="(1)",TRUE,IF(LEFT(vmPPA,4)="(2a)",TRUE,IF(LEFT(vmPPA,4)="(2b)",TRUE,IF(LEFT(vmPPA,4)="(2c)",FALSE,IF(LEFT(vmPPA,4)="(2d)",FALSE,IF(LEFT(vmPPA,4)="(2e)",FALSE,IF(LEFT(vmPPA,4)="(2f)",FALSE,IF(LEFT(vmPPA,4)="(2g)",FALSE)))))))) -> FALSE | K27: FALSE
B28: Sponsor Org Docs | G28: =OR(ComponentVisibility[[#This Row],[Force True]],AND(ComponentVisibility[[#This Row],[Program True]],NOT(ComponentVisibility[[#This Row],[Force False]]))) -> FALSE | H28: Visible Sheet if true | I28: =OR(vmPPA=Overview!$AN$5,vmPPA=Overview!$AN$6,vmPPA=Overview!$AN$7,vmPPA=Overview!$AN$8,vmPPA=Overview!$AN$9,vmPPA=Overview!$AN$10,vmPPA=Overview!$AN$11,vmPPA=Overview!$AN$12) -> FALSE | K28: FALSE
B29: Selection Criteria - Scoring | G29: =OR(ComponentVisibility[[#This Row],[Force True]],AND(ComponentVisibility[[#This Row],[Program True]],NOT(ComponentVisibility[[#This Row],[Force False]]))) -> FALSE | H29: Visible Sheet if true | I29: =OR(vmPPA=Overview!$AN$5,vmPPA=Overview!$AN$6,vmPPA=Overview!$AN$7,vmPPA=Overview!$AN$8,vmPPA=Overview!$AN$9,vmPPA=Overview!$AN$10,vmPPA=Overview!$AN$11,vmPPA=Overview!$AN$12) -> FALSE | K29: FALSE
B30: Application Support | G30: =OR(ComponentVisibility[[#This Row],[Force True]],AND(ComponentVisibility[[#This Row],[Program True]],NOT(ComponentVisibility[[#This Row],[Force False]]))) -> FALSE | H30: Visible Sheet if true | I30: =OR(vmPPA=Overview!$AN$5,vmPPA=Overview!$AN$6,vmPPA=Overview!$AN$7,vmPPA=Overview!$AN$8,vmPPA=Overview!$AN$9,vmPPA=Overview!$AN$10,vmPPA=Overview!$AN$11,vmPPA=Overview!$AN$12) -> FALSE | K30: FALSE
B31: Legislative Contacts | G31: =OR(ComponentVisibility[[#This Row],[Force True]],AND(ComponentVisibility[[#This Row],[Program True]],NOT(ComponentVisibility[[#This Row],[Force False]]))) -> FALSE | H31: Visible Sheet if true | I31: =OR(vmPPA=Overview!$AN$5,vmPPA=Overview!$AN$6,vmPPA=Overview!$AN$7,vmPPA=Overview!$AN$8,vmPPA=Overview!$AN$9,vmPPA=Overview!$AN$10,vmPPA=Overview!$AN$11,vmPPA=Overview!$AN$12) -> FALSE | K31: FALSE

Sheet PLHA Coverpage
B3: Permanent Local Housing Allocation (PLHA) Program
B5: Notice of Funding Availability (NOFA) March 06, 2024
B7: Non-Entitlement Local Government Competitive Application
B24: State of California
B25: Gavin Newsom, Governor
B27: Business, Consumer Services and Housing Agency
B28: Tomiquia Moss, Secretary
B29: https://www.bcsh.ca.gov/
B31: Department of Housing and Community Development
B32: Gustavo Velasquez, Director
B33: 2020 West El Camino Avenue, Suite 200, Sacramento, CA 95833
B34: Telephone: (916) 263-2771
B35: PLHA Program Email: CPLHA@hcd.ca.gov
B36: https://www.hcd.ca.gov/grants-and-funding/programs-active/permanent-local-housing-allocation
B38: Application Technical Support email:
B39: cplha@hcd.ca.gov
B42: End of Document

Sheet Instructions
B2: Instructions
B4: When opening this file, a yellow banner at the top may appear with a button that says, "Enable Editing", and/or "Enable Macros". It is essential that you click this box(es) so that the macros are enabled. Enabling macros is necessary for full workbook/application functionality. WARNING: Partial functionality of this application/workbook WILL BE LOST when using Apple Mac Computers. The Department highly recommends using PC Computers and Microsoft Office 2013 or newer to complete the application.
E5: Microsoft has recently added blocking of macros by default, if this happens when you open the application, please follow the instructions in the Word document added as an icon to the right (double-click to open).
B8: Application materials must be submitted electronically via HCD portal system. Requirements for uploading the Application Workbook and required supporting
B9: documentation, including naming conventions, are described in the application instructions available at | Y9: https://www.hcd.ca.gov/grants-and-funding/programs-active/permanent-local-housing-allocation
B10: Permanent Local Housing Allocation Program 2023 Non-Entitlement Local Government Competitive applications will be accepted as set forth in the NOFA.
B11: Application must be on the Department’s forms and cannot be altered or modified by the Sponsor/Applicant. Excel Application must be in Excel format, not a PDF document.
B12: If the Sponsor/Applicant discover any errors within application, use the Application Support tab and email the entire workbook to | AE12: plha@hcd.ca.gov
B13: It is recommended that Applicant(s) start from left to right and top to bottom for a better understanding and functionality of this application.
B14: Additional instructions and guidance are given throughout the Application in "red" text and in cell comments. Cell Notes/Comments are very important to read as some of these will provide directions for completing your application.
B15: "Yellow" cells | F15: are for Applicant input. It is very important that you answer ALL yellow cells, failure to provide all information may disqualify your application from consideration or may negatively impact your point score.
B16: "Orange" cells | F16: are required attachments. Failure to provide the required attachments and documentation may disqualify your application from consideration or may negatively impact your point score. Electronically attached files must use the naming convention in the Application.
B17: "Blue" cells | F17: are self-score points awarded in the "Scoring" worksheet. These are automated calculations based on the inputs provided by the Sponsor/Applicant.
B18: "Red" cells | F18: indicate the Applicant(s) has failed to meet a requirement of the program, threshold, scoring, upload, or certification.
B19: Disclosure of Application: Information provided in the application will become a public record available for review by the public, pursuant to the California Public Records Act (Government Code Sections 6250-6276.48). As such, any materials provided are subject to disclosure to any person making a request under this Act. The Department cautions Applicants to use discretion in providing information not specifically requested, including but not limited to, bank account numbers, social security numbers, personal phone numbers, and home addresses. By providing this information to the Department, the Applicant is waiving any claim of confidentiality and consents to the disclosure of submitted material upon request.
B21: End of Document

Sheet Overview
B2: Overview
B3: Proposed Activity §401; Funding Limits/Request NOFA
B4: (a) Select below the proposed Activity you are applying for. Note: you may only apply for one Project or one Program Activity and the eligible Activity must take place within the jurisdiction of the Applicant.
AN5: (1) Development of a new or substantial rehabilitation of a multifamily rental housing project that is Affordable to households at or below 60% of AMI, but which is not currently restricted as Affordable housing
B6: Fully describe the proposed Activity above. If your proposed program Activity is assistance to persons who are experiencing homelessness or At-risk of homelessness (2d), describe all subactivities. | AN6: (2a) Development of a navigation center
AN7: (2b) New construction, rehabilitation, or preservation of permanent or transitional rental housing
B8: File Name: | E8: Activity Schedule | M8: Submit a timeline and schedule for the proposed activity | AG8: Uploaded to HCD? | AN8: (2c) Operating costs for navigation centers
B9: File Name: | E9: Activity Plan | M9: Submit a detailed plan discussing the proposed activity | AG9: Uploaded to HCD? | AN9: (2d) Rapid rehousing
B10: File Name: | E10: Activity Guidelines | M10: Submit guidelines for determining amount of funds to be provided | AG10: Uploaded to HCD? | AN10: (2e) Rental assistance
B11: Funding limit | F11: =IF(B5="","",IF(OR(B5=AN5,B5=AN6,B5=AN7),5000000,1000000)) ->  | I11: Funds requested including admin expenses (min. $500,000) | Z11: Admin limit 5% | AD11: =IF(B5="","",(MIN(F11,W11)*0.05)) ->  | AG11: Admin requested | AN11: (2f) Supportive and case management services
B12: Have you applied, do you plan to apply, or have you been awarded other HCD program funds for the proposed Activity? | AN12: (2g) Street outreach
B13: Other HCD Program(s) Name(s): | P13: Funding Amount | U13: Funding Status | AC13: NOFA Date | AF13: Award Date/Expected Award Date
B17: Applicant §400
B18: (a) Eligible Applicants for this non-entitlement competitive allocation described in §100(b)(3) are limited to non-entitlement local governments. For development of Rental Housing Projects, Sponsor(s) must be co-Applicant(s). If there are two co-Applicants (two General Partners) both must complete and submit co-applicant information and documentation.
B20: Applicant Name | AC20: Organization Type: | AH20: Local Government
B21: Address | S21: City | AA21: County | AG21: State | AJ21: Zip
B22: Auth Rep: Name | N22: Title | U22: Email | AF22: Phone
B23: Contact: Name | N23: Title | U23: Email | AF23: Phone
B24: File Name: | E24: App Cert & Legal | M24: Reference 'Certifications & Legal Status' worksheet. Only complete Certification part. | AG24: Uploaded to HCD?
B25: File Name | E25: App TIN Form | M25: Taxpayer Identification Number (TIN) on the PLHA webpage. | AG25: Uploaded to HCD?
B26: Co-Applicant 1 Name | AE26: Organization Type:
B27: Address | S27: City | AA27: County | AG27: State | AJ27: Zip
B28: Auth Rep: Name | N28: Title | U28: Email | AF28: Phone
B29: Contact: Name | N29: Title | U29: Email | AF29: Phone
B30: File Name: | E30: Co-App1 Cert & Legal | M30: Reference 'Certifications & Legal Status' worksheet. | AG30: Uploaded to HCD?
B31: File Name: | E31: Co-App1 OrgDoc1, OrgDoc2, etc… | M31: Reference Sponsor Org Docs worksheet | AG31: Uploaded to HCD?
B32: File Name: | E32: Co-App1 OrgChart | M32: Sponsor Organization Chart | AG32: Uploaded to HCD?
B33: File Name: | E33: Co-App1 Signature Block | M33: Signature Block - upload in Microsoft Word document. | AG33: Uploaded to HCD?
B34: File Name | E34: Co-App1 Payee Data Record | M34: Payee Data Record STD-204 on th PLHA webpage. | AG34: Uploaded to HCD?
B35: File Name: | E35: Co-App1 Cert of Good Standing | M35: Must be dated 30 days or less from the application due date. | AG35: Uploaded to HCD?
B36: File Name: | E36: Co-App1 Tax-Exempt Status | M36: Evidence of tax-exempt status from IRS and from FTB for Corporations. | AG36: Uploaded to HCD?
B37: Co-Applicant 2 Name | AE37: Organization Type:
B38: Address | S38: City | AA38: County | AG38: State | AJ38: Zip
B39: Auth Rep: Name | N39: Title | U39: Email | AF39: Phone
B40: Contact: Name | N40: Title | U40: Email | AF40: Phone
B41: File Name: | E41: Co-App2 Cert & Legal | M41: Reference 'Certifications & Legal Status' worksheet. | AG41: Uploaded to HCD?
B42: File Name: | E42: Co-App2 OrgDoc1, OrgDoc2, etc… | M42: Reference Sponsor Org Docs worksheet | AG42: Uploaded to HCD?
B43: File Name: | E43: Co-App2 OrgChart | M43: Sponsor Organization Chart | AG43: Uploaded to HCD?
B44: File Name: | E44: Co-App2 Signature Block | M44: Signature Block - upload in Microsoft Word document. | AG44: Uploaded to HCD?
B45: File Name | E45: Co-App2 Payee Data Record | M45: Payee Data Record STD-204 on the PLHA webpage. | AG45: Uploaded to HCD?
B46: File Name: | E46: Co-App2 Cert of Good Standing | M46: Must be dated 30 days or less from the application due date. | AG46: Uploaded to HCD?
B47: File Name: | E47: Co-App2 Tax-Exempt Status | M47: Evidence of tax-exempt status from IRS and from FTB for Corporations. | AG47: Uploaded to HCD?
B48: Threshold Requirements §402
B49: (a) Does the Applicant have a Housing Element that has been adopted by the jurisdiction’s governing body by the application due date and subsequently determined to be in substantial compliance with state Housing Element Law pursuant to GC §65585. Current Housing Element compliance status can be obtained by referencing the Department’s website at https://www.hcd.ca.gov/housing-elements-hcd
B50: (b) Has the Applicant submitted to HCD the Annual Progress Report (APR) required by GC §65400 for the current or prior year by the application due date?
B51: (c)(2) and (3) Submission of an application by the Applicant and one or more co-Applicants must be authorized by resolutions of the governing boards of both the Applicant and all co-Applicants. Applicants may use their own resolution format as long as it contains ALL of the authorizations as in the sample. The person attesting to the resolution signing cannot be the same person authorized to execute the documents in the name of the Applicant. If more than one authorized signatory is identified, state whether both signatories are required or only one signatory is required to submit and execute Program docs. If the application is being signed by a designee of the authorized signatory, the Applicant must also submit a designee letter or other proof of signing authority.
B52: File Name | E52: App Reso | M52: Copy of the local government Resolution - sample on the PLHA webpage. | AG52: Uploaded to HCD?
B53: File Name | E53: Co-App1 Reso | M53: Copy of the Resolution - sample on the PLHA webpage. | AG53: Uploaded to HCD?
B54: File Name | E54: Co-App2 Reso | M54: Copy of the Resolution - sample on the PLHA webpage. | AG54: Uploaded to HCD?
B56: End of Document

Sheet Development Info (hidden)
B2: Multifamily Rental Housing (MF) or Navigation Center (NC)
B3: Development Name | W3: Type | AE3: County | AN3: =IF(Y3="Substantial Rehabilitation",TRUE,FALSE) -> FALSE
B4: If the Development is known under another name(s) or was formerly known under another name(s), provide the name(s).
B5: Address | Y5: City | AH5: Zip
B6: Census Tract #1 | I6: APN #1 | O6: Census Tract #2 | V6: APN #2 | AB6: Census Tract 3 | AH6: APN #3
B7: =IF(Overview!B5=Overview!AN6,"Number of persons who will have overnight shelter","Number of units in the Development:") -> Number of units in the Development: | P7: MF only: Number of rental units in the Development that will be restricted to 60% of AMI or less:
B8: Projected Construction Start Date: | N8: Projected Construction Completion Date: | AC8: Projected Perm Close Date:
B9: Rehabilitation Projects only (rows 10-13)
B10: MF Substantial Rehabilitation projects only: | L10: Total rehabilitation costs (must complete Dev Budget worksheet): | AC10: ='Dev Budget'!S31 -> 0 | AF10: Rehab cost per unit: | AK10: =IFERROR(AC10/N7,0) -> 0
B11: Rehabilitation projects only: Provide a description of the current condition of the structure(s) and a general description of the overall scope of work. Include a discussion of any proposed modification to the unit configurations, unit mix, need for seismic retrofit, or modifications in use (e.g., commercial/tourist hotel to SRO or studio apartments). All projects must submit a Physical Needs Assessment (PNA) or Capital Needs Assessment (CNA) by a qualified independent third party contractor, which supports the proposed scope of work. Both the contractor and the PNA are subject to HCD approval. Include in the CNA upload, the current rent roll and tenant income and household size information, submit by unit.
B12: File Name: | E12: Rehab Description | M12: Narrative of current condition of structure(s) and description of overall scope of work. Include a discussion of any proposed modification to unit configurations, unit mix, need for seismic retrofit, or modifications in use (e.g., commercial/tourist hotel to SRO). | AG12: Uploaded to HCD?
B13: File Name: | E13: CNA | M13: PNA or CNA by qualified independent third party contractor. | AG13: Uploaded to HCD?
B14: Explain any specific development issues (demolition, relocation, environmental, historical, topography, etc.) at the Development site.
B16: File Name: | E16: EFC1; EFC2; EFC3; etc. | M16: Provide Enforceable Funding Commitments for development funding sources. | AG16: Uploaded to HCD?
B17: MF only: Does market study demonstrate financial feasibility? - Must submit a market study that meets the requirements specified in TCAC Regs §10322(h)(10)
B18: File Name: | E18: Market Study | M18: MF only: Completed market study prepared or updated within one year prior to the application due date. | AG18: Uploaded to HCD?
B19: (c)(4) Site Control: Does Sponsor have Site Control of the Development? If yes, enter form of site control and most recent execution date below.
B20: Form of site control: | AA20: Most recent document execution date:
B21: If leasehold estate, answer the following: | J21: Is rent based on restricted land value? | S21: Is acquisition cost $0 in Development Budget? | AC21: Prepaid lease loan used? If Yes, answer (a-c) below
B22: (a) Funding amount based on the Present Value of lease payments? | S22: (b) Lender requesting Res. Receipts (not permissible) | AC22: (c) Has loan amount been entered as a finance cost?
B23: Purchase price of the site(s): | M23: Appraised value: | U23: MF only: has Applicant completed any other units in this subdivision?
B24: Describe any special circumstances regarding site control:
B26: File Name: | E26: Site Control | M26: Provide appropriate documentation to demonstrate the form of site control indicated above. | AG26: Uploaded to HCD?
B27: File Name: | E27: Prelim | M27: Provide the Preliminary Title Report to verify the accuracy of the site control document. | AG27: Uploaded to HCD?
B28: File Name: | E28: Appraisal | M28: If available, provide a current appraisal of the site(s). If land and/or acquisition costs are shown on the Dev Budget, provide an appraisal report dated within 24 months prior to the application due date. | AG28: Uploaded to HCD?
B29: File Name: | E29: Site Map | M29: Provide a site map of proposed site. | AG29: Uploaded to HCD?
B30: (c)(4) Status of all discretionary local land use approvals: Provide a listing and status of all discretionary local land use approvals, excluding design review, required to complete the Development that have been granted, submitted or to be applied for to the appropriate local agencies, or consistent with local planning documents. This information must match the information provided on the Verification of the Status of Environmental Review and Land Use Entitlements worksheet.
B31: Agency / Issuer | N31: Land Use Approval Date | R31: Approval Type | AA31: Type and Comments
AA32: Site Plan Review
AA33: Conditional Use Permits
AA34: Zoning Approval
B38: (c)(4) Environmental: is the Development free from adverse environmental conditions that are economically infeasible to remove and cannot be mitigated?
B39: Attach all available Phase I and Phase II Environmental Site Assessments (ESA) prepared or updated within 12 months prior to the application due date. Include any follow-up analysis, (e.g., asbestos or lead-based paint analysis), or information on mitigation completed. It is NOT necessary to include a copy of the Database Records Search section of the ESA.
B40: File Name | E40: Env Report 1 | AG40: Uploaded to HCD?
B41: File Name | E41: Env Report 2 | AG41: Uploaded to HCD?
B42: File Name | E42: Env Report 3 | AG42: Uploaded to HCD?
B43: File Name | E43: Env Report 4 | AG43: Uploaded to HCD?
B44: File Name | E44: Env Report 5 | AG44: Uploaded to HCD?
B45: Soils/engineering/geotechnical: has a site report been prepared?
B46: File Name: | E46: Soils-Engineering-Geo | M46: Attach the Soils, Engineering, or Geotechnical report. | AG46: Uploaded to HCD?
B47: File Name: | E47: Rehab Env Reports | M47: Attach the lead-based paint, mold, and asbestos reports related to rehab | AG47: Uploaded to HCD?
B48: (c)(4) and NOFA II(D)(1)(d)(4) Are at least 40% of the permanent funds committed for the Development Project (must complete "Dev Sources' worksheet)?
B49: Americans with Disabilities Act
B50: Sponsor certifies Development will comply with Americans with Disabilities Act and its implementing regulations.
B51: Violence Against Women Act
B52: Sponsor certifies Development will comply with Violence Against Women Act.
B53: Davis-Bacon Wage & State Prevailing Wage Requirements
B54: Sponsor certifies the Development will comply with Davis-Bacon wage requirements and State prevailing wage law, as set forth in Labor Code Section 1720 et seq., which requires the payment of prevailing wages unless the Development meets one of the exceptions of Labor Code 1720(c) as determined by the Department of Industrial Relations (DIR). Sponsors are urged to seek professional advice as to how to comply with State prevailing wage law.
B55: If your Development requires demolition of existing residential units, are the number of bedrooms in the proposed Development at least equal to the total number of bedrooms in the demolished structures per UMR §8303(b)? Explain below how this requirement is satisfied including how many bedrooms in the units to be demolished and how many replacement units.
B57: Tenant Selection UMR §8305
B58: Sponsor certifies the Development will comply with the requirements of UMR §8305 as applicable.
B59: Fair Housing Act
B60: Does Development propose to restrict occupancy based on gender or age? If yes, include in legal opinion how Development satisfies fair housing laws (include supporting materials). Attach a specific legal opinion labeled "Fair Housing" with supporting materials describing how the Development complies with fair housing laws. For senior Developments, attach evidence that units are lawfully restricted to senior households in compliance with state and federal fair housing laws.
B61: File Name: | E61: Fair Housing | M61: Legal opinion with supporting materials describing how Development complies. | AG61: Uploaded to HCD?
B62: Pet Friendly Housing Act
B63: Sponsor certifies that residents of the housing development will be authorized to own or otherwise maintain one or more common household pets pursuant to the Pet Friendly Housing Act of 2017 (California Health & Safety Code, Section 50466)
B64: Tax Credits (TC)
B65: Type (Select One) | I65: Federal | M65: Proposed Equity Investor Contribution ($) | AA65: Anticipated TC Factor | AI65: App. Rate
I66: State | M66: Proposed Equity Investor Contribution ($) | AA66: Anticipated TC Factor | AI66: App. Rate
B67: Timeframe for Applying for tax credits | K67: Proposed Month | S67: Proposed Year | Y67: If already awarded, enter TCAC Reservation date:
B68: Projected TCAC/CDLAC Application Date (if applicable)
B69: File Name: | E69: Tax Credit Reservation | M69: If Development has received a tax credit reservation, attach documentation. | AG69: Uploaded to HCD?
B71: End of Document

Sheet Legislative Contacts (hidden)
B2: Legislative and Congressional Information
B3: Provide the Legislative and Congressional information for the applicant and each activity location, (if different than applicant location).
B4: To locate or verify the Legislative and Congressional information, click on the respective links below and enter the applicant office location zip code, the activity location site zip code(s) (i.e. zip code(s) where activities are performed), and any additional activity location site(s), as applicable.
B5: California State Assembly | N5: California State Senate | AA5: U.S. House of Representatives
B6: Applicant Office Location
J7: District # | R7: First Name | AA7: Last Name
B8: State Assembly Member
B9: State Senate Member
B10: US House of Representatives
B11: Activity Location 1 (if different from applicant location)
J12: District # | R12: First Name | AA12: Last Name
B13: State Assembly Member
B14: State Senate Member
B15: US House of Representatives
B16: Activity Location 2 (if different from applicant location)
J17: District # | R17: First Name | AA17: Last Name
B18: State Assembly Member
B19: State Senate Member
B20: US House of Representatives
B21: Activity Location 3 (if different from applicant location)
J22: District # | R22: First Name | AA22: Last Name
B23: State Assembly Member
B24: State Senate Member
B25: US House of Representatives
B26: Activity Location 4 (if different from applicant location)
J27: District # | R27: First Name | AA27: Last Name
B28: State Assembly Member
B29: State Senate Member
B30: US House of Representatives
B31: Activity Location 5 (if different from applicant location)
J32: District # | R32: First Name | AA32: Last Name
B33: State Assembly Member
B34: State Senate Member
B35: US House of Representatives
B37: End of Document

Sheet Rental Development Team (hidden)
B2: Rental Development Team
B3: Owner/Borrower Entity
B4: Legal Name | AB4: Organization Type
B5: Address | W5: City | AD5: State | AI5: Zip
B6: Auth Rep Name | O6: Title | V6: Email | AH6: Phone
B7: Contact Name | O7: Title | V7: Email | AH7: Phone
B8: Address | W8: City | AD8: State | AI8: Zip
B9: File Name | E9: Bwr Applicant Reso | M9: Copy of the local government Resolution - sample on the PLHA webpage. | AG9: Uploaded to HCD?
B10: File Name: | E10: Bwr Cert & Legal | M10: Reference 'Certifications & Legal Status' Worksheet. | AG10: Uploaded to HCD?
B11: File Name: | E11: Bwr OrgDoc1, OrgDoc2, etc… | M11: Reference Sponsor Org Docs worksheet | AG11: Uploaded to HCD?
B12: File Name: | E12: Bwr OrgChart | M12: Sponsor Organization Chart | AG12: Uploaded to HCD?
B13: File Name: | E13: Bwr Signature Block | M13: Signature Block - upload in Microsoft Word Document. | AG13: Uploaded to HCD?
B14: File Name | E14: Bwr Payee Data Record | M14: Payee Data Record STD-204 on the PLHA webpage. | AG14: Uploaded to HCD?
B15: File Name: | E15: Bwr Cert of Good Standing | M15: Must be dated 30 days or less from the application due date. | AG15: Uploaded to HCD?
B16: File Name: | E16: Bwr Tax-Exempt Status | M16: Evidence of tax-exempt status from IRS and from FTB for Corporations. | AG16: Uploaded to HCD?
B17: Managing General Partner
B18: Legal Name | AB18: Organization Type
B19: Address | W19: City | AD19: State | AI19: Zip
B20: Auth Rep Name | O20: Title | V20: Email | AH20: Phone
B21: Contact Name | O21: Title | V21: Email | AH21: Phone
B22: Address | W22: City | AD22: State | AI22: Zip
B23: File Name | E23: MGP Applicant Reso | M23: Copy of the local government Resolution - sample on the PLHA webpage. | AG23: Uploaded to HCD?
B24: File Name: | E24: MGP Cert & Legal | M24: Reference 'Certifications & Legal Status' Worksheet. | AG24: Uploaded to HCD?
B25: File Name: | E25: MGP OrgDoc1, OrgDoc2, etc… | M25: Reference Sponsor Org Docs worksheet | AG25: Uploaded to HCD?
B26: File Name: | E26: MGP OrgChart | M26: Sponsor Organization Chart | AG26: Uploaded to HCD?
B27: File Name: | E27: MGP Signature Block | M27: Signature Block - upload in Microsoft Word Document. | AG27: Uploaded to HCD?
B28: File Name | E28: MGP Payee Data Record | M28: Payee Data Record STD-204 on the PLHA webpage. | AG28: Uploaded to HCD?
B29: File Name: | E29: MGP Cert of Good Standing | M29: Must be dated 30 days or less from the application due date. | AG29: Uploaded to HCD?
B30: File Name: | E30: MGP Tax-Exempt Status | M30: Evidence of tax-exempt status from IRS and from FTB for Corporations. | AG30: Uploaded to HCD?
B31: Administrative General Partner #1
B32: Legal Name | AB32: Organization Type
B33: Address | W33: City | AD33: State | AI33: Zip
B34: Auth Rep Name | O34: Title | V34: Email | AH34: Phone
B35: Contact Name | O35: Title | V35: Email | AH35: Phone
B36: Address | W36: City | AD36: State | AI36: Zip
B37: File Name | E37: AGP Applicant Reso | M37: Copy of the local government Resolution - sample on the PLHA webpage. | AG37: Uploaded to HCD?
B38: File Name: | E38: AGP Cert & Legal | M38: Reference 'Certifications & Legal Status' Worksheet. | AG38: Uploaded to HCD?
B39: File Name: | E39: AGP OrgDoc1, OrgDoc2, etc… | M39: Reference Sponsor Org Docs worksheet | AG39: Uploaded to HCD?
B40: File Name: | E40: AGP OrgChart | M40: Sponsor Organization Chart | AG40: Uploaded to HCD?
B41: File Name: | E41: AGP Signature Block | M41: Signature Block - upload in Microsoft Word Document. | AG41: Uploaded to HCD?
B42: File Name | E42: AGP Payee Data Record | M42: Payee Data Record STD-204 on the PLHA webpage. | AG42: Uploaded to HCD?
B43: File Name: | E43: AGP Cert of Good Standing | M43: Must be dated 30 days or less from the application due date. | AG43: Uploaded to HCD?
B44: File Name: | E44: AGP Tax-Exempt Status | M44: Evidence of tax-exempt status from IRS and from FTB for Corporations. | AG44: Uploaded to HCD?
B45: Property Management Agent
B46: Legal Name | Q46: Contact Name | AC46: Email
B47: Phone | I47: Address | W47: City | AE47: State | AI47: Zip
B48: Financial Consultant
B49: Legal Name | Q49: Contact Name | AC49: Email
B50: Phone | I50: Address | W50: City | AE50: State | AI50: Zip
B51: Lead (primary) Service Provider
B52: Legal Name | Q52: Contact Name | AC52: Email
B53: Phone | I53: Address | W53: City | AE53: State | AI53: Zip
B54: Borrower Legal Counsel
B55: Legal Name | Q55: Contact Name | AC55: Email
B56: Phone | I56: Address | W56: City | AE56: State | AI56: Zip
B57: General Contractor
B58: Legal Name | Q58: Contact Name | AC58: Email
B59: Phone | I59: Address | W59: City | AE59: State | AI59: Zip
B60: Architect
B61: Legal Name | Q61: Contact Name | AC61: Email
B62: Phone | I62: Address | W62: City | AE62: State | AI62: Zip
B63: Development Funding Source
B64: Legal Name | Q64: Contact Name | AC64: Email
B65: Phone | I65: Address | W65: City | AE65: State | AI65: Zip
B66: Development Funding Source
B67: Legal Name | Q67: Contact Name | AC67: Email
B68: Phone | I68: Address | W68: City | AE68: State | AI68: Zip
B69: Development Funding Source
B70: Legal Name | Q70: Contact Name | AC70: Email
B71: Phone | I71: Address | W71: City | AE71: State | AI71: Zip
B72: Development Funding Source
B73: Legal Name | Q73: Contact Name | AC73: Email
B74: Phone | I74: Address | W74: City | AE74: State | AI74: Zip
B75: Rent/Operating Subsidy Source
B76: Legal Name | Q76: Contact Name | AC76: Email
B77: Phone | I77: Address | W77: City | AE77: State | AI77: Zip
B78: Rent/Operating Subsidy Source
B79: Legal Name | Q79: Contact Name | AC79: Email
B80: Phone | I80: Address | W80: City | AE80: State | AI80: Zip
B82: End of Document

Sheet Annual Operating Budget (hidden)
B2: Annual Operating Budget - Rapid Rehousing, Rental Assistance, Street Outreach Supportive Services and Navigation Centers
B4: Revenue | P4: Amount | T4: Comments
B5: Grants
B6: Grant (specify) | P6: 0
B7: Grant (specify) | P7: 0
B8: Grant (specify) | P8: 0
B9: Grant (specify) | P9: 0
B10: Grant (specify) | P10: 0
B11: Grant (specify) | P11: 0
B12: Total Grants | P12: =SUM(P6:S11) -> 0
B13: Other Revenue
B14: Other (specify) | P14: 0
B15: Other (specify) | P15: 0
B16: Other (specify) | P16: 0
B17: Total Other Revenue | P17: =SUM(P14:S16) -> 0
B18: Total Revenue | P18: =P13+P17 -> 0
B19: Operating Expenses | P19: Amount | T19: Comments
B20: Personnel
B21: Salary & Wages | P21: 0
B22: Employee Benefits including insurance | P22: 0
B23: Payroll Taxes | P23: 0
B24: Other (specify) | P24: 0
B25: Other (specify) | P25: 0
B26: Total Personnel Expenses | P26: =SUM(P21:S25) -> 0
B27: Supplies
B28: Supplies (Office) | P28: 0
B29: Supplies (Program) | P29: 0
B30: Books | P30: 0
B31: Other (specify) | P31: 0
B32: Other (specify) | P32: 0
B33: Total Supplies Expenses | P33: =SUM(P28:S32) -> 0
B34: Services and Other
B35: Office Equipment Repair and Maintenance | P35: 0
B36: Office Rent / Mortgage Payment | P36: 0
B37: Property and Liability Insurance | P37: 0
B38: Legal Expense | P38: 0
B39: Professional Fees (Consultants) | P39: 0
B40: Bookkeeping Fees/Accounting Services | P40: 0
B41: Travel (Staff/Local) | P41: 0
B42: Telephone | P42: 0
B43: Internet | P43: 0
B44: Postage | P44: 0
B45: Utilities | P45: 0
B46: Real Estate Taxes | P46: 0
B47: Other Taxes and Permits | P47: 0
B48: Security | P48: 0
B49: Building Repairs and Maintenance | P49: 0
B50: Other (specify) | P50: 0
B51: Other (specify) | P51: 0
B52: Other (specify) | P52: 0
B53: Total Services and Other Expenses | P53: =SUM(P35:S52) -> 0
B54: Navigation Centers only (rows 54-56)
B55: Food | P55: 0
B56: Required Reserves (explain in comments) | P56: 0
B57: Debt Service (explain in comments) | P57: 0
B58: Total Navigation Center Expenses | P58: =SUM(P55:S57) -> 0
B59: Total Operating Expenses | P59: =P26+P33+P53+P58 -> 0
B60: Excess/(Deficit) | P60: =P18-P59 -> 0
B62: End of Document

Sheet Dev Budget - Navigation Center (hidden)
B2: Development Budget | C2: Navigation Center Sources of Funds
B3: Uses of Funds | C3: PLHA | J3: Total Sources
B4: LAND COST/ACQUISITION
B5: Land Cost or Value | J5: =SUM(C5:H5) -> 0
B6: Demolition | J6: =SUM(C6:H6) -> 0
B7: Legal | J7: =SUM(C7:H7) -> 0
B8: Land Lease Rent Prepayment | J8: =SUM(C8:H8) -> 0
B9: Total Land Cost or Value | C9: =SUM(C5:C8) -> 0 | D9: 0 | E9: 0 | F9: 0 | G9: 0 | H9: 0 | I9: =SUM(I5:I8) -> 0 | J9: =SUM(J5:J8) -> 0
B10: Existing Improvements Cost or Value | J10: =SUM(C10:H10) -> 0
B11: Off-Site Improvements | J11: =SUM(C11:H11) -> 0
B12: Total Acquisition Cost | C12: =SUM(C10:C11) -> 0 | D12: 0 | E12: 0 | F12: 0 | G12: 0 | H12: 0 | I12: =SUM(I10:I11) -> 0 | J12: 0
B13: Total Land Cost / Acquisition Cost | C13: =SUM(C9+C12) -> 0 | D13: 0 | E13: 0 | F13: 0 | G13: 0 | H13: 0 | I13: =SUM(I9+I12) -> 0 | J13: 0
B14: Predevelopment Interest/Holding Cost | J14: =SUM(C14:H14) -> 0
B15: Assumed, Accrued Interest on Existing Debt (Rehab/Acq) | J15: =SUM(C15:H15) -> 0
B16: Excess Purchase Price Over Appraisal | J16: =SUM(C16:H16) -> 0
B17: Relocation Expenses | J17: =SUM(C17:H17) -> 0
B18: =IF('Development Info'!Y3<>"Navigation Center Rehab","NEW CONSTRUCTION","REHABILITATION") -> NEW CONSTRUCTION
B19: Site Work | J19: =SUM(C19:H19) -> 0
B20: Structures | J20: 0
B21: General Requirements | J21: 0
B22: Contractor Overhead | J22: 0
B23: Contractor Profit | J23: 0
B24: Prevailing Wages | J24: 0
B25: General Liability Insurance | J25: 0
B26: Other: (Specify) | J26: 0
B27: Other: (Specify) | J27: 0
B28: Other: (Specify) | J28: 0
B29: Other: (Specify) | J29: 0
B30: Other: (Specify) | J30: 0
B31: Other: (Specify) | J31: 0
B32: =IF('Development Info'!Y3<>"Navigation Center Rehab","Total New Construction Costs","Total Rehabilitation Costs") -> Total New Construction Costs | C32: =SUM(C19:C31) -> 0 | D32: =SUM(D19:D31) -> 0 | E32: 0 | F32: 0 | G32: 0 | H32: 0 | I32: =SUM(I19:I31) -> 0 | J32: 0
B33: ARCHITECTURAL FEES
B34: Design | J34: =SUM(C34:H34) -> 0
B35: Supervision | J35: =SUM(C35:H35) -> 0
B36: Total Architectural Costs | C36: =SUM(C33:C35) -> 0 | D36: 0 | E36: 0 | F36: 0 | G36: 0 | H36: 0 | I36: 0 | J36: 0
B37: SURVEY & ENGINEERING
B38: Total Survey & Engineering | J38: =SUM(C38:H38) -> 0
B39: CONSTRUCTION INTEREST & FEES
B40: Construction Loan Interest | J40: =SUM(C40:H40) -> 0
B41: Origination Fee | J41: 0
B42: Credit Enhancement/Application Fee | J42: 0
B43: Bond Premium | J43: 0
B44: Cost of Issuance | J44: 0
B45: Title & Recording | J45: 0
B46: Taxes | J46: 0
B47: Insurance | J47: 0
B48: Other: (Specify) | J48: 0
B49: Other: (Specify) | J49: 0
B50: Other: (Specify) | J50: 0
B51: Total Construction Interest & Fees | C51: =SUM(C40:C50) -> 0 | D51: =SUM(D40:D50) -> 0 | E51: 0 | F51: 0 | G51: 0 | H51: 0 | I51: =SUM(I40:I50) -> 0 | J51: 0
B52: PERMANENT FINANCING
B53: Loan Origination Fee | J53: =SUM(C53:H53) -> 0
B54: Credit Enhancement/Application Fee | J54: 0
B55: Title & Recording | J55: 0
B56: Taxes | J56: 0
B57: Insurance | J57: 0
B58: Other: (Specify) | J58: 0
B59: Other: (Specify) | J59: 0
B60: Total Permanent Financing Costs | C60: =SUM(C53:C59) -> 0 | D60: 0 | E60: 0 | F60: 0 | G60: 0 | H60: 0 | I60: 0 | J60: 0
B61: Subtotals Forward | C61: =SUM(C9+C12+C14+C15+C16+C17+C32+C36+C38+C51+C60) -> 0 | D61: 0 | E61: 0 | F61: 0 | G61: 0 | H61: 0 | I61: 0 | J61: 0
B62: LEGAL FEES
B63: Legal Paid by Applicant | J63: =SUM(C63:H63) -> 0
B64: Other: (Specify) | J64: =SUM(C64:H64) -> 0
B65: Other: (Specify) | J65: =SUM(C65:H65) -> 0
B66: Total Attorney Costs | C66: =SUM(C62:C65) -> 0 | D66: =SUM(D62:D65) -> 0 | E66: 0 | F66: 0 | G66: 0 | H66: 0 | I66: =SUM(I62:I65) -> 0 | J66: 0
B67: RESERVES
B68: Operating Reserve | J68: =SUM(C68:H68) -> 0
B69: Replacement Reserve | J69: =SUM(C69:H69) -> 0
B70: Other: (Specify) | J70: =SUM(C70:H70) -> 0
B71: Other: (Specify) | J71: =SUM(C71:H71) -> 0
B72: Other: (Specify) | J72: =SUM(C72:H72) -> 0
B73: Total Reserve Costs | C73: =SUM(C68:C72) -> 0 | D73: 0 | E73: 0 | F73: 0 | G73: 0 | H73: 0 | I73: 0 | J73: 0
B74: CONTINGENCY COSTS
B75: Construction Hard Cost Contingency | J75: =SUM(C75:H75) -> 0
B76: Soft Cost Contingency | J76: =SUM(C76:H76) -> 0
B77: Total Contingency Costs | C77: =SUM(C75:C76) -> 0 | D77: 0 | E77: 0 | F77: 0 | G77: 0 | H77: 0 | I77: =SUM(I75:I76) -> 0 | J77: 0
B78: OTHER PROJECT COSTS
B79: TCAC App/Allocation/Monitoring Fees | J79: =SUM(C79:H79) -> 0
B80: Environmental Audit | J80: 0
B81: Local Development Impact Fees | J81: 0
B82: Permit Processing Fees | J82: 0
B83: Capital Fees | J83: 0
B84: Marketing | J84: 0
B85: Furnishings | J85: 0
B86: Market Study | J86: 0
B87: Accounting/Reimbursable | J87: 0
B88: Appraisal Costs | J88: 0
B89: Other: (Specify) | J89: 0
B90: Other: (Specify) | J90: 0
B91: Other: (Specify) | J91: 0
B92: Other: (Specify) | J92: 0
B93: Other: (Specify) | J93: 0
B94: Other: (Specify) | J94: 0
B95: Total Other Costs | C95: =SUM(C79:C94) -> 0 | D95: =SUM(D79:D94) -> 0 | E95: 0 | F95: 0 | G95: 0 | H95: 0 | I95: =SUM(I79:I94) -> 0 | J95: 0
B96: SUBTOTAL PROJECT COST | C96: =SUM(C61+C66+C73+C77+C95) -> 0 | D96: 0 | E96: 0 | F96: 0 | G96: 0 | H96: 0 | I96: 0 | J96: 0
B97: DEVELOPER COSTS
B98: Developer Overhead/Profit | J98: =SUM(C98:H98) -> 0
B99: Consultant/Processing Agent | J99: 0
B100: Project Administration | J100: 0
B101: Broker Fees Paid to a Related Party | J101: 0
B102: Construction Oversight by Developer | J102: 0
B103: Other: (Specify) | J103: 0
B104: Total Developer Costs | C104: =SUM(C98:C103) -> 0 | D104: 0 | E104: 0 | F104: 0 | G104: 0 | H104: 0 | I104: =SUM(I98:I103) -> 0 | J104: 0
B105: TOTAL PROJECT COST | C105: =SUM(C96+C104) -> 0 | D105: 0 | E105: 0 | F105: 0 | G105: 0 | H105: 0 | I105: =SUM(I96+I104) -> 0 | J105: 0
B107: End of Document

Sheet Unit Mix (hidden)
B2: Rental Development Unit Mix | AL2: Subsidy Program Name (Specify) | AQ2: Subsidy Program Name (Specify)
B3: # of Bedrms | D3: % of Area Median Income | I3: Total Units | K3: PLHA Assisted Units (60% AMI or less) | N3: Total Restricted Units | Q3: Total Unrestricted Units | T3: Manager Units | V3: Special Needs Units | X3: Support Housing Units | Z3: Restricted Monthly Rent | AC3: Unrestricted Monthly Rent | AF3: Proposed Monthly Rent | AI3: 1Monthly Utility Allowance | AL3: Monthly Rent Subsidy Amount | AO3: Subsidy Units | AQ3: Monthly Rent Subsidy Amount | AT3: Subsidy Units | AV3: # of Baths | AX3: Square Feet | AZ3: Building Type | BE3: Total Net Monthly Restricted Rent | BF3: Total Net Monthly Proposed Rent | BG3: Total Monthly Unrestricted Rent | BH3: =AL2 -> Subsidy Program Name (Specify) | BI3: =AQ2 -> Subsidy Program Name (Specify)
N4: =IF(OR(D4="",D4="none"),0,I4) -> 0 | Q4: =IF(OR(D4="",D4="none"),I4,0) -> 0 | Z4: =IFERROR(INDEX('Rent Limits'!$A$1:$O$1045,MATCH(BJ4,'Rent Limits'!$A$1:$A$1045,0),MATCH(B4,'Rent Limits'!$A$1:$O$1,0)),0) -> 0 | BE4: =(Z4-AI4)*N4 -> 0 | BF4: =(AF4-AI4)*N4 -> 0 | BG4: =Q4*AC4 -> 0 | BH4: =AL4*AO4 -> 0 | BI4: =AQ4*AT4 -> 0 | BJ4: =CONCATENATE('Development Info'!$AG$3,'Unit Mix'!D4) -> 
N5: =IF(OR(D5="",D5="none"),0,I5) -> 0 | Q5: 0 | Z5: =IFERROR(INDEX('Rent Limits'!$A$1:$O$1045,MATCH(BJ5,'Rent Limits'!$A$1:$A$1045,0),MATCH(B5,'Rent Limits'!$A$1:$O$1,0)),0) -> 0 | BE5: 0 | BF5: 0 | BG5: 0 | BH5: =AL5*AO5 -> 0 | BI5: =AQ5*AT5 -> 0 | BJ5: =CONCATENATE('Development Info'!$AG$3,'Unit Mix'!D5) -> 
N6: =IF(OR(D6="",D6="none"),0,I6) -> 0 | Q6: 0 | Z6: =IFERROR(INDEX('Rent Limits'!$A$1:$O$1045,MATCH(BJ6,'Rent Limits'!$A$1:$A$1045,0),MATCH(B6,'Rent Limits'!$A$1:$O$1,0)),0) -> 0 | BE6: 0 | BF6: 0 | BG6: 0 | BH6: 0 | BI6: 0 | BJ6: =CONCATENATE('Development Info'!$AG$3,'Unit Mix'!D6) -> 
N7: =IF(OR(D7="",D7="none"),0,I7) -> 0 | Q7: 0 | Z7: =IFERROR(INDEX('Rent Limits'!$A$1:$O$1045,MATCH(BJ7,'Rent Limits'!$A$1:$A$1045,0),MATCH(B7,'Rent Limits'!$A$1:$O$1,0)),0) -> 0 | BE7: 0 | BF7: 0 | BG7: 0 | BH7: 0 | BI7: 0 | BJ7: =CONCATENATE('Development Info'!$AG$3,'Unit Mix'!D7) -> 
N8: =IF(OR(D8="",D8="none"),0,I8) -> 0 | Q8: 0 | Z8: =IFERROR(INDEX('Rent Limits'!$A$1:$O$1045,MATCH(BJ8,'Rent Limits'!$A$1:$A$1045,0),MATCH(B8,'Rent Limits'!$A$1:$O$1,0)),0) -> 0 | BE8: 0 | BF8: 0 | BG8: 0 | BH8: 0 | BI8: 0 | BJ8: =CONCATENATE('Development Info'!$AG$3,'Unit Mix'!D8) -> 
N9: =IF(OR(D9="",D9="none"),0,I9) -> 0 | Q9: 0 | Z9: =IFERROR(INDEX('Rent Limits'!$A$1:$O$1045,MATCH(BJ9,'Rent Limits'!$A$1:$A$1045,0),MATCH(B9,'Rent Limits'!$A$1:$O$1,0)),0) -> 0 | BE9: 0 | BF9: 0 | BG9: 0 | BH9: 0 | BI9: 0 | BJ9: =CONCATENATE('Development Info'!$AG$3,'Unit Mix'!D9) -> 
N10: 0 | Q10: 0 | Z10: =IFERROR(INDEX('Rent Limits'!$A$1:$O$1045,MATCH(BJ10,'Rent Limits'!$A$1:$A$1045,0),MATCH(B10,'Rent Limits'!$A$1:$O$1,0)),0) -> 0 | BE10: 0 | BF10: 0 | BG10: 0 | BH10: 0 | BI10: 0 | BJ10: =CONCATENATE('Development Info'!$AG$3,'Unit Mix'!D10) -> 
N11: 0 | Q11: 0 | Z11: =IFERROR(INDEX('Rent Limits'!$A$1:$O$1045,MATCH(BJ11,'Rent Limits'!$A$1:$A$1045,0),MATCH(B11,'Rent Limits'!$A$1:$O$1,0)),0) -> 0 | BE11: 0 | BF11: 0 | BG11: 0 | BH11: 0 | BI11: 0 | BJ11: =CONCATENATE('Development Info'!$AG$3,'Unit Mix'!D11) -> 
N12: 0 | Q12: 0 | Z12: =IFERROR(INDEX('Rent Limits'!$A$1:$O$1045,MATCH(BJ12,'Rent Limits'!$A$1:$A$1045,0),MATCH(B12,'Rent Limits'!$A$1:$O$1,0)),0) -> 0 | BE12: 0 | BF12: 0 | BG12: 0 | BH12: 0 | BI12: 0 | BJ12: =CONCATENATE('Development Info'!$AG$3,'Unit Mix'!D12) -> 
N13: 0 | Q13: 0 | Z13: =IFERROR(INDEX('Rent Limits'!$A$1:$O$1045,MATCH(BJ13,'Rent Limits'!$A$1:$A$1045,0),MATCH(B13,'Rent Limits'!$A$1:$O$1,0)),0) -> 0 | BE13: 0 | BF13: 0 | BG13: 0 | BH13: 0 | BI13: 0 | BJ13: =CONCATENATE('Development Info'!$AG$3,'Unit Mix'!D13) -> 
N14: 0 | Q14: 0 | Z14: =IFERROR(INDEX('Rent Limits'!$A$1:$O$1045,MATCH(BJ14,'Rent Limits'!$A$1:$A$1045,0),MATCH(B14,'Rent Limits'!$A$1:$O$1,0)),0) -> 0 | BE14: 0 | BF14: 0 | BG14: 0 | BH14: 0 | BI14: 0 | BJ14: =CONCATENATE('Development Info'!$AG$3,'Unit Mix'!D14) -> 
N15: 0 | Q15: 0 | Z15: =IFERROR(INDEX('Rent Limits'!$A$1:$O$1045,MATCH(BJ15,'Rent Limits'!$A$1:$A$1045,0),MATCH(B15,'Rent Limits'!$A$1:$O$1,0)),0) -> 0 | BE15: 0 | BF15: 0 | BG15: 0 | BH15: 0 | BI15: 0 | BJ15: =CONCATENATE('Development Info'!$AG$3,'Unit Mix'!D15) -> 
N16: 0 | Q16: 0 | Z16: =IFERROR(INDEX('Rent Limits'!$A$1:$O$1045,MATCH(BJ16,'Rent Limits'!$A$1:$A$1045,0),MATCH(B16,'Rent Limits'!$A$1:$O$1,0)),0) -> 0 | BE16: 0 | BF16: 0 | BG16: 0 | BH16: 0 | BI16: 0 | BJ16: =CONCATENATE('Development Info'!$AG$3,'Unit Mix'!D16) -> 
N17: 0 | Q17: 0 | Z17: =IFERROR(INDEX('Rent Limits'!$A$1:$O$1045,MATCH(BJ17,'Rent Limits'!$A$1:$A$1045,0),MATCH(B17,'Rent Limits'!$A$1:$O$1,0)),0) -> 0 | BE17: 0 | BF17: 0 | BG17: 0 | BH17: 0 | BI17: 0 | BJ17: =CONCATENATE('Development Info'!$AG$3,'Unit Mix'!D17) -> 
N18: 0 | Q18: 0 | Z18: =IFERROR(INDEX('Rent Limits'!$A$1:$O$1045,MATCH(BJ18,'Rent Limits'!$A$1:$A$1045,0),MATCH(B18,'Rent Limits'!$A$1:$O$1,0)),0) -> 0 | BE18: 0 | BF18: 0 | BG18: 0 | BH18: 0 | BI18: 0 | BJ18: =CONCATENATE('Development Info'!$AG$3,'Unit Mix'!D18) -> 
N19: 0 | Q19: 0 | Z19: =IFERROR(INDEX('Rent Limits'!$A$1:$O$1045,MATCH(BJ19,'Rent Limits'!$A$1:$A$1045,0),MATCH(B19,'Rent Limits'!$A$1:$O$1,0)),0) -> 0 | BE19: 0 | BF19: 0 | BG19: 0 | BH19: 0 | BI19: 0 | BJ19: =CONCATENATE('Development Info'!$AG$3,'Unit Mix'!D19) -> 
N20: 0 | Q20: 0 | Z20: =IFERROR(INDEX('Rent Limits'!$A$1:$O$1045,MATCH(BJ20,'Rent Limits'!$A$1:$A$1045,0),MATCH(B20,'Rent Limits'!$A$1:$O$1,0)),0) -> 0 | BE20: 0 | BF20: 0 | BG20: 0 | BH20: 0 | BI20: 0 | BJ20: =CONCATENATE('Development Info'!$AG$3,'Unit Mix'!D20) -> 
N21: 0 | Q21: 0 | Z21: =IFERROR(INDEX('Rent Limits'!$A$1:$O$1045,MATCH(BJ21,'Rent Limits'!$A$1:$A$1045,0),MATCH(B21,'Rent Limits'!$A$1:$O$1,0)),0) -> 0 | BE21: 0 | BF21: 0 | BG21: 0 | BH21: 0 | BI21: 0 | BJ21: =CONCATENATE('Development Info'!$AG$3,'Unit Mix'!D21) -> 
N22: 0 | Q22: 0 | Z22: =IFERROR(INDEX('Rent Limits'!$A$1:$O$1045,MATCH(BJ22,'Rent Limits'!$A$1:$A$1045,0),MATCH(B22,'Rent Limits'!$A$1:$O$1,0)),0) -> 0 | BE22: 0 | BF22: 0 | BG22: 0 | BH22: 0 | BI22: 0 | BJ22: =CONCATENATE('Development Info'!$AG$3,'Unit Mix'!D22) -> 
N23: 0 | Q23: 0 | Z23: =IFERROR(INDEX('Rent Limits'!$A$1:$O$1045,MATCH(BJ23,'Rent Limits'!$A$1:$A$1045,0),MATCH(B23,'Rent Limits'!$A$1:$O$1,0)),0) -> 0 | BE23: 0 | BF23: 0 | BG23: 0 | BH23: 0 | BI23: 0 | BJ23: =CONCATENATE('Development Info'!$AG$3,'Unit Mix'!D23) -> 
N24: 0 | Q24: 0 | Z24: =IFERROR(INDEX('Rent Limits'!$A$1:$O$1045,MATCH(BJ24,'Rent Limits'!$A$1:$A$1045,0),MATCH(B24,'Rent Limits'!$A$1:$O$1,0)),0) -> 0 | BE24: 0 | BF24: 0 | BG24: 0 | BH24: 0 | BI24: 0 | BJ24: =CONCATENATE('Development Info'!$AG$3,'Unit Mix'!D24) -> 
N25: 0 | Q25: 0 | Z25: =IFERROR(INDEX('Rent Limits'!$A$1:$O$1045,MATCH(BJ25,'Rent Limits'!$A$1:$A$1045,0),MATCH(B25,'Rent Limits'!$A$1:$O$1,0)),0) -> 0 | BE25: 0 | BF25: 0 | BG25: 0 | BH25: 0 | BI25: 0 | BJ25: =CONCATENATE('Development Info'!$AG$3,'Unit Mix'!D25) -> 
N26: 0 | Q26: 0 | Z26: =IFERROR(INDEX('Rent Limits'!$A$1:$O$1045,MATCH(BJ26,'Rent Limits'!$A$1:$A$1045,0),MATCH(B26,'Rent Limits'!$A$1:$O$1,0)),0) -> 0 | BE26: 0 | BF26: 0 | BG26: 0 | BH26: 0 | BI26: 0 | BJ26: =CONCATENATE('Development Info'!$AG$3,'Unit Mix'!D26) -> 
N27: 0 | Q27: 0 | Z27: =IFERROR(INDEX('Rent Limits'!$A$1:$O$1045,MATCH(BJ27,'Rent Limits'!$A$1:$A$1045,0),MATCH(B27,'Rent Limits'!$A$1:$O$1,0)),0) -> 0 | BE27: 0 | BF27: 0 | BG27: 0 | BH27: 0 | BI27: 0 | BJ27: =CONCATENATE('Development Info'!$AG$3,'Unit Mix'!D27) -> 
N28: 0 | Q28: 0 | Z28: =IFERROR(INDEX('Rent Limits'!$A$1:$O$1045,MATCH(BJ28,'Rent Limits'!$A$1:$A$1045,0),MATCH(B28,'Rent Limits'!$A$1:$O$1,0)),0) -> 0 | BE28: 0 | BF28: 0 | BG28: 0 | BH28: 0 | BI28: 0 | BJ28: =CONCATENATE('Development Info'!$AG$3,'Unit Mix'!D28) -> 
N29: 0 | Q29: 0 | Z29: =IFERROR(INDEX('Rent Limits'!$A$1:$O$1045,MATCH(BJ29,'Rent Limits'!$A$1:$A$1045,0),MATCH(B29,'Rent Limits'!$A$1:$O$1,0)),0) -> 0 | BE29: 0 | BF29: 0 | BG29: 0 | BH29: 0 | BI29: 0 | BJ29: =CONCATENATE('Development Info'!$AG$3,'Unit Mix'!D29) -> 
I30: =SUM(I4:J29) -> 0 | K30: =SUM(K4:M29) -> 0 | N30: =SUM(N4:P29) -> 0 | Q30: =SUM(Q4:S29) -> 0 | T30: =SUM(T4:U29) -> 0 | V30: =SUM(V4:W29) -> 0 | X30: =SUM(X4:Y29) -> 0 | Z30: =SUM(Z4:AB29) -> 0 | AC30: =SUM(AC4:AE29) -> 0 | AF30: =SUM(AF4:AH29) -> 0 | AO30: =SUM(AO4:AP29) -> 0 | AT30: =SUM(AT4:AU29) -> 0 | BE30: =SUM(BE4:BE29) -> 0 | BF30: =SUM(BF4:BF29) -> 0 | BG30: =SUM(BG4:BG29) -> 0 | BH30: =SUM(BH4:BH29) -> 0 | BI30: =SUM(BI4:BI29) -> 0
B31: File: | E31: Utility Allowance | I31: 1Provide document showing current utility allowance chart, with relevant components circled. | AI31: Uploaded to HCD? | AO31: =12*BE30 -> 0 | AR31: Annual Net Restricted Rent
AO32: =12*BF30 -> 0 | AR32: Annual Net Proposed Rent
AO33: =12*BG30 -> 0 | AR33: Annual Unrestricted Rent
B35: End of Document

Sheet Dev Sources (hidden)
B2: Sources of Funds
B3: Construction Period Sources of Funds
B4: Funding Committed by Application Due Date? | D4: Source Name (listed in order of lien priority) | G4: Source Type | H4: Local Support | I4: Lien No. | J4: Residential Amount | K4: Commercial Amount | L4: Total Amount | M4: Interest Rate | N4: Required Payment | O4: Loan Term (months) | P4: *Details of Deferred Costs
P5: Amount | Q5: Description
B6: 1 | C6: Yes | D6: HCD PLHA Funds | G6: State-HCD | H6: No | L6: =J6+K6 -> 0
B7: 2 | L7: =J7+K7 -> 0
B8: 3 | L8: 0
B9: 4 | L9: 0
B10: 5 | L10: 0
B11: 6 | L11: 0
B12: 7 | L12: 0
B13: 8 | L13: 0
B14: 9 | L14: 0
B15: 10 | L15: 0
B16: 11 | L16: 0
B17: 12 | L17: 0
B18: 13 | L18: 0
B19: 14 | L19: 0
B20: 15 | L20: 0
B21: 16 | L21: 0
B22: 17 | L22: 0
B23: 18 | L23: 0
B24: 19 | L24: 0
B25: 20 | D25: Deferred costs (detail at right) | J25: =P27 -> 0 | L25: 0
B26: 21 | D26: Equity Investor | L26: 0
D27: =SUMPRODUCT(($C$6:$C$26="Yes")*($L$6:$L$26)) -> 0 | E27: <Total funds committed | G27: =IF($L$27=0,0,$D$27/($L$27-$J$25)) -> 0 | H27: <% Funds committed | J27: =SUM(J6:J26) -> 0 | K27: =SUM(K6:K25) -> 0 | L27: =SUM(L6:L26) -> 0 | P27: =SUM(P6:P25) -> 0
B28: Permanent Sources of Funds
B29: Funding Committed by Application Due Date? | D29: Source Name (listed in order of lien priority) | G29: Source Type | H29: Local Support | I29: Lien No. | J29: Residential Amount | K29: Commercial Amount | L29: Total Amount | M29: Interest Rate | O29: Repayment Terms | Q29: Required Residential Debt Service | R29: Required Commercial Debt Service
M30: Type | N30: Rate | O30: Type | P30: Due in (yrs)
B31: 1 | C31: Yes | D31: HCD PHLA Funds | G31: State-HCD | H31: No | L31: =J31+K31 -> 0
B32: 2 | L32: =J32+K32 -> 0
B33: 3 | L33: 0
B34: 4 | L34: 0
B35: 5 | L35: 0
B36: 6 | L36: 0
B37: 7 | L37: 0
B38: 8 | L38: 0
B39: 9 | L39: 0
B40: 10 | L40: 0
B41: 12 | L41: 0
B42: 12 | L42: 0
B43: 13 | L43: 0
B44: 14 | D44: Private mortgage financing | L44: 0
B45: 15 | D45: Deferred costs | L45: 0
B46: 16 | D46: Equity Investor | L46: 0 | M46: Project Tax Credit Type:
G47: Totals | J47: =SUM(J31:J46) -> 0 | K47: =SUM(K31:K46) -> 0 | L47: =SUM(L31:L46) -> 0 | M47: Totals | Q47: =SUM(Q31:Q45) -> 0 | R47: =SUM(R31:R46) -> 0
D48: =SUMPRODUCT(($C$31:$C$46="Yes")*($L$31:$L$46)) -> 0 | E48: <Total funds committed | G48: =IF($L$47=0,0,$D$48/$L$47) -> 0 | H48: <% Funds committed
B49: File: | C49: Perm EFC #1, #2, etc | E49: Commitment letter or other evidence documenting permanent financing commitments (see Guidelines for explanation of funding commitments) | P49: Uploaded to HCD?
B50: Applicant comments: Include a description of ballon payments and unusual or extraordinary circumstances that have resulted in higher than expected project costs and provide a justification as to why these costs are reasonable.
B53: End of Document

Sheet Dev Budget (hidden)
B2: Residential Permanent Sources/Uses of Funds | T2: Commercial Sources | X2: Tax Credit Basis
B3: USES OF FUNDS | C3: ='Dev Sources'!$D$31 -> HCD PHLA Funds | D3: ='Dev Sources'!$D$32 -> 0 | E3: ='Dev Sources'!$D$33 -> 0 | F3: ='Dev Sources'!$D$34 -> 0 | G3: ='Dev Sources'!$D$35 -> 0 | H3: ='Dev Sources'!$D$36 -> 0 | I3: ='Dev Sources'!$D$37 -> 0 | J3: ='Dev Sources'!$D$38 -> 0 | K3: ='Dev Sources'!$D$39 -> 0 | L3: ='Dev Sources'!$D$40 -> 0 | M3: ='Dev Sources'!$D$41 -> 0 | N3: ='Dev Sources'!$D$42 -> 0 | O3: ='Dev Sources'!$D$43 -> 0 | P3: ='Dev Sources'!$D$44 -> Private mortgage financing | Q3: ='Dev Sources'!$D$45 -> Deferred costs | R3: ='Dev Sources'!$D$46 -> Equity Investor | S3: Total Residential Sources | T3: Total Commercial Sources | U3: Source Name: | V3: Source Name: | W3: Total Project Costs | X3: =IF(Taxcredit="","30% PVC for New Const/Rehab",IF(Taxcredit=0.09,"70% PVC for New Const/Rehab",IF(Taxcredit=0.04,"30% PVC for New Const/Rehab","N/A - No tax credits per Dev Sources"))) -> 30% PVC for New Const/Rehab | Y3: =IF(Taxcredit="","30% PVC for Acquisition",IF(Taxcredit=0.09,"30% PVC for Acquisition",IF(Taxcredit=0.04,"30% PVC for Acquisition","N/A - No tax credits per Dev Sources"))) -> 30% PVC for Acquisition
B5: Project Development Costs
B6: LAND COST/ACQUISITION
B7: Land Cost or Value | S7: =SUM(C7:R7) -> 0 | T7: =U7+V7 -> 0 | W7: =SUM(S7,T7) -> 0
B8: Demolition | S8: =SUM(C8:R8) -> 0 | T8: =U8+V8 -> 0 | W8: =SUM(S8,T8) -> 0
B9: Legal | S9: =SUM(C9:R9) -> 0 | T9: 0 | W9: 0
B10: Land Lease Rent Prepayment | S10: =SUM(C10:R10) -> 0 | T10: 0 | W10: 0
B11: Total Land Cost or Value | C11: =SUM(C7:C10) -> 0 | D11: 0 | E11: 0 | F11: 0 | G11: 0 | H11: 0 | I11: 0 | J11: 0 | K11: 0 | L11: 0 | M11: 0 | N11: 0 | O11: 0 | P11: 0 | Q11: 0 | R11: 0 | S11: 0 | T11: 0 | U11: =SUM(U7:U10) -> 0 | V11: 0 | W11: 0
B12: Existing Improvements Cost or Value | S12: =SUM(C12:R12) -> 0 | T12: 0 | W12: 0
B13: Off-Site Improvements | S13: =SUM(C13:R13) -> 0 | T13: 0 | W13: 0
B14: Total Acquisition Cost | C14: =SUM(C12:C13) -> 0 | D14: 0 | E14: 0 | F14: 0 | G14: 0 | H14: 0 | I14: 0 | J14: 0 | K14: 0 | L14: 0 | M14: 0 | N14: 0 | O14: 0 | P14: 0 | Q14: 0 | R14: 0 | S14: =SUM(S12:S13) -> 0 | T14: =U14+V14 -> 0 | U14: =SUM(U12:U13) -> 0 | V14: 0 | W14: =SUM(W12:W13) -> 0 | Y14: =SUM(Y12:Y13) -> 0
B15: Total Land Cost / Acquisition Cost | C15: =SUM(C11+C14) -> 0 | D15: =SUM(D11+D14) -> 0 | E15: 0 | F15: 0 | G15: 0 | H15: 0 | I15: 0 | J15: 0 | K15: 0 | L15: 0 | M15: 0 | N15: 0 | O15: 0 | P15: 0 | Q15: 0 | R15: 0 | S15: 0 | T15: 0 | U15: =SUM(U11+U14) -> 0 | V15: 0 | W15: =SUM(W11+W14) -> 0
B16: Predevelopment Interest/Holding Cost | S16: =SUM(C16:R16) -> 0 | T16: 0 | W16: =SUM(S16,T16) -> 0
B17: Assumed, Accrued Interest on Existing Debt (Rehab/Acq) | S17: =SUM(C17:R17) -> 0 | T17: 0 | W17: 0
B18: Excess Purchase Price Over Appraisal | S18: =SUM(C18:R18) -> 0 | T18: 0 | W18: 0
B19: REHABILITATION
B20: Site Work | S20: =SUM(C20:R20) -> 0 | T20: =U20+V20 -> 0 | W20: 0
B21: Structures | S21: 0 | T21: 0 | W21: 0
B22: General Requirements | S22: 0 | T22: 0 | W22: 0
B23: Contractor Overhead | S23: 0 | T23: 0 | W23: 0
B24: Contractor Profit | S24: 0 | T24: 0 | W24: 0
B25: Prevailing Wages | S25: 0 | T25: 0 | W25: 0
B26: General Liability Insurance | S26: 0 | T26: 0 | W26: 0
B27: Urban Greening | S27: 0 | T27: 0 | W27: 0
B28: Other Rehabilitation: (Specify) | S28: 0 | T28: 0 | W28: 0
B29: Other Rehabilitation: (Specify) | S29: 0 | T29: 0 | W29: 0
B30: Other Rehabilitation: (Specify) | S30: 0 | T30: 0 | W30: 0
B31: Total Rehabilitation Costs | C31: =SUM(C20:C30) -> 0 | D31: =SUM(D20:D30) -> 0 | E31: 0 | F31: 0 | G31: 0 | H31: 0 | I31: 0 | J31: 0 | K31: 0 | L31: 0 | M31: 0 | N31: 0 | O31: 0 | P31: 0 | Q31: 0 | R31: 0 | S31: 0 | T31: =SUM(T20:T30) -> 0 | U31: 0 | V31: 0 | W31: 0 | X31: =SUM(X20:X30) -> 0 | Y31: =SUM(Y20:Y30) -> 0
B32: Total Relocation Expenses | S32: =SUM(C32:R32) -> 0 | T32: 0 | W32: 0
B33: NEW CONSTRUCTION
B34: Site Work | S34: =SUM(C34:R34) -> 0 | T34: =U34+V34 -> 0 | W34: 0
B35: Structures | S35: =SUM(C35:R35) -> 0 | T35: 0 | W35: 0
B36: General Requirements | S36: 0 | T36: 0 | W36: 0
B37: Contractor Overhead | S37: 0 | T37: 0 | W37: 0
B38: Contractor Profit | S38: 0 | T38: 0 | W38: 0
B39: Prevailing Wages | S39: 0 | T39: 0 | W39: 0
B40: General Liability Insurance | S40: 0 | T40: 0 | W40: 0
B41: Urban Greening | S41: 0 | T41: 0 | W41: 0
B42: Other New Construction: (Specify) | S42: 0 | T42: 0 | W42: 0
B43: Other New Construction: (Specify) | S43: 0 | T43: 0 | W43: 0
B44: Other New Construction: (Specify) | S44: 0 | T44: 0 | W44: 0
B45: Total New Construction Costs | C45: =SUM(C34:C44) -> 0 | D45: =SUM(D34:D44) -> 0 | E45: =SUM(E34:E44) -> 0 | F45: 0 | G45: 0 | H45: 0 | I45: 0 | J45: 0 | K45: 0 | L45: 0 | M45: 0 | N45: 0 | O45: 0 | P45: 0 | Q45: 0 | R45: =SUM(R34:R44) -> 0 | S45: 0 | T45: 0 | U45: =SUM(U34:U44) -> 0 | V45: 0 | W45: 0 | X45: =SUM(X34:X44) -> 0 | Y45: =SUM(Y34:Y44) -> 0
B46: ARCHITECTURAL FEES
B47: Design | S47: =SUM(C47:R47) -> 0 | T47: =U47+V47 -> 0 | W47: =SUM(S47,T47) -> 0
B48: Supervision | S48: =SUM(C48:R48) -> 0 | T48: 0 | W48: 0
B49: Total Architectural Costs | C49: =SUM(C47:C48) -> 0 | D49: =SUM(D47:D48) -> 0 | E49: 0 | F49: 0 | G49: 0 | H49: 0 | I49: 0 | J49: 0 | K49: 0 | L49: 0 | M49: 0 | N49: 0 | O49: 0 | P49: 0 | Q49: 0 | R49: =SUM(R47:R48) -> 0 | S49: =SUM(S47:S48) -> 0 | T49: =U49+V49 -> 0 | U49: =SUM(U47:U48) -> 0 | V49: =SUM(V47:V48) -> 0 | W49: =SUM(W47:W48) -> 0 | X49: =SUM(X47:X48) -> 0 | Y49: 0
B50: Total Survey & Engineering | S50: =SUM(C50:R50) -> 0 | T50: 0 | W50: 0
B51: CONSTRUCTION INTEREST & FEES
B52: Construction Loan Interest | S52: =SUM(C52:R52) -> 0 | T52: =U52+V52 -> 0 | W52: 0
B53: Origination Fee | S53: 0 | T53: 0 | W53: 0
B54: Credit Enhancement/Application Fee | S54: 0 | T54: 0 | W54: 0
B55: Bond Premium | S55: 0 | T55: 0 | W55: 0
B56: Cost of Issuance | S56: 0 | T56: 0 | W56: 0
B57: Title & Recording | S57: 0 | T57: 0 | W57: 0
B58: Taxes | S58: 0 | T58: 0 | W58: 0
B59: Insurance | S59: 0 | T59: 0 | W59: 0
B60: Employment Reporting | S60: 0 | T60: 0 | W60: 0
B61: Other Construction Int. & Fees: (Specify) | S61: 0 | T61: 0 | W61: 0
B62: Other Construction Int. & Fees: (Specify) | S62: 0 | T62: 0 | W62: 0
B63: Other Construction Int. & Fees: (Specify) | S63: 0 | T63: 0 | W63: 0
B64: Other Construction Int. & Fees: (Specify) | S64: 0 | T64: 0 | W64: 0
B65: Total Construction Interest & Fees | C65: =SUM(C52:C64) -> 0 | D65: =SUM(D52:D64) -> 0 | E65: =SUM(E52:E64) -> 0 | F65: 0 | G65: 0 | H65: 0 | I65: 0 | J65: 0 | K65: 0 | L65: 0 | M65: 0 | N65: 0 | O65: 0 | P65: 0 | Q65: 0 | R65: 0 | S65: 0 | T65: 0 | U65: =SUM(U52:U64) -> 0 | V65: =SUM(V52:V64) -> 0 | W65: =SUM(W52:W64) -> 0 | X65: =SUM(X52:X64) -> 0 | Y65: =SUM(Y52:Y64) -> 0
B66: PERMANENT FINANCING
B67: Loan Origination Fee | S67: =SUM(C67:R67) -> 0 | T67: =U67+V67 -> 0 | W67: =SUM(S67,T67) -> 0
B68: Credit Enhancement/Application Fee | S68: 0 | T68: 0 | W68: 0
B69: Title & Recording | S69: 0 | T69: 0 | W69: 0
B70: Taxes | S70: 0 | T70: 0 | W70: 0
B71: Insurance | S71: 0 | T71: 0 | W71: 0
B72: Other Perm. Financing Costs: (Specify) | S72: 0 | T72: 0 | W72: 0
B73: Other Perm. Financing Costs: (Specify) | S73: 0 | T73: 0 | W73: 0
B74: Other Perm. Financing Costs: (Specify) | S74: 0 | T74: 0 | W74: 0
B75: Other Perm. Financing Costs: (Specify) | S75: 0 | T75: 0 | W75: 0
B76: Total Permanent Financing Costs | C76: =SUM(C67:C75) -> 0 | D76: 0 | E76: 0 | F76: 0 | G76: 0 | H76: 0 | I76: 0 | J76: 0 | K76: 0 | L76: 0 | M76: 0 | N76: 0 | O76: 0 | P76: 0 | Q76: 0 | R76: 0 | S76: 0 | T76: 0 | U76: =SUM(U67:U75) -> 0 | V76: 0 | W76: =SUM(W67:W75) -> 0
B77: Subtotals Forward | C77: =SUM(C11+C14+C16+C17+C18+C31+C32+C45+C49+C50+C65+C76) -> 0 | D77: =SUM(D11+D14+D16+D17+D18+D31+D32+D45+D49+D50+D65+D76) -> 0 | E77: 0 | F77: 0 | G77: 0 | H77: 0 | I77: 0 | J77: 0 | K77: 0 | L77: 0 | M77: 0 | N77: 0 | O77: 0 | P77: 0 | Q77: 0 | R77: 0 | S77: 0 | T77: =SUM(T11+T14+T16+T17+T18+T32+T45+T49+T50+T65+T76) -> 0 | U77: 0 | V77: 0 | W77: =SUM(W11+W14+W16+W17+W18+W32+W45+W49+W50+W65+W76) -> 0 | X77: =SUM(X13+X16+X17+X18+X31+X32+X45+X49+X50+X65) -> 0 | Y77: =SUM(Y14+Y16+Y17+Y18+Y31+Y32+Y45+Y49+Y50+Y65) -> 0
B78: LEGAL FEES
B79: Legal Paid by Applicant | S79: =SUM(C79:R79) -> 0 | T79: 0 | W79: =SUM(S79,T79) -> 0
B80: Other Attorney Costs: (Specify) | S80: =SUM(C80:R80) -> 0 | T80: 0 | W80: 0
B81: Other Attorney Costs: (Specify) | S81: =SUM(C81:R81) -> 0 | T81: 0 | W81: 0
B82: Other Attorney Costs: (Specify) | S82: =SUM(C82:R82) -> 0 | T82: 0 | W82: 0
B83: Total Attorney Costs | C83: =SUM(C78:C82) -> 0 | D83: =SUM(D78:D82) -> 0 | E83: =SUM(E78:E82) -> 0 | F83: 0 | G83: 0 | H83: 0 | I83: 0 | J83: 0 | K83: 0 | L83: 0 | M83: 0 | N83: 0 | O83: 0 | P83: 0 | Q83: 0 | R83: 0 | S83: 0 | T83: 0 | U83: 0 | V83: 0 | W83: 0 | X83: =SUM(X79:X82) -> 0 | Y83: 0
B84: RESERVES
B85: Operating Reserve | S85: =SUM(C85:R85) -> 0 | T85: =U85+V85 -> 0 | W85: =SUM(S85,T85) -> 0
B86: Replacement Reserve | S86: 0 | T86: 0 | W86: 0
B87: Transition Reserve | S87: 0 | T87: 0 | W87: 0
B88: Rent Reserve | S88: 0 | T88: 0 | W88: 0
B89: Other Reserve Costs: (Specify) | S89: 0 | T89: 0 | W89: 0
B90: Other Reserve Costs: (Specify) | S90: 0 | T90: 0 | W90: 0
B91: Other Reserve Costs: (Specify) | S91: 0 | T91: 0 | W91: 0
B92: Total Reserve Costs | C92: =SUM(C85:C91) -> 0 | D92: 0 | E92: 0 | F92: 0 | G92: 0 | H92: 0 | I92: 0 | J92: 0 | K92: 0 | L92: 0 | M92: 0 | N92: 0 | O92: 0 | P92: 0 | Q92: 0 | R92: 0 | S92: 0 | T92: 0 | U92: =SUM(U85:U91) -> 0 | V92: =SUM(V85:V91) -> 0 | W92: 0
B93: CONTINGENCY COSTS
B94: Construction Hard Cost Contingency | S94: =SUM(C94:R94) -> 0 | T94: =U94+V94 -> 0 | W94: =SUM(S94,T94) -> 0
B95: Soft Cost Contingency | S95: =SUM(C95:R95) -> 0 | T95: 0 | W95: 0
B96: Total Contingency Costs | C96: =SUM(C94:C95) -> 0 | D96: 0 | E96: 0 | F96: 0 | G96: 0 | H96: 0 | I96: 0 | J96: 0 | K96: 0 | L96: 0 | M96: 0 | N96: 0 | O96: 0 | P96: 0 | Q96: 0 | R96: 0 | S96: 0 | T96: 0 | U96: =SUM(U94:U95) -> 0 | V96: =SUM(V94:V95) -> 0 | W96: =SUM(W94:W95) -> 0 | X96: =SUM(X94:X95) -> 0 | Y96: =SUM(Y94:Y95) -> 0
B97: OTHER PROJECT COSTS
B98: TCAC App/Allocation/Monitoring Fees | S98: =SUM(C98:R98) -> 0 | T98: =U98+V98 -> 0 | W98: =SUM(S98,T98) -> 0
B99: Environmental Audit | S99: 0 | T99: 0 | W99: 0
B100: Local Development Impact Fees | S100: 0 | T100: 0 | W100: 0
B101: Permit Processing Fees | S101: 0 | T101: 0 | W101: 0
B102: Capital Fees | S102: 0 | T102: 0 | W102: 0
B103: Marketing | S103: 0 | T103: 0 | W103: 0
B104: Furnishings | S104: 0 | T104: 0 | W104: 0
B105: Market Study | S105: 0 | T105: 0 | W105: 0
B106: Accounting/Reimbursable | S106: 0 | T106: 0 | W106: 0
B107: Appraisal Costs | S107: 0 | T107: 0 | W107: 0
B108: Other Costs: (Specify) | S108: 0 | T108: 0 | W108: 0
B109: Other Costs: (Specify) | S109: 0 | T109: 0 | W109: 0
B110: Other Costs: (Specify) | S110: 0 | T110: 0 | W110: 0
B111: Other Costs: (Specify) | S111: 0 | T111: 0 | W111: 0
B112: Other Costs: (Specify) | S112: 0 | T112: 0 | W112: 0
B113: Other Costs: (Specify) | S113: 0 | T113: 0 | W113: 0
B114: Total Other Costs | C114: =SUM(C98:C113) -> 0 | D114: =SUM(D98:D113) -> 0 | E114: =SUM(E98:E113) -> 0 | F114: 0 | G114: 0 | H114: 0 | I114: 0 | J114: 0 | K114: 0 | L114: 0 | M114: 0 | N114: 0 | O114: 0 | P114: 0 | Q114: 0 | R114: 0 | S114: 0 | T114: 0 | U114: =SUM(U98:U113) -> 0 | V114: 0 | W114: =SUM(W98:W113) -> 0 | X114: =SUM(X99:X102,X104:X113) -> 0 | Y114: =SUM(Y99:Y102,Y104:Y113) -> 0
B115: SUBTOTAL PROJECT COST | C115: =SUM(C77+C83+C92+C96+C114) -> 0 | D115: =SUM(D77+D83+D92+D96+D114) -> 0 | E115: =SUM(E77+E83+E92+E96+E114) -> 0 | F115: 0 | G115: 0 | H115: 0 | I115: 0 | J115: 0 | K115: 0 | L115: 0 | M115: 0 | N115: 0 | O115: 0 | P115: 0 | Q115: 0 | R115: 0 | S115: 0 | T115: =U115+V115 -> 0 | U115: =SUM(U77+U83+U92+U96+U114) -> 0 | V115: =SUM(V77+V83+V92+V96+V114) -> 0 | W115: =SUM(W77+W83+W92+W96+W114) -> 0 | X115: =SUM(+X77+X83+X96+X114) -> 0 | Y115: =SUM(Y77+Y83+Y96+Y114) -> 0
B116: DEVELOPER COSTS
B117: Developer Overhead/Profit | S117: =SUM(C117:R117) -> 0 | T117: =U117+V117 -> 0 | W117: =SUM(S117,T117) -> 0
B118: Consultant/Processing Agent | S118: 0 | T118: 0 | W118: 0
B119: Project Administration | S119: 0 | T119: 0 | W119: 0
B120: Broker Fees Paid to a Related Party | S120: 0 | T120: 0 | W120: 0
B121: Construction Oversight by Developer | S121: 0 | T121: 0 | W121: 0
B122: Other Developer Costs: (Specify) | S122: 0 | T122: 0 | W122: 0
B123: Total Developer Costs | C123: =SUM(C117:C122) -> 0 | D123: 0 | E123: 0 | F123: 0 | G123: 0 | H123: 0 | I123: 0 | J123: 0 | K123: 0 | L123: 0 | M123: 0 | N123: 0 | O123: 0 | P123: 0 | Q123: 0 | R123: 0 | S123: 0 | T123: =U123+V123 -> 0 | U123: =SUM(U117:U122) -> 0 | V123: 0 | W123: =SUM(W117:W122) -> 0 | X123: =SUM(X117:X122) -> 0 | Y123: =SUM(Y117:Y122) -> 0
B124: Total Project Costs | C124: =SUM(C115+C123) -> 0 | D124: =SUM(D115+D123) -> 0 | E124: 0 | F124: 0 | G124: 0 | H124: 0 | I124: 0 | J124: 0 | K124: 0 | L124: 0 | M124: 0 | N124: 0 | O124: 0 | P124: 0 | Q124: 0 | R124: 0 | S124: 0 | T124: =SUM(T115+T123) -> 0 | U124: 0 | V124: 0 | W124: =SUM(W115+W123) -> 0 | X124: =X115+X123 -> 0 | Y124: =Y115+Y123 -> 0
X125: =X124 -> 0 | Y125: =Y124 -> 0
W126: Total Eligible Basis: | Y126: =SUM(X125:Y125) -> 0
B128: End of Document

Sheet High-Cost Verification (hidden)
B2: 2024 TCAC Threshold Basis Limit (TBL) for HCD Developer Fee UMR §8312(b)&(c) and HCD High Cost Test for HCD Limits on Development Costs 2017 UMR §8311(a) & (b) Complete all yellow shaded cells.
AR3: 1/24/2024 Table | AS3: SRO & STUDIO | AT3: 1 BEDROOM | AU3: 2 BEDROOMS | AV3: 3 BEDROOMS | AW3: 4+ BEDROOMS
B4: Project Name: | F4: =IF(ProjectName>0,ProjectName,"") ->  | U4: County: | W4: =IF(County>0,County,"") ->  | AC4: Project's Proposed Tax Credits: | AK4: =IF(Taxcredit>0,Taxcredit,"") ->  | AR4: Alameda | AS4: 473390 | AT4: 545814 | AU4: 658400 | AV4: 842752 | AW4: 938878
B5: HCD Phase: | F5: ='Developer Fee'!$F$5 -> Origination | AR5: Alpine | AS5: 352022 | AT5: 405878 | AU5: 489600 | AV5: 626688 | AW5: 698170
AR6: Amador | AS6: 352022 | AT6: 405878 | AU6: 489600 | AV6: 626688 | AW6: 698170
B7: Unit Size | I7: 2024 TCAC Threshold Basis Limits (TBL) | N7: # of Units | P7: Basis x Number of Units | T7: TOTAL UNADJUSTED THRESHOLD BASIS LIMIT (TBL): | AH7: =SUM(P8:S12) -> 0 | AO7: 2 | AP7: 7 | AR7: Butte | AS7: 319236 | AT7: 368076 | AU7: 444000 | AV7: 568320 | AW7: 633144
B8: SRO/Studio | I8: =IFERROR(IF($W$4="","",IF($AK$4="9%",VLOOKUP($W$4,$AR$3:$AW$61,$AP$7),VLOOKUP($W$4,$AR$3:$AW$61,$AO$7))),0) ->  | N8: =SUMIF('Unit Mix'!$B$4:$C$29,0,'Unit Mix'!$I$4:$J$29) -> 0 | P8: =IF(ISERROR(($I$8*$N$8)),0,($I$8*$N$8)) -> 0 | T8: TOTAL HCD ADJ. THRESHOLD BASIS LIMIT: | AH8: =$AH$17+$AH$18+$AH$19+$AH$20+$AH$21+$AH$46+$AH$7+$AH$22+$AH$41+IF(AF44="Yes",$AH$44,0)+$AH$49+$AH$47+$AH$48 -> 0 | AO8: =$AO$7+1 -> 3 | AP8: =$AP$7+1 -> 8 | AR8: Calaveras | AS8: 352022 | AT8: 405878 | AU8: 489600 | AV8: 626688 | AW8: 698170
B9: 1 Bedroom | I9: =IFERROR(IF($W$4="","",IF($AK$4="9%",VLOOKUP($W$4,$AR$3:$AW$61,$AP$8),VLOOKUP($W$4,$AR$3:$AW$61,$AO$8))),0) ->  | N9: =SUMIF('Unit Mix'!$B$4:$C$29,1,'Unit Mix'!$I$4:$J$29) -> 0 | P9: =IF(ISERROR(($I$9*$N$9)),0,($I$9*$N$9)) -> 0 | T9: =IF($F$5="Perm Close","Adjusted Threshold Basis Limit multiplied by 170%:","Adjusted Threshold Basis Limit multiplied by 160%:") -> Adjusted Threshold Basis Limit multiplied by 160%: | AH9: =IF($F$5="Perm Close",$AH$8*1.7,$AH$8*1.6) -> 0 | AO9: =$AO$8+1 -> 4 | AP9: =$AP$8+1 -> 9 | AR9: Colusa | AS9: 352022 | AT9: 405878 | AU9: 489600 | AV9: 626688 | AW9: 698170
B10: 2 Bedrooms | I10: =IFERROR(IF($W$4="","",IF($AK$4="9%",VLOOKUP($W$4,$AR$3:$AW$61,$AP$9),VLOOKUP($W$4,$AR$3:$AW$61,$AO$9))),0) ->  | N10: =SUMIF('Unit Mix'!$B$4:$C$29,2,'Unit Mix'!$I$4:$J$29) -> 0 | P10: =IF(ISERROR(($I$10*$N$10)),0,($I$10*$N$10)) -> 0 | T10: =IF($F$4="",CONCATENATE("HCD HIGH COST TEST RESULT: ",$F$4),CONCATENATE("HCD HIGH COST TEST RESULT FOR: ",$F$4)) -> HCD HIGH COST TEST RESULT: | AH10: =IF($AH$8=0,0,$AH$12/$AH$8) -> 0 | AO10: =$AO$9+1 -> 5 | AP10: =$AP$9+1 -> 10 | AR10: Contra Costa | AS10: 473390 | AT10: 545814 | AU10: 658400 | AV10: 842752 | AW10: 938878
B11: 3 Bedrooms | I11: =IFERROR(IF($W$4="","",IF($AK$4="9%",VLOOKUP($W$4,$AR$3:$AW$61,$AP$10),VLOOKUP($W$4,$AR$3:$AW$61,$AO$10))),0) ->  | N11: =SUMIF('Unit Mix'!$B$4:$C$29,3,'Unit Mix'!$I$4:$J$29) -> 0 | P11: =IF(ISERROR(($I$11*$N$11)),0,($I$11*$N$11)) -> 0 | AO11: =$AO$10+1 -> 6 | AP11: =$AP$10+1 -> 11 | AR11: Del Norte | AS11: 352022 | AT11: 405878 | AU11: 489600 | AV11: 626688 | AW11: 698170
B12: 4+ Bedrooms | I12: =IFERROR(IF($W$4="","",IF($AK$4="9%",VLOOKUP($W$4,$AR$3:$AW$61,$AP$11),VLOOKUP($W$4,$AR$3:$AW$61,$AO$11))),0) ->  | N12: =SUMIF('Unit Mix'!$B$4:$C$29,4,'Unit Mix'!$I$4:$J$29)+SUMIF('Unit Mix'!$B$4:$C$29,5,'Unit Mix'!$I$4:$J$29) -> 0 | P12: =IF(ISERROR(($I$12*$N$12)),0,($I$12*$N$12)) -> 0 | T12: Total Eligible Basis | AH12: =SUM('Dev Budget'!Y126) -> 0 | AR12: El Dorado | AS12: 331890 | AT12: 382666 | AU12: 461600 | AV12: 590848 | AW12: 658242
AC13: =IF($AH$12=0,"",IF($AH$12<=$AH$9,"Costs Reasonable",IF($F$5="Perm Close","Costs too high > 170%","Costs too high > 160%"))) ->  | AR13: Fresno | AS13: 307732 | AT13: 354812 | AU13: 428000 | AV13: 547840 | AW13: 610328
B14: Manager Units in Project: | I14: =ManagerUnits -> 0 | K14: TOTAL UNITS: | O14: =SUM($N$8:$O$12) -> 0 | AR14: Glenn | AS14: 352022 | AT14: 405878 | AU14: 489600 | AV14: 626688 | AW14: 698170
AR15: Humboldt | AS15: 352022 | AT15: 405878 | AU15: 489600 | AV15: 626688 | AW15: 698170
B16: ADJUSTMENTS Cal Code of Reg §10327(c)(5)(A-F) | AR16: Imperial | AS16: 314634 | AT16: 362770 | AU16: 437600 | AV16: 560128 | AW16: 624018
B17: (A) | C17: Adjustment for Projects paid in whole or part out of public funds subject to a legal requirement for the payment of state or federal prevailing wages or financed in part by a labor-affiliated organization requiring the employment of construction workers who are paid at least state or federal prevailing wages (20%). | AH17: =ROUND(IF($AF$17="yes",$AH$7*0.2,0),0) -> 0 | AR17: Inyo | AS17: 352022 | AT17: 405878 | AU17: 489600 | AV17: 626688 | AW17: 698170
C18: For Projects certifies that (1) they are subject to a Project labor agreement within the meaning of §2500(b)(1) of the Public Contract Code, or (2) they will use a skilled and trained workforce as defined by §25536.7 of the Health and Safety Code to perform all onsite work within an apprenticeable occupation in the building and construction trades (5%). | AH18: =ROUND(IF($AF$18="yes",$AH$7*0.05,0),0) -> 0 | AR18: Kern | AS18: 307732 | AT18: 354812 | AU18: 428000 | AV18: 547840 | AW18: 610328
B19: (B) | C19: For New construction Projects required to provide parking beneath residential units (not "tuck under" parking) or through construction of an on-site parking structure of two or more levels (10%). | AH19: =ROUND(IF($AF$19="yes",$AH$7*0.1,0),0) -> 0 | AR19: Kings | AS19: 307732 | AT19: 354812 | AU19: 428000 | AV19: 547840 | AW19: 610328
B20: (C) | C20: For Projects where a day care center is part of the development (2%). | AH20: =ROUND(IF($AF$20="yes",$AH$7*0.02,0),0) -> 0 | AR20: Lake | AS20: 352022 | AT20: 405878 | AU20: 489600 | AV20: 626688 | AW20: 698170
B21: (D) | C21: For Projects where 100 percent of the units are for Special Needs populations (2%). | AH21: =ROUND(IF($AF$21="yes",$AH$7*0.02,0),0) -> 0 | AR21: Lassen | AS21: 352022 | AT21: 405878 | AU21: 489600 | AV21: 626688 | AW21: 698170
B22: (E) | C22: Project applying under §10325 or §10326 of the TCAC regulations that includes one or more of the features below (up to 10%). | AH22: =IF(SUM($AF$23:$AG$40)>0.005,MIN(0.1,SUM($AF$23:$AG$40))*$AH$7,0) -> 0 | AR22: Los Angeles | AS22: 437727 | AT22: 504695 | AU22: 608800 | AV22: 779264 | AW22: 868149
C23: (1) Project shall have onsite renewable generation estimated to produce 50% or more of annual tenant electricity use. If the combined available roof area of the Project structures, including carports, is insufficient for provision of 50% of annual electricity use, then the Project shall have onsite renewable generation based on at least 90% of the available solar accessible roof area. Available solar accessible area is defined as roof area less north facing roof area for sloped roofs, equipment, solar thermal hot water and required local or state fire department set-backs and access routes. A Project not availing itself of the 90% roof area exception may also receive an increase under paragraph (2) only if the renewable generation used to calculate each basis increase does not overlap (5%). | AR23: Madera | AS23: 307732 | AT23: 354812 | AU23: 428000 | AV23: 547840 | AW23: 610328
AF24: =IF($AF$23="Yes",0.05,0) -> 0 | AR24: Marin | AS24: 384234 | AT24: 443018 | AU24: 534400 | AV24: 684032 | AW24: 762054
C25: (2) Project shall have onsite renewable generation estimated to produce 75% or more of annual common area electricity use. If the combined available roof area of the Project structures, including carports, is insufficient for provision of 75% of annual electricity use, then the Project shall have onsite renewable generation based on at least 90% of the available solar accessible roof area. Available solar accessible area is defined as roof area less north facing roof area for sloped roofs, equipment, solar thermal hot water and required local or state fire department set-backs and access routes. A Project not availing itself of the 90% roof area exception may also receive an increase under paragraph (1) only if the renewable generation used to calculate each basis increase does not overlap (2%). | AR25: Mariposa | AS25: 352022 | AT25: 405878 | AU25: 489600 | AV25: 626688 | AW25: 698170
AF26: =IF($AF$25="Yes",0.02,0) -> 0 | AR26: Mendocino | AS26: 352022 | AT26: 405878 | AU26: 489600 | AV26: 626688 | AW26: 698170
C27: (3) Newly constructed Project buildings shall be 15% or more energy efficient than the 2019 Energy Efficiency Standards (California Code of Regulations, Part 6 of Title 24) by at least 5 EDR points for energy efficiency alone (not counting solar); except that if the local building department has determined that building permit applications submitted on or before December 31, 2019 are complete, then newly constructed Project buildings shall be fifteen percent (15%) or more energy efficient than the 2016 Energy Efficiency Standards (California Code of Regulations, Part 6 of Title 24) (4%). | AR27: Merced | AS27: 307732 | AT27: 354812 | AU27: 428000 | AV27: 547840 | AW27: 610328
AF28: =IF($AF$27="Yes",0.04,0) -> 0 | AR28: Modoc | AS28: 352022 | AT28: 405878 | AU28: 489600 | AV28: 626688 | AW28: 698170
C29: (4) Rehab Project buildings shall have 80% decrease in estimated annual energy use (or improvement in energy efficiency) in the HERS II post rehabilitation (4%). | AR29: Mono | AS29: 352022 | AT29: 405878 | AU29: 489600 | AV29: 626688 | AW29: 698170
AF30: =IF($AF$29="Yes",0.04,0) -> 0 | AR30: Monterey | AS30: 387110 | AT30: 446334 | AU30: 538400 | AV30: 689152 | AW30: 767758
C31: (5) Irrigate only with reclaimed water, greywater, or rainwater (excepting water used for Community Gardens) or irrigate with reclaimed water, grey water, or rainwater in an amount that annually equals or exceeds 20,000 gallons or 300 gallons per unit, whichever is less (1%). | AR31: Napa | AS31: 384234 | AT31: 443018 | AU31: 534400 | AV31: 684032 | AW31: 762054
AF32: =IF($AF$31="Yes",0.01,0) -> 0 | AR32: Nevada | AS32: 352022 | AT32: 405878 | AU32: 489600 | AV32: 626688 | AW32: 698170
C33: (6) Community Gardens of at least 60 square feet per unit. Permanent site improvements that provide a viable growing space within the Project including solar access, fencing, watering systems, secure storage space for tools, and pedestrian access (1%). | AR33: Orange | AS33: 396888 | AT33: 457608 | AU33: 552000 | AV33: 706560 | AW33: 787152
AF34: =IF($AF$33="Yes",0.01,0) -> 0 | AR34: Placer | AS34: 331890 | AT34: 382666 | AU34: 461600 | AV34: 590848 | AW34: 658242
C35: (7) Install bamboo, stained concrete, cork, salvaged or FSC-Certified wood, natural linoleum, natural rubber, or ceramic tile in all kitchens, living rooms, and bathrooms (where no VOC adhesives or backing is also used) (1%). | AR35: Plumas | AS35: 352022 | AT35: 405878 | AU35: 489600 | AV35: 626688 | AW35: 698170
AF36: =IF($AF$35="Yes",0.01,0) -> 0 | AR36: Riverside | AS36: 314634 | AT36: 362770 | AU36: 437600 | AV36: 560128 | AW36: 624018
C37: (8) Install bamboo, stained concrete, cork, salvaged or FSC-Certified wood, or natural linoleum, natural rubber, or ceramic tile in all interior floor space other than units (where no VOC adhesives or backing is also used) (2%). | AR37: Sacramento | AS37: 331890 | AT37: 382666 | AU37: 461600 | AV37: 590848 | AW37: 658242
AF38: =IF($AF$37="Yes",0.02,0) -> 0 | AR38: San Benito | AS38: 352022 | AT38: 405878 | AU38: 489600 | AV38: 626688 | AW38: 698170
C39: (9) For new construction Projects only, meet all requirements of the U.S. Environmental Protection Agency Indoor Air Plus Program (2%). | AR39: San Bernardino | AS39: 314634 | AT39: 362770 | AU39: 437600 | AV39: 560128 | AW39: 624018
AF40: =IF($AF$39="Yes",0.02,0) -> 0 | AR40: San Diego | AS40: 353173 | AT40: 407205 | AU40: 491200 | AV40: 628736 | AW40: 700451
B41: (F) | C41: Project requires seismic upgrading of existing structures, and/or requires toxic or other environmental mitigation as certified by the Project architect/ engineer (lesser of costs or 15% basis adjustment). | AH41: =IF($AF$41="Yes",MIN($AB$43,$AH$7*0.15),0) -> 0 | AR41: San Francisco | AS41: 689665 | AT41: 795177 | AU41: 959200 | AV41: 1227776 | AW41: 1367819
AR42: San Joaquin | AS42: 307732 | AT42: 354812 | AU42: 428000 | AV42: 547840 | AW42: 610328
C43: If Yes, select type of work: | R43: Enter Certified Costs of Work: | AR43: San Luis Obispo | AS43: 387110 | AT43: 446334 | AU43: 538400 | AV43: 689152 | AW43: 767758
B44: (G) | C44: Local development impact fees required to be paid to local government entities. Certification from local entities assessing fees also required. WAIVED IMPACT FEES ARE INELIGIBLE. | AR44: San Mateo | AS44: 532060 | AT44: 613460 | AU44: 740000 | AV44: 947200 | AW44: 1055240
AF45: =IF($AF$44="yes","Please Enter Amount Above:",0) -> 0 | AR45: Santa Barbara | AS45: 387110 | AT45: 446334 | AU45: 538400 | AV45: 689152 | AW45: 767758
B46: (H) | C46: Projects where at least 95% of the Project's upper floor units are serviced by an elevator (10%). | AH46: =ROUND(IF($AF$46="yes",($AH$7*0.1),0),0) -> 0 | AR46: Santa Clara | AS46: 532060 | AT46: 613460 | AU46: 740000 | AV46: 947200 | AW46: 1055240
B47: (I) | C47: Projects wherein at least 95% of the building(s) is constructed as Type I as defined in the California Building Code, in which case, the Type III 10% increase below is not allowed (15%). | AH47: =ROUND(IF(AF47="Yes",(AH7*0.15),0),0) -> 0 | AR47: Santa Cruz | AS47: 387110 | AT47: 446334 | AU47: 538400 | AV47: 689152 | AW47: 767758
B48: (J) | C48: Projects wherein at least 95% of the building(s) is constructed as (1) a Type III as defined in the California Building Code, or (2) a Type III/Type I combination, in which case, the Type I 15% increase above is not be allowed (10%). | AH48: =ROUND(IF(AND(AF47="Yes",AF48="Yes"),0,IF(AF48="Yes",(AH7*0.1),0)),0) -> 0 | AR48: Shasta | AS48: 319236 | AT48: 368076 | AU48: 444000 | AV48: 568320 | AW48: 633144
B49: (K) | C49: Projects within a county with an unadjusted 9% threshold basis limit for a 2-bedroom unit equal or less than $500,000 and within a census tract designated on the TCAC/HCD Opportunity Map as Highest or High Resource (10%). | AF49: =IF(AND($F$51="Yes",OR($Y$51="Highest Resource",$Y$51="High Resource")),"Yes","No") -> No | AH49: =ROUND(IF(AND($F$51="Yes",OR($Y$51="High Resource",$Y$51="Highest Resource"),$AF$49="Yes"),$AH$7*0.1,0),0) -> 0 | AR49: Sierra | AS49: 352022 | AT49: 405878 | AU49: 489600 | AV49: 626688 | AW49: 698170
AR50: Siskiyou | AS50: 352022 | AT50: 405878 | AU50: 489600 | AV50: 626688 | AW50: 698170
C51: County Eligibility: | F51: =IFERROR(IF(VLOOKUP($W$4,$AR$3:$AW$61,$AO$9,FALSE)<=500000,"Yes","No"),"") ->  | H51: TCAC/HCD Opportunity Area Map Tract ID #: | S51: Opportunity Map Resource Level: | AR51: Solano | AS51: 384234 | AT51: 443018 | AU51: 534400 | AV51: 684032 | AW51: 762054
AR52: Sonoma | AS52: 384234 | AT52: 443018 | AU52: 534400 | AV52: 684032 | AW52: 762054
AR53: Stanislaus | AS53: 307732 | AT53: 354812 | AU53: 428000 | AV53: 547840 | AW53: 610328
AR54: Sutter | AS54: 331890 | AT54: 382666 | AU54: 461600 | AV54: 590848 | AW54: 658242
AR55: Tehama | AS55: 352022 | AT55: 405878 | AU55: 489600 | AV55: 626688 | AW55: 698170
AR56: Trinity | AS56: 352022 | AT56: 405878 | AU56: 489600 | AV56: 626688 | AW56: 698170
AR57: Tulare | AS57: 307732 | AT57: 354812 | AU57: 428000 | AV57: 547840 | AW57: 610328
AR58: Tuolumne | AS58: 352022 | AT58: 405878 | AU58: 489600 | AV58: 626688 | AW58: 698170
AR59: Ventura | AS59: 387110 | AT59: 446334 | AU59: 538400 | AV59: 689152 | AW59: 767758
AR60: Yolo | AS60: 331890 | AT60: 382666 | AU60: 461600 | AV60: 590848 | AW60: 658242
AR61: Yuba | AS61: 331890 | AT61: 382666 | AU61: 461600 | AV61: 590848 | AW61: 658242
B63: End of Document
C149: End of Document

Sheet Developer Fee (hidden)
B2: HCD 2024 Developer Fee Calculator - 03.01.2024
B4: Project Name: | F4: =IF(ProjectName>0,ProjectName,"") ->  | AE4: TCAC Project #
B5: Project Phase: | F5: Origination | J5: Proposed Project Type:
B6: Project's Developer Fee Summary | AA6: HCD Limit | AE6: Project Amt.
B7: =IF(LEFT($P$5,1)="9","Maximum Total Developer Fee - 1e","Maximum Total Developer Fee - 2d") -> Maximum Total Developer Fee - 2d | AA7: =IF(_xlfn.SINGLE(vmDF)="No Tax Credits",MIN($L$12,AJ61),IF(LEFT(_xlfn.SINGLE(vmDF),1)="9",$AJ$20,$AJ$30)) -> 0 | AE7: =$L$12 -> 0 | AI7: =MAX(0,ROUND($AE$7,0)-ROUND($AA$7,0)) -> 0
B8: =IF(LEFT($P$5,1)="9","Max Developer Fee payable from development funding sources - 1e",IF(_xlfn.SINGLE(vmDF)="No Tax Credits","Max Developer Fee payable from development funding sources","Max Developer Fee payable from development funding sources - lesser of 1e & 2d")) -> Max Developer Fee payable from development funding sources - lesser of 1e & 2d | AA8: =IF(AND(V59>0,_xlfn.SINGLE(vmDF)="No Tax Credits"),AJ61,IF(_xlfn.SINGLE(vmDF)="No Tax Credits",MAX(MIN($AJ$20,$AA$7,$AJ$61),2640000*AND(IsQualifiedJv,_xlfn.SINGLE(vmDF)="No Tax Credits",X55>100)),IF(LEFT(_xlfn.SINGLE(vmDF),1)="9",$AJ$20,MIN($AJ$30,$AJ$20)))) -> 0 | AE8: =MAX(0,$AE$7-$Y$12-$AI$12) -> 0 | AI8: =MAX(0,ROUND($AE$8,0)-ROUND($AA$8,0)) -> 0
B9: Deferred Developer Fee payable on a priority basis from available Cash Flow | AA9: =IF(_xlfn.SINGLE(vmDF)="No Tax Credits",MAX(0,MIN($AA$7,2200000)-$AA$8),MAX(0,MIN($AA$7,3500000)-$AA$8)) -> 0 | AE9: =IF($P$5="No Tax Credits",MAX(0,MIN($AA$7,$AE$7-$Y$12,2200000)-$AE$8),MAX(0,MIN($AA$7,$AE$7-$Y$12,3500000)-$AE$8)) -> 0
B10: Deferred Developer Fee payable exclusively from Sponsor Distributions | AA10: =$AA$7-$AA$8-$AA$9 -> 0 | AE10: =MAX(0,$AE$7-$AE$8-$AE$9-$Y$12) -> 0
B12: Total Budgeted or Actual Developer Fee: | L12: ='Dev Budget'!W123 -> 0 | P12: Developer Fee Contributed as Capital: | AC12: Deferred Developer Fee:
B14: =IF($P$5="","Section 1. UMR §8312(c)(1) Max Developer Fee payable from funding sources - 4% Projects use TCAC 9% rules",IF(LEFT($P$5,1)="4","Section 1. UMR §8312(c)(1) Max Developer Fee payable from funding sources - 4% Projects use TCAC 9% rules","Section 1. UMR §8312(b) Max Total Developer Fee - for 9% Projects")) -> Section 1. UMR §8312(c)(1) Max Developer Fee payable from funding sources - 4% Projects use TCAC 9% rules
B15: a. | C15: Project's type of construction: | J15: =IF($P$5="No Tax Credits","",MID($P$5,12,26)) ->  | AJ15: =IF(AND(AL23="Yes",LEFT(vmDF,2)="4%"),3000000,IF(LEFT(vmDF,2)="9%",2500000,2500000)) -> 2500000
B16: b. | C16: Project's Unadjusted Eligible Basis (excluding Developer Fee) - §10327(c)(2)(A) | AC16: ='Dev Budget'!$X$124-'Dev Budget'!$X$123 -> 0 | AH16: x 15% = | AJ16: =$AC$16*0.15 -> 0
B17: c. | C17: Project's Unadjusted Eligible Acquisition Basis (excluding Developer Fee) - §10327(c)(2)(A) | AC17: ='Dev Budget'!$Y$124-'Dev Budget'!$Y$123 -> 0 | AH17: x 5% = | AJ17: =$AC$17*0.05*($J$15="Acq. Rehabilitation") -> 0
B18: d. | C18: Project's Non-Residential Costs (excluding Developer Fee) - §10327(c)(2)(A) | AC18: ='Dev Budget'!$T$124-'Dev Budget'!$T$123 -> 0 | AH18: x 15% = | AJ18: =$AC$18*0.15 -> 0
B19: Projects with more than 100 Restricted Units | M19: 20000 | P19: each | R19: =(MIN(2500000+M19*(AB19-100),3500000)) -> 500000 | W19: Total Restricted Units | AB19: =SUMIF('Unit Mix'!D4:H29,"<=80% AMI",'Unit Mix'!I4:J29) -> 0 | AJ19: =($M$19*(IF($AB$19>100,$AB$19-100,0))) -> 0
B20: e. | C20: =IF(LEFT($P$5,1)="9","Maximum Total Developer Fee - UMR §8312(b) - lesser of 1a or (1b + 1c + 1d)","Maximum Developer Fee payable from development funding sources - UMR §8312(c)(1) - lesser of 1a or (1b + 1c + 1d)") -> Maximum Developer Fee payable from development funding sources - UMR §8312(c)(1) - lesser of 1a or (1b + 1c + 1d) | AJ20: =MIN($AJ$15,SUM($AJ$16:$AM$18))+IF(LEFT(vmDF,2)="4%",$AJ$19,0) -> 0
B22: Section 2. UMR §8312(c) - Maximum Developer Fee using TCAC 4% rules
C23: Project meeting CDLAC §5230(f)(1)(B), TCAC §10327(c)(2)(E)?
B24: a. | C24: New Construction & Rehab - Unadjusted Eligible Basis (exclude Developer Fee) - §10327(c)(2)(B)(i) | AC24: =$AC$16 -> 0 | AH24: =IF(OR($AL$23="No",$AL$23=""),"x 15% =","x 20% =") -> x 15% = | AJ24: =$AC$24*IF(OR($AL$23="No",$AL$23=""),0.15,0.2) -> 0
B25: b. | C25: Basis for non-residential Project costs (exclude Developer Fee) - §10327(c)(2)(B)(ii) | AC25: =$AC$18 -> 0 | AH25: x 15% = | AJ25: =$AC$25*0.15 -> 0
B26: c1. | C26: =IF(OR($F$5="",$J$15="Acq. Rehabilitation"),"Acq/Rehab - at-risk development meeting the requirements of §10325(g)(4) - §10327(c)(2)(B)(ii)","Not Applicable") -> Not Applicable
B27: c2. | C27: =IF(AND($F$5<>"",$J$15<>"Acq. Rehabilitation"),"Not Applicable","Acq/Rehab non-resyndication - hard construction costs per unit at least $50,000 per unit - §10327(c)(2)(B)(ii)") -> Not Applicable
B28: c3. | C28: =IF(OR($F$5="",$J$15="Acq. Rehabilitation"),"Acq/Rehab non-resyndication - 30% or more of units restricted to 50% AMI or less - §10327(c)(2)(B)(ii)","Not Applicable") -> Not Applicable
B29: c4. | C29: =IF(OR($F$5="",$J$15="Acq. Rehabilitation"),"Acq/Rehab - Unadj. Eligible Acq. Basis - §10327(c)(2)(B)(ii) = 15% if c1, c2 or c3 is Yes","Not Applicable") -> Not Applicable | AC29: =IF(OR($F$5="",$J$15<>"Acq. Rehabilitation"),0,$AC$17) -> 0 | AG29: =IF(OR($AG$26="Yes",$AG$27="Yes",$AG$28="Yes"),0.15,0.05) -> 0.05 | AJ29: =$AC$29*$AG$29 -> 0
B30: d. | C30: Maximum Total Developer Fee using TCAC 4% rules §8312(c) | AJ30: =ROUND($AJ$24+$AJ$25+$AJ$29,0) -> 0
B31: e. | C31: Total Budgeted or Actual Developer Fee | AF31: =$L$12 -> 0 | AJ31: =IF(ROUND($AF$31,0)>ROUND($AJ$30,0),"Excess Dev Fee"&TEXT($AF$31-$AJ$30," $#,###"),"") -> 
B32: f. | C32: Budgeted Developer Fee paid from Development Sources | Q32: Sum of Deferred and Contributed Developer Fee | AB32: =$Y$12+$AI$12 -> 0 | AF32: =$AF$31-$AB$32 -> 0 | AJ32: =IF($AF$32>$AJ$20,"Cannot exceed"&TEXT(MIN($AJ$20,$AJ$30)," $#,###"),"") -> 
B33: g. | C33: Deferred Developer Fee payable on a priority basis from available Cash Flow | AF33: =MAX(0,MIN($AJ$30,$AF$31,3500000)-MIN($AJ$20,$AJ$30)) -> 0
B35: Section 3. UMR §8312(a) for Projects without tax credits (choose only one in the "a", "b", "c", or "d" subsections) Max HCD Developer Fee = $2,200,000
B36: (a) | C36: Substantial rehab projects UMR §8312(a)(1)
C37: substantial rehab = construction cost for rehab work (excluding contractor profit and overhead) in excess of $45,000 per unit
C38: Number of units (include manager's unit)
C39: Number of units (include manager's unit) | Q39: 33000 | T39: each | V39: =IF($Q$38>29,$Q$39*30,+$Q$38*$Q$39) -> 0
C40: Units in excess of 30 at: | Q40: 13500 | T40: each | V40: =IF($Q$38<30,0,($Q$38-30)*$Q$40) -> 0
C41: Total substantial rehab | V41: =+$V$39+$V$40 -> 0
B43: (b) | C43: Acquisition and rehab projects UMR §8312(a)(2)
C44: with construction cost for rehab work (excluding contractor profit and overhead) between $11,500 - $38,000 per unit
C45: Number of units (include manager's unit)
C46: First 30 units at: | Q46: 15000 | T46: each | V46: =IF($Q$45>29,$Q$46*30,+$Q$45*$Q$46) -> 0
C47: Units in excess of 30 at: | Q47: 6500 | T47: each | V47: =IF($Q$45<30,0,($Q$45-30)*$Q$47) -> 0
C48: Total acquisition and non-substantial rehab | V48: =+$V$46+$V$47 -> 0
B50: (c) | C50: All other projects UMR §8312(a)(3)
C51: Number of units (include manager's unit)
C52: Total other at: | Q52: 2000 | T52: per unit | V52: =+$Q$51*$Q$52 -> 0
B53: Does an Emerging Developer or a Community-Based Developer relies on a co-Applicant to meet §7303(d) experience requirements and thus qualify as an eligible Sponsor?
B54: (d) | C54: New construction projects NOFA
C55: Number of units (include manager's unit) | Q55: =$X$55+ManagerUnits -> 0 | S55: Total Restricted Units | X55: =SUMIF('Unit Mix'!D4:H29,"<=60% AMI",'Unit Mix'!I4:J29) -> 0 | Z55: Qualifies for increase per NOFA | AL55: =IF($AL$53="Yes",TRUE,FALSE) -> FALSE
C56: Projects with 49 or fewer Restricted Units | Q56: 40000 | T56: each | V56: =(MAX(1200000,Q55*Q56)+300000*AL55)*(X55<=49) -> 1200000
C57: Projects between 50 and 100 Restricted Units | V57: =(2200000+300000*$AL$55)*AND($X$55>=50,$X$55<=100) -> 0
C58: Projects with more than 100 Restricted Units | Q58: 20000 | T58: each | V58: =(MIN(2200000+$Q$58*($X$55-100),3500000)+300000*$AL$55)*($X$55>100) -> 0
B59: Total New Construction projects | V59: =MAX($V$56,$V$57,$V$58) -> 1200000
B61: Maximum allowable Developer Fee | AJ61: =IF(vmProjectDevType="NewConstruction",V59,MAX($V$41,$V$48,$V$52)) -> 0
B63: End of Document

Sheet Supportive Services Costs (hidden)
B2: =IF('Development Info'!G3="","",'Development Info'!G3) ->  | AS2: 8314 (e)(1) | AT2: 8314 (e)(2) | AU2: 8314 (e)(3) | AV2: 8314 (e)(4) | AW2: 8314 (e)(1) | AX2: 8314 (e)(2) | AY2: 8314 (e)(3) | AZ2: 8314 (e)(4)
B3: Supportive Services Costs - HCD 2017 UMR Limits (for projects with HCD funding) - 2.5% annual increase | AR3: Fiscal Year | AS3: Chronic Homelessness | AT3: Special Needs Population | AU3: Supportiv Services | AV3: Other | AW3: Chronic Homelessness | AX3: Special Needs Population | AY3: Supportiv Services | AZ3: Other
B4: HCD UMR §8301(t): “Supportive Services” - social, health, educational, income support and employment services and benefits, coordination of community building and educational activities, individualized needs assessment, and individualized assistance with obtaining services and benefits. | AR4: 2017 | AS4: 4080 | AT4: 3060 | AU4: 1051 | AV4: 250
B5: HCD UMR §8301(u): “Supportive Services Costs” - the costs of providing tenants service coordination, case management, and direct resident and Supportive Services. It includes: (1) the cost of providing tenants with information on and referral to social, health, educational, income support and employment services and benefits, coordination of community building and educational activities, individualized needs assessment, and individualized assistance with obtaining services and benefits; (2) salaries, benefits, contracted services, telecommunication expenses, travel costs, supplies, office expenses, staff training, maintenance of on-site equipment used in services programs, such as computer labs, incidental costs related to resident events, and other similar costs approved by the Department. | AR5: =+AR4+1 -> 2018 | AS5: =ROUND(AS4*1.025,0) -> 4182 | AT5: =ROUND(AT4*1.025,0) -> 3137 | AU5: =ROUND(AU4*1.025,0) -> 1077 | AV5: =ROUND(AV4*1.025,0) -> 256 | AW5: 4182 | AX5: 3137 | AY5: 1077 | AZ5: 256
AR6: =+AR5+1 -> 2019 | AS6: =ROUND(AS5*1.025,0) -> 4287 | AT6: 3215 | AU6: 1104 | AV6: 262 | AW6: =ROUND(AW5*1.035,0) -> 4328 | AX6: 3247 | AY6: 1115 | AZ6: 265
B7: A. Supportive Services Units: | J7: Total number of units: | N7: ='Unit Mix'!I30 -> 0 | P7: Certification Year | AD7: Total Units | AF7: Max PUPY Expense | AI7: Max Costs | AR7: =+AR6+1 -> 2020 | AS7: 4394 | AT7: 3295 | AU7: 1132 | AV7: 269 | AW7: 4479 | AX7: 3361 | AY7: 1154 | AZ7: 274
B8: (1) UMR §8314(e)(1): Total number of Supportive Housing (SH) units anticipated to be restricted to individuals or families experiencing chronic homelessness as defined consistent with Health and Safety Code (HSC) §50675.14. | AF8: =IFERROR(VLOOKUP($AB$7,$AR$4:$AZ$62,2,FALSE),0) -> 0 | AI8: =IFERROR(AF8*AD8,"") -> 0 | AR8: =+AR7+1 -> 2021 | AS8: 4504 | AT8: 3377 | AU8: 1160 | AV8: 276 | AW8: 4636 | AX8: 3479 | AY8: 1194 | AZ8: 284
B9: (2) UMR §8314(e)(2): Total number of Supportive Housing (SH) units (other than those restricted to individuals or families experiencing chronic homelessness pursuant to HSC §50675.14), PLUS the total number of units restricted to occupancy by Special Needs Populations (SNP)* under any HCD program. (*click here for definition - §7301(s) of the MHP Regulations). Do not include units included in (1) above. | AF9: =IFERROR(VLOOKUP($AB$7,$AR$4:$AZ$62,3,FALSE),0) -> 0 | AI9: =IFERROR(AF9*AD9,"") -> 0 | AR9: 2022 | AS9: 4617 | AT9: 3461 | AU9: 1189 | AV9: 283 | AW9: 4798 | AX9: 3601 | AY9: 1236 | AZ9: 294
B10: (3) UMR §8314(e)(3): Total number of units where the Sponsor, their affiliate, or a service provider under contract to provide Supportive Services at the Project has both: (A) qualified staff devoted exclusively to oversight and quality control of resident services in affordable housing, including the Project; and (B) a system to track and report on tenant outcomes, such as changes in employment status and income. Do not include units included in items (1) and (2) above. | AF10: =IFERROR(VLOOKUP($AB$7,$AR$4:$AZ$62,4,FALSE),0) -> 0 | AI10: =IFERROR(AF10*AD10,"") -> 0 | AR10: 2023 | AS10: 4732 | AT10: 3548 | AU10: 1219 | AV10: 290 | AW10: 4966 | AX10: 3727 | AY10: 1279 | AZ10: 304
B11: (4) UMR §8314(e)(4): Total number of units anticipated to be offered Supportive Services provided by the Project Sponsor, a Sponsor affiliate, or contracted service provider that do not satisfy the criteria in items (1), (2) and (3) above. | AF11: =IFERROR(VLOOKUP($AB$7,$AR$4:$AZ$62,5,FALSE),0) -> 0 | AI11: =IFERROR(AF11*AD11,"") -> 0 | AR11: 2024 | AS11: 4850 | AT11: 3637 | AU11: 1249 | AV11: 297 | AW11: 5140 | AX11: 3857 | AY11: 1324 | AZ11: 315
B12: (5) Maximum Supportive Services Costs | AD12: =SUM(AD8:AE11) -> 0 | AI12: =SUM(AI8:AM11) -> 0 | AR12: 2025 | AS12: 4971 | AT12: 3728 | AU12: 1280 | AV12: 304 | AW12: 5320 | AX12: 3992 | AY12: 1370 | AZ12: 326
AR13: 2026 | AS13: 5095 | AT13: 3821 | AU13: 1312 | AV13: 312 | AW13: 5506 | AX13: 4132 | AY13: 1418 | AZ13: 337
B14: End of Document

Sheet Operating (hidden)
B2: =IF('Development Info'!G3="","",'Development Info'!G3) -> 
B3: Year 1 Annual Income and Expenses
B5: Employee Information | G5: Comments
B6: No. | C6: FTE | D6: Employee Job Title | E6: Salary/Wages | F6: Value of Free Rent
D7: On-Site Manager(s) | E7: 0 | F7: 0
D8: On-Site Assistant Manager(s) | E8: 0 | F8: 0
D9: Supportive Services Staff Supervisor(s) | E9: 0
D10: Supportive Services Coordinator, On-Site | E10: 0
D11: Other Supportive Services Staff (inc. Case Manager) | E11: 0
D12: On-Site Maintenance Employee(s) | E12: 0 | F12: 0
D13: On-Site Leasing Agent/Administrative Employee(s) | E13: 0 | F13: 0
D14: On-Site Security Employee(s) | E14: 0 | F14: 0
E15: 0 | F15: 0
E16: 0 | F16: 0
D17: Total Salaries and Value of Free Rent Units | E17: =SUM(E7:E16) -> 0 | F17: =SUM(F7:F16) -> 0
B18: 6711 | D18: Payroll Taxes | E18: 0 | F18: Show free rent as an
B19: 6722 | D19: Workers Compensation | E19: 0 | F19: expense? | I19: Count free rent as an
B20: 6723 | D20: Employee Benefits | E20: 0 | I20: expense?
D21: Employee(s) Payroll Taxes, Workers Comp. & Benefits | E21: =SUM(E18:E20) -> 0 | I21: =IF(F20="Yes",1,0) -> 0
D22: Total Employee(s) Expenses | E22: =E21+E17 -> 0
B25: Employee Units
B26: Income Limit | D26: Job Title(s) of Employee(s) Living On-Site | E26: Unit Type (No. of bdrms.) | F26: Square Footage | H26: Income Limit | I26: Job Title(s) of Employee(s) Living On-Site
E27: 0 | F27: 0 | H27: 0.6 | I27: On-Site Manager(s)
E28: 0 | F28: 0 | H28: 0.55 | I28: On-Site Assistant Manager(s)
E29: 0 | F29: 0 | H29: 0.5 | I29: On-Site Maintenance Employee(s)
E30: Total Square Footage | F30: =SUM(F27:F29) -> 0 | H30: None | I30: On-Site Leasing Agent/Administrative Employee(s)
B31: Year 1 Annual Operating Budget | H31: Other | I31: On-Site Security Employee(s)
B32: Acct. No. | D32: Revenue - Income | E32: Residential | F32: Commercial | G32: Comments | I32: Services Coordinator
B33: 5120/5140 | D33: Rent Revenue - Gross Potential | F33: 0
D34: Restricted Unit Rents | E34: ='Cash Flow'!E6 -> 0
D35: Unrestricted Unit Rents | E35: ='Cash Flow'!E7 -> 0
B36: 5121 | D36: Tenant Assistance Payments
D37: ='Unit Mix'!AL2 -> Subsidy Program Name (Specify) | E37: ='Unit Mix'!BH30*12 -> 0
D38: ='Unit Mix'!AQ2 -> Subsidy Program Name (Specify) | E38: ='Unit Mix'!BI30*12 -> 0
D39: Operating Subsidies | E39: 0
D40: Other: (specify) | E40: 0 | F40: 0
B41: 5910 | D41: Laundry and Vending Revenue | E41: 0
B42: 5170 | D42: Garage and Parking Spaces | E42: 0 | F42: 0
B43: 5990 | D43: Miscellaneous Rent Revenue | E43: 0 | F43: 0
D44: Gross Potential Income (GPI) | E44: =SUM(E33:E43) -> 0 | F44: =SUM(F33:F43) -> 0
D46: Vacancy Rate: Restricted Units | E46: 0.05
D47: Vacancy Rate: Unrestricted Units | E47: 0.05
D48: Vacancy Rate: Tenant Assistance Payments | E48: 0.05
D49: ="Vacancy Rate: " & D40 -> Vacancy Rate: Other: (specify) | E49: 0.05
D50: Vacancy Rate: Laundry & Vending & Other Income | E50: 0.05
D51: Vacancy Rate: Commercial Income | F51: 0.5
B52: 5220/5240 | D52: Vacancy Loss(es) | E52: =(E34*E46)+(E35*E47)+((E37+E38)*E48)+(E40*E49)+((E41+E42+E43)*E50) -> 0 | F52: =+F44*F51 -> 0
D53: Effective Gross Income (EGI) | E53: =+E44-E52 -> 0 | F53: =+F44-F52 -> 0
B54: Acct. No. | D54: Expenses | E54: Residential | F54: Commercial | G54: Comments
D56: Administrative Expenses: 6200/6300
B57: 6203 | D57: Conventions and Meetings | E57: 0 | F57: 0
B58: 6210 | D58: Advertising and Marketing | E58: 0 | F58: 0
B59: 6250 | D59: Other Renting Expenses | E59: 0 | F59: 0
B60: 6310 | D60: Office/Administrative Salaries -- from above | E60: =E13 -> 0 | F60: 0
B61: 6311 | D61: Office Expenses | E61: 0 | F61: 0
B62: 6312 | D62: Office or Model Apartment Rent | E62: 0 | F62: 0
B63: 6320 | D63: Management Fee | E63: 0 | F63: 0
B64: 6330 | D64: Site/Resident Manager(s) Salaries -- from above | E64: =E7+E8 -> 0 | F64: 0
B65: 6331 | D65: Administrative Free Rent Unit -- from above | E65: =IF(I21=1,F7+F8+F13,0) -> 0 | F65: 0
B66: 6340 | D66: Legal Expense -- Project | E66: 0 | F66: 0
B67: 6350 | D67: Audit Expense | E67: 0 | F67: 0
B68: 6351 | D68: Bookkeeping Fees/Accounting Services | E68: 0 | F68: 0
B69: 6390 | D69: Miscellaneous Administrative Expenses | E69: 0 | F69: 0
B70: 6263T | D70: Total Administrative Expenses | E70: =SUM(E57:E69) -> 0 | F70: =SUM(F57:F69) -> 0
B71: Acct. No. | D71: Expenses | E71: Residential | F71: Commercial | G71: Comments
D72: Utilities Expenses: 6400
B73: 6450 | D73: Electricity | E73: 0 | F73: 0
B74: 6451 | D74: Water | E74: 0 | F74: 0
B75: 6452 | D75: Gas | E75: 0 | F75: 0
B76: 6453 | D76: Sewer | E76: 0 | F76: 0
D77: Other Utilities: (specify) | E77: 0 | F77: 0
B78: 6400T | D78: Total Utilities Expenses | E78: =SUM(E73:E77) -> 0 | F78: =SUM(F73:F77) -> 0
D79: Operating and Maintenane Expenses: 6500 | G79: Comments
B80: 6510 | D80: Payroll -- from above | E80: =E12+E14+E15+E16 -> 0 | F80: 0
B81: 6515 | D81: Supplies | E81: 0 | F81: 0
B82: 6520 | D82: Contracts | E82: 0 | F82: 0
B83: 6521 | D83: Operating & Maintenance Free Rent Unit -- from above | E83: =IF(I21=1,F12+F15+F16,0) -> 0 | F83: 0
B84: 6525 | D84: Garbage and Trash Removal | E84: 0 | F84: 0
B85: 6530 | D85: Security Contract | E85: 0 | F85: 0
B86: 6531 | D86: Security Free Rent Unit -- from above | E86: =IF(I21=1,F14,0) -> 0 | F86: 0
B87: 6546 | D87: Heating/Cooling Repairs and Maintenance | E87: 0 | F87: 0
B88: 6548 | D88: Snow Removal | E88: 0 | F88: 0
B89: 6570 | D89: Vehicle & Maintenance Equipment Operation/Reports | E89: 0 | F89: 0
B90: 6590 | D90: Miscellaneous Operating and Maintenance Expenses | E90: 0 | F90: 0
B91: 6500T | D91: Total Operating & Maintenance Expenses | E91: =SUM(E80:E90) -> 0 | F91: =SUM(F80:F90) -> 0
D92: Taxes and Insurance: 6700 | G92: Comments
B93: 6710 | D93: Real Estate Taxes | E93: 0 | F93: 0
B94: 6711 | D94: Payroll Taxes (Project's Share) -- from above | E94: =E18 -> 0 | F94: 0
B95: 6720 | D95: Property and Liability Insurance (Hazard) | E95: 0 | F95: 0
B96: 6729 | D96: Other Insurance (e.g. Earthquake) | E96: 0 | F96: 0
B97: 6721 | D97: Fidelity Bond Insurance | E97: 0 | F97: 0
B98: 6722 | D98: Worker's Compensation -- from above | E98: =E19 -> 0 | F98: 0
B99: 6723 | D99: Health Insurance/Other Employee Benefits--from above | E99: =E20 -> 0 | F99: 0
B100: 6790 | D100: Miscellaneous Taxes, Licenses, Permits & Insurance | E100: 0 | F100: 0
B101: 6700T | D101: Total Taxes and Insurance | E101: =SUM(E93:E100) -> 0 | F101: =SUM(F93:F100) -> 0
D102: Supportive Services Costs: 6900 | G102: Comments | H102: Max allowed
B103: 6990 | D103: Staff Supervisor(s) Salaries - from above | E103: =E9 -> 0 | F103: 0 | H103: =(E104+E105)*0.1 -> 0
B104: 6990 | D104: Services Coordinator Salaries, On-Site - from above | E104: =E10 -> 0 | F104: 0
B105: 6990 | D105: Other Supportive Services Staff Salaries - from above | E105: =E11 -> 0 | F105: 0
B106: 6990 | D106: Supportive Services Admin Overhead | E106: 0 | F106: 0 | H106: =SUM(E103:E108)*0.15 -> 0
B107: 6990 | D107: Other Supportive Services Costs: (specify) | E107: 0 | F107: 0
B108: 6990 | D108: Other Supportive Services Costs: (specify) | E108: 0 | F108: 0
B109: 6900T | D109: Total Supportive Services Costs | E109: =SUM(E103:E108) -> 0 | F109: =SUM(F103:F108) -> 0 | H109: ='Supportive Services Costs'!AI12 -> 0
D111: Total Operating Expenses | E111: =E70+E78+E91+E101+E109 -> 0 | F111: =F70+F78+F91+F101+F109 -> 0 | G111: Comments
D112: Funded Reserves: 7200 | E112: Residential | F112: Commercial
B113: 7210 | D113: Required Replacement Reserve Deposits | E113: 0 | F113: 0
B114: 7220 | D114: Other Reserves: (specify) | E114: 0 | F114: 0
B115: 7230 | D115: Other Reserves: (specify) | E115: 0 | F115: 0
B116: 7240 | D116: Other Reserves: (specify) | E116: 0 | F116: 0
D117: Total Reserves | E117: =SUM(E113:E116) -> 0 | F117: =SUM(F113:F116) -> 0
D118: Ground Lease | E118: Residential | F118: Commercial
D119: Ground Lease | E119: 0 | F119: 0
D120: Total Ground Lease | E120: =SUM(E119:E119) -> 0 | F120: =SUM(F119:F119) -> 0
D121: Net Operating Income | E121: =E53-E111-E117-E120 -> 0 | F121: =F53-F111-F117-F120 -> 0
D123: Financial Expenses: 6800 | G123: Comments
B124: 6820 | D124: 1st Mortgage Debt Service | E124: 0 | F124: 0
B125: 6830 | D125: 2nd Mortgage Debt Service | E125: 0 | F125: 0
B126: 6840 | D126: 3rd Mortgage Debt Service | E126: 0 | F126: 0
B127: 6890 | D127: Monitoring Fee | E127: 0 | F127: 0
B128: 6890 | D128: Miscellaneous Financial Expenses: (specify) | E128: 0 | F128: 0
B129: 6890 | D129: Miscellaneous Financial Expenses: (specify) | E129: 0 | F129: 0
B130: 6890 | D130: Miscellaneous Financial Expenses: (specify) | E130: 0 | F130: 0
B131: 6800T | D131: Total Financial Expenses | E131: =SUM(E124:E130) -> 0 | F131: =SUM(F124:F130) -> 0
D132: Cash Flow | E132: =+E121-E131 -> 0 | F132: =+F121-F131 -> 0
B134: 7190 | D134: Asset Management/Similar Fees | E134: 0 | F134: 0
E135: Per Year | F135: Per Month
B136: Total Operating Expenses Per Unit
B137: Without any Adjustments | E137: =IFERROR(E111/'Unit Mix'!I30,0) -> 0 | F137: =+E137/12 -> 0
B138: With the Value of Rent-Free Units Included | E138: =IFERROR(IF(I21=1,+(F17+E111)/'Unit Mix'!I30,E111/'Unit Mix'!I30),0) -> 0 | F138: =+E138/12 -> 0
B139: Without RE Taxes, Social Services Coordinator or Social Services/Social Programs and With the Value of Rent Fee Units Included | E139: =IFERROR((IF(I21=1,+((F17+E111)-(E93+E109))/'Unit Mix'!I30,(E111-(E93+E109))/'Unit Mix'!I30)),0) -> 0 | F139: =+E139/12 -> 0
B143: End of Document

Sheet HCD Reserves Calculator (hidden)
B2: HCD Reserve Requirements
B4: Project Name | F4: =ProjectName -> 0 | AA4: Number of Project Units: | AI4: =TotalUnits -> 0
B6: Replacement Reserve Calculator UMR §8309
B7: (a) | C7: 0.6% of New construction costs (structures excluding contractor profit, overhead, and general requirements and insurance): | AF7: =SUM('Dev Budget'!W34:W44)-'Dev Budget'!W36-'Dev Budget'!W37-'Dev Budget'!W38-'Dev Budget'!W40 -> 0 | AJ7: =$AF$7*0.006 -> 0
C8: $500 per unit: (This is a placeholder for rehab projects and may be subject to higher amount) | AF8: 500 | AJ8: =$AI$4*AF8 -> 0
B9: (b) | C9: Replacement Reserve Amount = New construction: lesser of (a) and (b); Rehab: (b) | AJ9: =IF(IsAcquisition,AJ8,MIN($AJ$7:$AM$8)) -> 0
C10: HCD Required Replacement Reserve Amount - included in "Operating budget" tab | AJ10: =AJ9 -> 0
B12: Operating Reserve Calculator
B13: 1 | D13: Total Operating Expenses Excluding On-Site Service Coordinator Salaries. Operating Budget Cell (E111) minus Operating Budget Cell (E105) | AF13: TAX CREDIT Project 3 Month Reserve Required | AJ13: NON-TAX CREDIT Project 4 Month Reserve Required
D14: (a) Total Operating Expenses: | P14: =Operating!E111 -> 0 | U14: Amount subject to reserve calculation: (a - b) | AB14: =SUM($P$14-$P$15) -> 0 | AF14: =$AB$14/12*3 -> 0 | AJ14: =$AB$14/12*4 -> 0
D15: (b) Minus: On-Site Service Coordinator Salaries: | P15: =Operating!E104 -> 0
B16: 2 | D16: Replacement Reserve amount from above: (Cell AJ10) | AB16: =$AJ$10 -> 0 | AF16: =$AB$16/12*3 -> 0 | AJ16: =$AB$16/12*4 -> 0
B17: 3 | D17: Debt Service (including all HCD 0.42% Fees and Bond Issuer Fee)
D18: Name of Lender Operating Budget cells (D124 to D130) | AB18: Annual Debt Service Amount | AF18: TAX CREDIT Project 3 Month Reserve Required | AJ18: NON-TAX CREDIT Project 4 Month Reserve Required
D19: =Operating!D124 -> 1st Mortgage Debt Service | AB19: =Operating!E124 -> 0 | AF19: =IFERROR(AB19/12*3,0) -> 0 | AJ19: =IFERROR(AB19/12*4,0) -> 0
D20: =Operating!D125 -> 2nd Mortgage Debt Service | AB20: =Operating!E125 -> 0 | AF20: =IFERROR(AB20/12*3,0) -> 0 | AJ20: =IFERROR(AB20/12*4,0) -> 0
D21: =Operating!D126 -> 3rd Mortgage Debt Service | AB21: =Operating!E126 -> 0 | AF21: =IFERROR(AB21/12*3,0) -> 0 | AJ21: 0
D22: =Operating!D127 -> Monitoring Fee | AB22: =Operating!E127 -> 0 | AF22: =IFERROR(AB22/12*3,0) -> 0 | AJ22: =IFERROR(AB22/12*4,0) -> 0
D23: =Operating!D128 -> Miscellaneous Financial Expenses: (specify) | AB23: =Operating!E128 -> 0 | AF23: =IFERROR(AB23/12*3,0) -> 0 | AJ23: =IFERROR(AB23/12*4,0) -> 0
D24: =Operating!D129 -> Miscellaneous Financial Expenses: (specify) | AB24: =Operating!E129 -> 0 | AF24: =IFERROR(AB24/12*3,0) -> 0 | AJ24: =IFERROR(AB24/12*4,0) -> 0
D25: =Operating!D130 -> Miscellaneous Financial Expenses: (specify) | AB25: =Operating!E130 -> 0 | AF25: =IFERROR(AB25/12*3,0) -> 0 | AJ25: 0
D26: Other (Specify) | AF26: =IFERROR(AB26/12*3,0) -> 0 | AJ26: 0
D27: Totals | AB27: =SUM(AB19:AE26) -> 0 | AF27: =SUM(AF19:AI26) -> 0 | AJ27: =SUM(AJ19:AM26) -> 0
B28: UMR Required Operating Reserve Amount: | AF28: =AF14+AF16+AF27 -> 0 | AJ28: =AJ14+AJ16+AJ27 -> 0
B29: If Reserve amounts are different than the required amount, enter Reserve amounts and how they are calculated below:
B32: Transition Reserve Pool Fee Calculator | L32: Pooled Transition Reserve Policy
B33: Does the Project propose use of Project-based rental assistance?
B35: Subsidy #1 | E35: =IF('Unit Mix'!$AL$2<>"Subsidy Program Name (Specify)",'Unit Mix'!$AL$2,"None") -> None | M35: Contract Term: (enter in years) | U35: Subsidy #2 | X35: =IF('Unit Mix'!$AQ$2<>"Subsidy Program Name (Specify)",'Unit Mix'!$AQ$2,"None") -> None | AF35: Contract Term: (enter in years)
B36: Bedroom Size | E36: Number of Units | I36: Net Contract Rent | M36: Annual Subsidy | U36: Bedroom Size | X36: Number of Units | AB36: Net Contract Rent | AF36: Annual Subsidy
B37: 0 | M37: =E37*I37*12 -> 0 | U37: 0 | AF37: =X37*AB37*12 -> 0
B38: 1 | M38: =E38*I38*12 -> 0 | U38: 1 | AF38: =X38*AB38*12 -> 0
B39: 2 | M39: 0 | U39: 2 | AF39: 0
B40: 3 | M40: 0 | U40: 3 | AF40: 0
B41: 4 | M41: =E41*I41*12 -> 0 | U41: 4 | AF41: =X41*AB41*12 -> 0
F42: Maximum Total Annual Subsidy | M42: =SUM(M37:P41) -> 0 | Y42: Maximum Total Annual Subsidy | AF42: =SUM(AF37:AI41) -> 0
B43: Pooled transition reserve fee for Subsidy #1 (15% of maximum total annual subsidy) | M43: =M42*0.15 -> 0 | U43: Pooled transition reserve fee for Subsidy #2 (15% of maximum total annual subsidy) | AF43: =AF42*0.15 -> 0
B45: Local Operating Subsidy Name:
B46: Total Operating Subsidy Amount
B47: Number of years included in total operating subsidy
B48: One year's worth of operating subsidy | M48: =IF(M46=0,0,M46/M47) -> 0
B49: Pooled transition reserve fee for Subsidy (15% of one year's worth of operating subsidy) | M49: =M48*0.15 -> 0
B51: Total Pooled Transition Reserve Fee | K51: =SUM(M43,AF43,M49) -> 0
B53: Applicant comments:
B56: End of Document

Sheet Cash Flow (hidden)
B2: =IF('Development Info'!G3="","",'Development Info'!G3) -> 
B3: Cash Flow Analysis
B4: Is Income from Restricted Units based on Restricted or Proposed Rents? | J4: Restricted Rents | L4: =IF(J4<>"Proposed Rents",1,0) -> 1
B5: Income From Housing Units | D5: Inflation | E5: Year 1 | F5: Year 2 | G5: Year 3 | H5: Year 4 | I5: Year 5 | J5: Year 6 | K5: Year 7 | L5: Year 8 | M5: Year 9 | N5: Year 10 | O5: Year 11 | P5: Year 12 | Q5: Year 13 | R5: Year 14 | S5: Year 15 | T5: Year 16 | U5: Year 17 | V5: Year 18 | W5: Year 19 | X5: Year 20 | Y5: Year 21 | Z5: Year 22 | AA5: Year 23 | AB5: Year 24 | AC5: Year 25 | AD5: Year 26 | AE5: Year 27 | AF5: Year 28 | AG5: Year 29 | AH5: Year 30 | AI5: Year 31 | AJ5: Year 32 | AK5: Year 33 | AL5: Year 34 | AM5: Year 35 | AN5: Year 36 | AO5: Year 37 | AP5: Year 38 | AQ5: Year 39 | AR5: Year 40
B6: Restricted Unit Rents | D6: 0.025 | E6: =IF(L4=1,'Unit Mix'!AO31,'Unit Mix'!AO32) -> 0 | F6: =E6*(1+$D$6) -> 0 | G6: 0 | H6: 0 | I6: 0 | J6: 0 | K6: 0 | L6: 0 | M6: 0 | N6: 0 | O6: 0 | P6: 0 | Q6: 0 | R6: 0 | S6: =R6*(1+$D$6) -> 0 | T6: =S6*(1+$D$6) -> 0 | U6: 0 | V6: 0 | W6: 0 | X6: 0 | Y6: 0 | Z6: 0 | AA6: 0 | AB6: 0 | AC6: 0 | AD6: 0 | AE6: 0 | AF6: 0 | AG6: 0 | AH6: 0 | AI6: 0 | AJ6: 0 | AK6: 0 | AL6: 0 | AM6: 0 | AN6: 0 | AO6: 0 | AP6: 0 | AQ6: 0 | AR6: 0
B7: Unrestricted Units | D7: 0.025 | E7: ='Unit Mix'!AO33 -> 0 | F7: =E7*(1+$D$7) -> 0 | G7: 0 | H7: 0 | I7: 0 | J7: 0 | K7: 0 | L7: 0 | M7: 0 | N7: 0 | O7: 0 | P7: 0 | Q7: 0 | R7: 0 | S7: =R7*(1+$D$7) -> 0 | T7: =S7*(1+$D$7) -> 0 | U7: 0 | V7: 0 | W7: 0 | X7: 0 | Y7: 0 | Z7: 0 | AA7: 0 | AB7: 0 | AC7: 0 | AD7: 0 | AE7: 0 | AF7: 0 | AG7: 0 | AH7: 0 | AI7: 0 | AJ7: 0 | AK7: 0 | AL7: 0 | AM7: 0 | AN7: 0 | AO7: 0 | AP7: 0 | AQ7: 0 | AR7: 0
B8: Tenant Assistance Payments
B9: =Operating!D37 -> Subsidy Program Name (Specify) | D9: 0.025 | E9: =Operating!E37 -> 0 | F9: =E9*(1+$D$9) -> 0 | G9: =F9*(1+$D$9) -> 0 | H9: =G9*(1+$D$9) -> 0 | I9: 0 | J9: 0 | K9: 0 | L9: 0 | M9: 0 | N9: 0 | O9: 0 | P9: 0 | Q9: 0 | R9: 0 | S9: =R9*(1+$D$9) -> 0 | T9: =S9*(1+$D$9) -> 0 | U9: 0 | V9: 0 | W9: 0 | X9: 0 | Y9: 0 | Z9: 0 | AA9: 0 | AB9: 0 | AC9: 0 | AD9: 0 | AE9: 0 | AF9: 0 | AG9: 0 | AH9: 0 | AI9: 0 | AJ9: 0 | AK9: 0 | AL9: 0 | AM9: 0 | AN9: 0 | AO9: 0 | AP9: 0 | AQ9: 0 | AR9: 0
B10: =Operating!D38 -> Subsidy Program Name (Specify) | D10: 0.025 | E10: =Operating!E38 -> 0 | F10: =E10*(1+$D$10) -> 0 | G10: =F10*(1+$D$10) -> 0 | H10: =G10*(1+$D$10) -> 0 | I10: 0 | J10: 0 | K10: 0 | L10: 0 | M10: 0 | N10: 0 | O10: 0 | P10: 0 | Q10: 0 | R10: 0 | S10: =R10*(1+$D$10) -> 0 | T10: =S10*(1+$D$10) -> 0 | U10: 0 | V10: 0 | W10: 0 | X10: 0 | Y10: 0 | Z10: 0 | AA10: 0 | AB10: 0 | AC10: 0 | AD10: 0 | AE10: 0 | AF10: 0 | AG10: 0 | AH10: 0 | AI10: 0 | AJ10: 0 | AK10: 0 | AL10: 0 | AM10: 0 | AN10: 0 | AO10: 0 | AP10: 0 | AQ10: 0 | AR10: 0
B11: Operating Subsidies | D11: 0.02 | E11: =Operating!E39 -> 0 | F11: =E11*(1+$D$11) -> 0 | G11: =F11*(1+$D$11) -> 0 | H11: 0 | I11: 0 | J11: 0 | K11: 0 | L11: 0 | M11: 0 | N11: 0 | O11: 0 | P11: 0 | Q11: 0 | R11: 0 | S11: =R11*(1+$D$11) -> 0 | T11: =S11*(1+$D$11) -> 0 | U11: 0 | V11: 0 | W11: 0 | X11: 0 | Y11: 0 | Z11: 0 | AA11: 0 | AB11: 0 | AC11: 0 | AD11: 0 | AE11: 0 | AF11: 0 | AG11: 0 | AH11: 0 | AI11: 0 | AJ11: 0 | AK11: 0 | AL11: 0 | AM11: 0 | AN11: 0 | AO11: 0 | AP11: 0 | AQ11: 0 | AR11: 0
B12: =Operating!D40 -> Other: (specify) | D12: =D9 -> 0.025 | E12: 0 | F12: 0 | G12: 0 | H12: 0 | I12: 0 | J12: 0 | K12: 0 | L12: 0 | M12: 0 | N12: 0 | O12: 0 | P12: 0 | Q12: 0 | R12: 0 | S12: 0 | T12: 0 | U12: 0 | V12: 0 | W12: 0 | X12: 0 | Y12: 0 | Z12: 0 | AA12: 0 | AB12: 0 | AC12: 0 | AD12: 0 | AE12: 0 | AF12: 0 | AG12: 0 | AH12: 0 | AI12: 0 | AJ12: 0 | AK12: 0 | AL12: 0 | AM12: 0 | AN12: 0 | AO12: 0 | AP12: 0 | AQ12: 0 | AR12: 0
B13: Gross Potential Income - Housing | E13: =SUM(E6:E12) -> 0 | F13: 0 | G13: 0 | H13: 0 | I13: 0 | J13: 0 | K13: 0 | L13: 0 | M13: 0 | N13: 0 | O13: 0 | P13: 0 | Q13: 0 | R13: 0 | S13: 0 | T13: 0 | U13: 0 | V13: 0 | W13: 0 | X13: 0 | Y13: 0 | Z13: 0 | AA13: 0 | AB13: 0 | AC13: 0 | AD13: 0 | AE13: 0 | AF13: 0 | AG13: 0 | AH13: 0 | AI13: 0 | AJ13: 0 | AK13: 0 | AL13: 0 | AM13: 0 | AN13: 0 | AO13: 0 | AP13: 0 | AQ13: 0 | AR13: 0
B15: Other Income
B16: Laundry & Vending | D16: 0.025 | E16: =Operating!E41 -> 0 | F16: =E16*(1+$D$16) -> 0 | G16: 0 | H16: 0 | I16: 0 | J16: 0 | K16: 0 | L16: 0 | M16: 0 | N16: 0 | O16: 0 | P16: 0 | Q16: 0 | R16: 0 | S16: =R16*(1+$D$16) -> 0 | T16: =S16*(1+$D$16) -> 0 | U16: 0 | V16: 0 | W16: 0 | X16: 0 | Y16: 0 | Z16: 0 | AA16: 0 | AB16: 0 | AC16: 0 | AD16: 0 | AE16: 0 | AF16: 0 | AG16: 0 | AH16: 0 | AI16: 0 | AJ16: 0 | AK16: 0 | AL16: 0 | AM16: 0 | AN16: 0 | AO16: 0 | AP16: 0 | AQ16: 0 | AR16: 0
B17: Other Income | D17: 0.025 | E17: =Operating!E42+Operating!E43 -> 0 | F17: =E17*(1+$D$17) -> 0 | G17: 0 | H17: 0 | I17: 0 | J17: 0 | K17: 0 | L17: 0 | M17: 0 | N17: 0 | O17: 0 | P17: 0 | Q17: 0 | R17: 0 | S17: =R17*(1+$D$17) -> 0 | T17: =S17*(1+$D$17) -> 0 | U17: 0 | V17: 0 | W17: 0 | X17: 0 | Y17: 0 | Z17: 0 | AA17: 0 | AB17: 0 | AC17: 0 | AD17: 0 | AE17: 0 | AF17: 0 | AG17: 0 | AH17: 0 | AI17: 0 | AJ17: 0 | AK17: 0 | AL17: 0 | AM17: 0 | AN17: 0 | AO17: 0 | AP17: 0 | AQ17: 0 | AR17: 0
B18: Commercial Income | D18: 0.025 | E18: =Operating!F44 -> 0 | F18: =E18*(1+$D$18) -> 0 | G18: 0 | H18: 0 | I18: 0 | J18: 0 | K18: 0 | L18: 0 | M18: 0 | N18: 0 | O18: 0 | P18: 0 | Q18: 0 | R18: 0 | S18: =R18*(1+$D$18) -> 0 | T18: =S18*(1+$D$18) -> 0 | U18: 0 | V18: 0 | W18: 0 | X18: 0 | Y18: 0 | Z18: 0 | AA18: 0 | AB18: 0 | AC18: 0 | AD18: 0 | AE18: 0 | AF18: 0 | AG18: 0 | AH18: 0 | AI18: 0 | AJ18: 0 | AK18: 0 | AL18: 0 | AM18: 0 | AN18: 0 | AO18: 0 | AP18: 0 | AQ18: 0 | AR18: 0
B19: Gross Potential Income - Other | E19: =SUM(E16:E18) -> 0 | F19: 0 | G19: 0 | H19: 0 | I19: 0 | J19: 0 | K19: 0 | L19: 0 | M19: 0 | N19: 0 | O19: 0 | P19: 0 | Q19: 0 | R19: 0 | S19: 0 | T19: 0 | U19: 0 | V19: 0 | W19: 0 | X19: 0 | Y19: 0 | Z19: 0 | AA19: 0 | AB19: 0 | AC19: 0 | AD19: 0 | AE19: 0 | AF19: 0 | AG19: 0 | AH19: 0 | AI19: 0 | AJ19: 0 | AK19: 0 | AL19: 0 | AM19: 0 | AN19: 0 | AO19: 0 | AP19: 0 | AQ19: 0 | AR19: 0
B21: Gross Potential Income - Total | E21: =E13+E19 -> 0 | F21: 0 | G21: 0 | H21: 0 | I21: 0 | J21: 0 | K21: 0 | L21: 0 | M21: 0 | N21: 0 | O21: 0 | P21: 0 | Q21: 0 | R21: 0 | S21: 0 | T21: 0 | U21: 0 | V21: 0 | W21: 0 | X21: 0 | Y21: 0 | Z21: 0 | AA21: 0 | AB21: 0 | AC21: 0 | AD21: 0 | AE21: 0 | AF21: 0 | AG21: 0 | AH21: 0 | AI21: 0 | AJ21: 0 | AK21: 0 | AL21: 0 | AM21: 0 | AN21: 0 | AO21: 0 | AP21: 0 | AQ21: 0 | AR21: 0
B23: Vacancy Assumptions
B24: Restricted Units | D24: =Operating!E46 -> 0.05 | E24: =$D24*E6 -> 0 | F24: =$D24*F6 -> 0 | G24: 0 | H24: 0 | I24: 0 | J24: 0 | K24: 0 | L24: 0 | M24: 0 | N24: 0 | O24: 0 | P24: 0 | Q24: 0 | R24: 0 | S24: 0 | T24: 0 | U24: 0 | V24: 0 | W24: 0 | X24: 0 | Y24: 0 | Z24: 0 | AA24: 0 | AB24: 0 | AC24: 0 | AD24: 0 | AE24: 0 | AF24: 0 | AG24: 0 | AH24: 0 | AI24: 0 | AJ24: 0 | AK24: 0 | AL24: 0 | AM24: 0 | AN24: 0 | AO24: 0 | AP24: 0 | AQ24: 0 | AR24: 0
B25: Unrestricted Units | D25: =Operating!E47 -> 0.05 | E25: =$D25*E7 -> 0 | F25: 0 | G25: 0 | H25: 0 | I25: 0 | J25: 0 | K25: 0 | L25: 0 | M25: 0 | N25: 0 | O25: 0 | P25: 0 | Q25: 0 | R25: 0 | S25: 0 | T25: 0 | U25: 0 | V25: 0 | W25: 0 | X25: 0 | Y25: 0 | Z25: 0 | AA25: 0 | AB25: 0 | AC25: 0 | AD25: 0 | AE25: 0 | AF25: 0 | AG25: 0 | AH25: 0 | AI25: 0 | AJ25: 0 | AK25: 0 | AL25: 0 | AM25: 0 | AN25: 0 | AO25: 0 | AP25: 0 | AQ25: 0 | AR25: 0
B26: Tenant Assistance Payments | D26: =Operating!E48 -> 0.05 | E26: =$D26*(E9+E10) -> 0 | F26: =$D26*(F9+F10) -> 0 | G26: 0 | H26: 0 | I26: 0 | J26: 0 | K26: 0 | L26: 0 | M26: 0 | N26: 0 | O26: 0 | P26: 0 | Q26: 0 | R26: 0 | S26: 0 | T26: 0 | U26: 0 | V26: 0 | W26: 0 | X26: 0 | Y26: 0 | Z26: 0 | AA26: 0 | AB26: 0 | AC26: 0 | AD26: 0 | AE26: 0 | AF26: 0 | AG26: 0 | AH26: 0 | AI26: 0 | AJ26: 0 | AK26: 0 | AL26: 0 | AM26: 0 | AN26: 0 | AO26: 0 | AP26: 0 | AQ26: 0 | AR26: 0
B27: =Operating!D40 -> Other: (specify) | D27: =Operating!E49 -> 0.05 | E27: =$D27*E12 -> 0 | F27: =$D27*F12 -> 0 | G27: 0 | H27: 0 | I27: 0 | J27: 0 | K27: 0 | L27: 0 | M27: 0 | N27: 0 | O27: 0 | P27: 0 | Q27: 0 | R27: 0 | S27: 0 | T27: 0 | U27: 0 | V27: 0 | W27: 0 | X27: 0 | Y27: 0 | Z27: 0 | AA27: 0 | AB27: 0 | AC27: 0 | AD27: 0 | AE27: 0 | AF27: 0 | AG27: 0 | AH27: 0 | AI27: 0 | AJ27: 0 | AK27: 0 | AL27: 0 | AM27: 0 | AN27: 0 | AO27: 0 | AP27: 0 | AQ27: 0 | AR27: 0
B28: Laundry/Vending/Other Income | D28: =Operating!E50 -> 0.05 | E28: =$D28*(E16+E17) -> 0 | F28: =$D28*(F16+F17) -> 0 | G28: 0 | H28: 0 | I28: 0 | J28: 0 | K28: 0 | L28: 0 | M28: 0 | N28: 0 | O28: 0 | P28: 0 | Q28: 0 | R28: 0 | S28: 0 | T28: 0 | U28: 0 | V28: 0 | W28: 0 | X28: 0 | Y28: 0 | Z28: 0 | AA28: 0 | AB28: 0 | AC28: 0 | AD28: 0 | AE28: 0 | AF28: 0 | AG28: 0 | AH28: 0 | AI28: 0 | AJ28: 0 | AK28: 0 | AL28: 0 | AM28: 0 | AN28: 0 | AO28: 0 | AP28: 0 | AQ28: 0 | AR28: 0
B29: Commercial Income | D29: =Operating!F51 -> 0.5 | E29: =$D29*E18 -> 0 | F29: =$D29*F18 -> 0 | G29: 0 | H29: 0 | I29: 0 | J29: 0 | K29: 0 | L29: 0 | M29: 0 | N29: 0 | O29: 0 | P29: 0 | Q29: 0 | R29: 0 | S29: 0 | T29: 0 | U29: 0 | V29: 0 | W29: 0 | X29: 0 | Y29: 0 | Z29: 0 | AA29: 0 | AB29: 0 | AC29: 0 | AD29: 0 | AE29: 0 | AF29: 0 | AG29: 0 | AH29: 0 | AI29: 0 | AJ29: 0 | AK29: 0 | AL29: 0 | AM29: 0 | AN29: 0 | AO29: 0 | AP29: 0 | AQ29: 0 | AR29: 0
B30: Total Vacancy Loss | E30: =SUM(E24:E29) -> 0 | F30: =SUM(F24:F29) -> 0 | G30: 0 | H30: 0 | I30: 0 | J30: 0 | K30: 0 | L30: 0 | M30: 0 | N30: 0 | O30: 0 | P30: 0 | Q30: 0 | R30: 0 | S30: 0 | T30: 0 | U30: 0 | V30: 0 | W30: 0 | X30: 0 | Y30: 0 | Z30: 0 | AA30: 0 | AB30: 0 | AC30: 0 | AD30: 0 | AE30: 0 | AF30: 0 | AG30: 0 | AH30: 0 | AI30: 0 | AJ30: 0 | AK30: 0 | AL30: 0 | AM30: 0 | AN30: 0 | AO30: 0 | AP30: 0 | AQ30: 0 | AR30: 0
B32: Effective Gross Income | E32: =E21-E30 -> 0 | F32: 0 | G32: 0 | H32: 0 | I32: 0 | J32: 0 | K32: 0 | L32: 0 | M32: 0 | N32: 0 | O32: 0 | P32: 0 | Q32: 0 | R32: 0 | S32: 0 | T32: 0 | U32: 0 | V32: 0 | W32: 0 | X32: 0 | Y32: 0 | Z32: 0 | AA32: 0 | AB32: 0 | AC32: 0 | AD32: 0 | AE32: 0 | AF32: 0 | AG32: 0 | AH32: 0 | AI32: 0 | AJ32: 0 | AK32: 0 | AL32: 0 | AM32: 0 | AN32: 0 | AO32: 0 | AP32: 0 | AQ32: 0 | AR32: 0
B34: Operating Expenses & Reserve Deposits
B35: Residential Exp. (w/o Real Estate Taxes & Sup. Services) | D35: 0.035 | E35: =Operating!E111-Operating!E93-Operating!E109 -> 0 | F35: =(1+$D$35)*E35 -> 0 | G35: 0 | H35: 0 | I35: 0 | J35: 0 | K35: 0 | L35: 0 | M35: 0 | N35: 0 | O35: 0 | P35: 0 | Q35: 0 | R35: 0 | S35: =(1+$D$35)*R35 -> 0 | T35: =(1+$D$35)*S35 -> 0 | U35: 0 | V35: 0 | W35: 0 | X35: 0 | Y35: 0 | Z35: 0 | AA35: 0 | AB35: 0 | AC35: 0 | AD35: 0 | AE35: 0 | AF35: 0 | AG35: 0 | AH35: 0 | AI35: 0 | AJ35: 0 | AK35: 0 | AL35: 0 | AM35: 0 | AN35: 0 | AO35: 0 | AP35: 0 | AQ35: 0 | AR35: 0
B36: Real Estate Taxes | D36: 0.02 | E36: =Operating!E93 -> 0 | F36: =(1+$D$36)*E36 -> 0 | G36: =(1+$D$36)*F36 -> 0 | H36: 0 | I36: 0 | J36: 0 | K36: 0 | L36: 0 | M36: 0 | N36: 0 | O36: 0 | P36: 0 | Q36: 0 | R36: 0 | S36: =(1+$D$36)*R36 -> 0 | T36: =(1+$D$36)*S36 -> 0 | U36: 0 | V36: 0 | W36: 0 | X36: 0 | Y36: 0 | Z36: 0 | AA36: 0 | AB36: 0 | AC36: 0 | AD36: 0 | AE36: 0 | AF36: 0 | AG36: 0 | AH36: 0 | AI36: 0 | AJ36: 0 | AK36: 0 | AL36: 0 | AM36: 0 | AN36: 0 | AO36: 0 | AP36: 0 | AQ36: 0 | AR36: 0
B37: Supportive Services Costs | D37: 0.025 | E37: =Operating!E109 -> 0 | F37: =(1+$D$37)*E37 -> 0 | G37: =(1+$D$37)*F37 -> 0 | H37: =(1+$D$37)*G37 -> 0 | I37: 0 | J37: 0 | K37: 0 | L37: 0 | M37: 0 | N37: 0 | O37: 0 | P37: 0 | Q37: 0 | R37: 0 | S37: 0 | T37: 0 | U37: 0 | V37: 0 | W37: 0 | X37: 0 | Y37: 0 | Z37: 0 | AA37: 0 | AB37: 0 | AC37: 0 | AD37: 0 | AE37: 0 | AF37: 0 | AG37: 0 | AH37: 0 | AI37: 0 | AJ37: 0 | AK37: 0 | AL37: 0 | AM37: 0 | AN37: 0 | AO37: 0 | AP37: 0 | AQ37: 0 | AR37: 0
B38: Replacement Reserve | D38: 0 | E38: =Operating!E113+Operating!F113 -> 0 | F38: =(1+$D$38)*E38 -> 0 | G38: 0 | H38: 0 | I38: 0 | J38: 0 | K38: 0 | L38: 0 | M38: 0 | N38: 0 | O38: 0 | P38: 0 | Q38: 0 | R38: 0 | S38: =(1+$D$38)*R38 -> 0 | T38: =(1+$D$38)*S38 -> 0 | U38: 0 | V38: 0 | W38: 0 | X38: 0 | Y38: 0 | Z38: 0 | AA38: 0 | AB38: 0 | AC38: 0 | AD38: 0 | AE38: 0 | AF38: 0 | AG38: 0 | AH38: 0 | AI38: 0 | AJ38: 0 | AK38: 0 | AL38: 0 | AM38: 0 | AN38: 0 | AO38: 0 | AP38: 0 | AQ38: 0 | AR38: 0
B39: Other Reserves | D39: 0 | E39: =Operating!E114+Operating!E115+Operating!E116+Operating!F114+Operating!F115+Operating!F116 -> 0 | F39: =(1+$D$39)*E39 -> 0 | G39: =(1+$D$39)*F39 -> 0 | H39: 0 | I39: 0 | J39: 0 | K39: 0 | L39: 0 | M39: 0 | N39: 0 | O39: 0 | P39: 0 | Q39: 0 | R39: 0 | S39: =(1+$D$39)*R39 -> 0 | T39: =(1+$D$39)*S39 -> 0 | U39: 0 | V39: 0 | W39: 0 | X39: 0 | Y39: 0 | Z39: 0 | AA39: 0 | AB39: 0 | AC39: 0 | AD39: 0 | AE39: 0 | AF39: 0 | AG39: 0 | AH39: 0 | AI39: 0 | AJ39: 0 | AK39: 0 | AL39: 0 | AM39: 0 | AN39: 0 | AO39: 0 | AP39: 0 | AQ39: 0 | AR39: 0
B40: Ground Lease | D40: 0.02 | E40: =Operating!E119+Operating!F119 -> 0 | F40: =(1+$D$40)*E40 -> 0 | G40: =(1+$D$40)*F40 -> 0 | H40: 0 | I40: 0 | J40: 0 | K40: 0 | L40: 0 | M40: 0 | N40: 0 | O40: 0 | P40: 0 | Q40: 0 | R40: 0 | S40: =(1+$D$40)*R40 -> 0 | T40: =(1+$D$40)*S40 -> 0 | U40: 0 | V40: 0 | W40: 0 | X40: 0 | Y40: 0 | Z40: 0 | AA40: 0 | AB40: 0 | AC40: 0 | AD40: 0 | AE40: 0 | AF40: 0 | AG40: 0 | AH40: 0 | AI40: 0 | AJ40: 0 | AK40: 0 | AL40: 0 | AM40: 0 | AN40: 0 | AO40: 0 | AP40: 0 | AQ40: 0 | AR40: 0
B41: Commercial Expenses | D41: 0.035 | E41: =Operating!F111 -> 0 | F41: =(1+$D$41)*E41 -> 0 | G41: 0 | H41: 0 | I41: 0 | J41: 0 | K41: 0 | L41: 0 | M41: 0 | N41: 0 | O41: 0 | P41: 0 | Q41: 0 | R41: 0 | S41: =(1+$D$41)*R41 -> 0 | T41: =(1+$D$41)*S41 -> 0 | U41: 0 | V41: 0 | W41: 0 | X41: 0 | Y41: 0 | Z41: 0 | AA41: 0 | AB41: 0 | AC41: 0 | AD41: 0 | AE41: 0 | AF41: 0 | AG41: 0 | AH41: 0 | AI41: 0 | AJ41: 0 | AK41: 0 | AL41: 0 | AM41: 0 | AN41: 0 | AO41: 0 | AP41: 0 | AQ41: 0 | AR41: 0
B42: Total Expenses & Reserves | E42: =SUM(E35:E41) -> 0 | F42: 0 | G42: 0 | H42: 0 | I42: 0 | J42: 0 | K42: 0 | L42: 0 | M42: 0 | N42: 0 | O42: 0 | P42: 0 | Q42: 0 | R42: 0 | S42: 0 | T42: 0 | U42: 0 | V42: 0 | W42: 0 | X42: 0 | Y42: 0 | Z42: 0 | AA42: 0 | AB42: 0 | AC42: 0 | AD42: 0 | AE42: 0 | AF42: 0 | AG42: 0 | AH42: 0 | AI42: 0 | AJ42: 0 | AK42: 0 | AL42: 0 | AM42: 0 | AN42: 0 | AO42: 0 | AP42: 0 | AQ42: 0 | AR42: 0
B44: Net Operating Income | E44: =E32-E42 -> 0 | F44: 0 | G44: 0 | H44: 0 | I44: 0 | J44: 0 | K44: 0 | L44: 0 | M44: 0 | N44: 0 | O44: 0 | P44: 0 | Q44: 0 | R44: 0 | S44: 0 | T44: 0 | U44: 0 | V44: 0 | W44: 0 | X44: 0 | Y44: 0 | Z44: 0 | AA44: 0 | AB44: 0 | AC44: 0 | AD44: 0 | AE44: 0 | AF44: 0 | AG44: 0 | AH44: 0 | AI44: 0 | AJ44: 0 | AK44: 0 | AL44: 0 | AM44: 0 | AN44: 0 | AO44: 0 | AP44: 0 | AQ44: 0 | AR44: 0
B46: Debt Service
B47: 1st Mortgage | E47: =Operating!E124+Operating!F124 -> 0 | F47: =$E$47 -> 0 | G47: 0 | H47: 0 | I47: 0 | J47: 0 | K47: 0 | L47: 0 | M47: 0 | N47: 0 | O47: 0 | P47: 0 | Q47: 0 | R47: 0 | S47: 0 | T47: 0 | U47: 0 | V47: 0 | W47: 0 | X47: 0 | Y47: 0 | Z47: 0 | AA47: 0 | AB47: 0 | AC47: 0 | AD47: 0 | AE47: 0 | AF47: 0 | AG47: 0 | AH47: 0 | AI47: 0 | AJ47: 0 | AK47: 0 | AL47: 0 | AM47: 0 | AN47: 0 | AO47: 0 | AP47: 0 | AQ47: 0 | AR47: 0
B48: Bridge Loan (repaid from Investor equity) | E48: 0 | F48: 0 | G48: 0 | H48: 0 | I48: 0
B49: 2nd Mortgage | E49: =Operating!E125+Operating!F125 -> 0 | F49: =$E$49 -> 0 | G49: 0 | H49: 0 | I49: 0 | J49: 0 | K49: 0 | L49: 0 | M49: 0 | N49: 0 | O49: 0 | P49: 0 | Q49: 0 | R49: 0 | S49: 0 | T49: 0 | U49: 0 | V49: 0 | W49: 0 | X49: 0 | Y49: 0 | Z49: 0 | AA49: 0 | AB49: 0 | AC49: 0 | AD49: 0 | AE49: 0 | AF49: 0 | AG49: 0 | AH49: 0 | AI49: 0 | AJ49: 0 | AK49: 0 | AL49: 0 | AM49: 0 | AN49: 0 | AO49: 0 | AP49: 0 | AQ49: 0 | AR49: 0
B50: 3rd Mortgage Debt Service | E50: =Operating!E126+Operating!F126 -> 0 | F50: =$E$50 -> 0 | G50: 0 | H50: 0 | I50: 0 | J50: 0 | K50: 0 | L50: 0 | M50: 0 | N50: 0 | O50: 0 | P50: 0 | Q50: 0 | R50: 0 | S50: 0 | T50: 0 | U50: 0 | V50: 0 | W50: 0 | X50: 0 | Y50: 0 | Z50: 0 | AA50: 0 | AB50: 0 | AC50: 0 | AD50: 0 | AE50: 0 | AF50: 0 | AG50: 0 | AH50: 0 | AI50: 0 | AJ50: 0 | AK50: 0 | AL50: 0 | AM50: 0 | AN50: 0 | AO50: 0 | AP50: 0 | AQ50: 0 | AR50: 0
B51: Monitoring Fee | D51: 0 | E51: =Operating!E127+Operating!F127 -> 0 | F51: =(1+$D$51)*E51 -> 0 | G51: =(1+$D$51)*F51 -> 0 | H51: 0 | I51: 0 | J51: 0 | K51: 0 | L51: 0 | M51: 0 | N51: 0 | O51: 0 | P51: 0 | Q51: 0 | R51: 0 | S51: 0 | T51: 0 | U51: 0 | V51: 0 | W51: 0 | X51: 0 | Y51: 0 | Z51: 0 | AA51: 0 | AB51: 0 | AC51: 0 | AD51: 0 | AE51: 0 | AF51: 0 | AG51: 0 | AH51: 0 | AI51: 0 | AJ51: 0 | AK51: 0 | AL51: 0 | AM51: 0 | AN51: 0 | AO51: 0 | AP51: 0 | AQ51: 0 | AR51: 0
B52: Misc. Financial Expenses: (specify) | E52: =Operating!E128+Operating!F128+Operating!E129+Operating!F129+Operating!E130+Operating!F130 -> 0 | F52: =$E$52 -> 0 | G52: =$E$52 -> 0 | H52: 0 | I52: 0 | J52: 0 | K52: 0 | L52: 0 | M52: 0 | N52: 0 | O52: 0 | P52: 0 | Q52: 0 | R52: 0 | S52: 0 | T52: =S52 -> 0 | U52: 0 | V52: 0 | W52: 0 | X52: 0 | Y52: 0 | Z52: 0 | AA52: 0 | AB52: 0 | AC52: 0 | AD52: 0 | AE52: 0 | AF52: 0 | AG52: 0 | AH52: 0 | AI52: 0 | AJ52: 0 | AK52: 0 | AL52: 0 | AM52: 0 | AN52: 0 | AO52: 0 | AP52: 0 | AQ52: 0 | AR52: 0
B53: Total Required Debt Service | E53: =SUM(E47:E52)-E48 -> 0 | F53: =SUM(F47:F52)-F48 -> 0 | G53: 0 | H53: 0 | I53: 0 | J53: 0 | K53: 0 | L53: 0 | M53: 0 | N53: 0 | O53: 0 | P53: 0 | Q53: 0 | R53: 0 | S53: 0 | T53: 0 | U53: 0 | V53: 0 | W53: 0 | X53: 0 | Y53: 0 | Z53: 0 | AA53: 0 | AB53: 0 | AC53: 0 | AD53: 0 | AE53: 0 | AF53: 0 | AG53: 0 | AH53: 0 | AI53: 0 | AJ53: 0 | AK53: 0 | AL53: 0 | AM53: 0 | AN53: 0 | AO53: 0 | AP53: 0 | AQ53: 0 | AR53: 0
B56: Cash Flow after all debt service | E56: =E44-E53 -> 0 | F56: 0 | G56: 0 | H56: 0 | I56: 0 | J56: 0 | K56: 0 | L56: 0 | M56: 0 | N56: 0 | O56: 0 | P56: 0 | Q56: 0 | R56: 0 | S56: 0 | T56: 0 | U56: 0 | V56: 0 | W56: 0 | X56: 0 | Y56: 0 | Z56: 0 | AA56: 0 | AB56: 0 | AC56: 0 | AD56: 0 | AE56: 0 | AF56: 0 | AG56: 0 | AH56: 0 | AI56: 0 | AJ56: 0 | AK56: 0 | AL56: 0 | AM56: 0 | AN56: 0 | AO56: 0 | AP56: 0 | AQ56: 0 | AR56: 0
B58: Debt Service Coverage Ratio (DSCR) | E58: =IF(E53<=0,0,((E44/E53))) -> 0 | F58: =IF(F53<=0,0,((F44/F53))) -> 0 | G58: 0 | H58: 0 | I58: 0 | J58: 0 | K58: 0 | L58: 0 | M58: 0 | N58: 0 | O58: 0 | P58: 0 | Q58: 0 | R58: 0 | S58: 0 | T58: 0 | U58: 0 | V58: 0 | W58: 0 | X58: 0 | Y58: 0 | Z58: 0 | AA58: 0 | AB58: 0 | AC58: 0 | AD58: 0 | AE58: 0 | AF58: 0 | AG58: 0 | AH58: 0 | AI58: 0 | AJ58: 0 | AK58: 0 | AL58: 0 | AM58: 0 | AN58: 0 | AO58: 0 | AP58: 0 | AQ58: 0 | AR58: 0
B59: Use of Cash Flow After Debt Service - HCD Projects
B60: Asset Mgmt./ Similar Fees | E60: =IF(E56>=E72,E72,MAX(0,E56)) -> 0 | F60: =IF(F56>=F72,F72,MAX(0,F56)) -> 0 | G60: =IF(G56>=G72,G72,MAX(0,G56)) -> 0 | H60: 0 | I60: 0 | J60: 0 | K60: 0 | L60: 0 | M60: 0 | N60: 0 | O60: 0 | P60: 0 | Q60: 0 | R60: 0 | S60: 0 | T60: 0 | U60: 0 | V60: 0 | W60: 0 | X60: 0 | Y60: 0 | Z60: 0 | AA60: 0 | AB60: 0 | AC60: 0 | AD60: 0 | AE60: 0 | AF60: 0 | AG60: 0 | AH60: 0 | AI60: 0 | AJ60: 0 | AK60: 0 | AL60: 0 | AM60: 0 | AN60: 0 | AO60: 0 | AP60: 0 | AQ60: 0 | AR60: 0
B61: Deferred Developer Fee prior to
B62: Distributions & residual receipt payments | E62: =IF(E56-E60<=$E$75,MAX(0,E56-E60),$E$75) -> 0 | F62: =IF(E73+F56-F60<=$E$75,MAX(0,F56-F60),$E$75-E73) -> 0 | G62: =IF(F73+G56-G60<=$E$75,MAX(0,G56-G60),$E$75-F73) -> 0 | H62: 0 | I62: 0 | J62: 0 | K62: 0 | L62: 0 | M62: 0 | N62: 0 | O62: 0 | P62: 0 | Q62: 0 | R62: 0 | S62: 0 | T62: 0 | U62: 0 | V62: 0 | W62: 0 | X62: 0 | Y62: 0 | Z62: 0 | AA62: 0 | AB62: 0 | AC62: 0 | AD62: 0 | AE62: 0 | AF62: 0 | AG62: 0 | AH62: 0 | AI62: 0 | AJ62: 0 | AK62: 0 | AL62: 0 | AM62: 0 | AN62: 0 | AO62: 0 | AP62: 0 | AQ62: 0 | AR62: 0
B63: Cash Available for Residual Receipts Loans
B64: and Sponsor Distributions | E64: =MAX(0,E56-E60-E62) -> 0 | F64: =MAX(0,F56-F60-F62) -> 0 | G64: =MAX(0,G56-G60-G62) -> 0 | H64: 0 | I64: 0 | J64: 0 | K64: 0 | L64: 0 | M64: 0 | N64: 0 | O64: 0 | P64: 0 | Q64: 0 | R64: 0 | S64: 0 | T64: 0 | U64: 0 | V64: 0 | W64: 0 | X64: 0 | Y64: 0 | Z64: 0 | AA64: 0 | AB64: 0 | AC64: 0 | AD64: 0 | AE64: 0 | AF64: 0 | AG64: 0 | AH64: 0 | AI64: 0 | AJ64: 0 | AK64: 0 | AL64: 0 | AM64: 0 | AN64: 0 | AO64: 0 | AP64: 0 | AQ64: 0 | AR64: 0
B65: Sponsor Distributions | D65: 0.5 | E65: =$D65*E64 -> 0 | F65: =+$D65*F64 -> 0 | G65: 0 | H65: 0 | I65: 0 | J65: 0 | K65: 0 | L65: 0 | M65: 0 | N65: 0 | O65: 0 | P65: 0 | Q65: 0 | R65: 0 | S65: 0 | T65: 0 | U65: 0 | V65: 0 | W65: 0 | X65: 0 | Y65: 0 | Z65: 0 | AA65: 0 | AB65: 0 | AC65: 0 | AD65: 0 | AE65: 0 | AF65: 0 | AG65: 0 | AH65: 0 | AI65: 0 | AJ65: 0 | AK65: 0 | AL65: 0 | AM65: 0 | AN65: 0 | AO65: 0 | AP65: 0 | AQ65: 0 | AR65: 0
B66: Jurisdiction Residual Payment | D66: 0.5 | E66: =$D66*E64 -> 0 | F66: =+$D66*F64 -> 0 | G66: 0 | H66: 0 | I66: 0 | J66: 0 | K66: 0 | L66: 0 | M66: 0 | N66: 0 | O66: 0 | P66: 0 | Q66: 0 | R66: 0 | S66: 0 | T66: 0 | U66: 0 | V66: 0 | W66: 0 | X66: 0 | Y66: 0 | Z66: 0 | AA66: 0 | AB66: 0 | AC66: 0 | AD66: 0 | AE66: 0 | AF66: 0 | AG66: 0 | AH66: 0 | AI66: 0 | AJ66: 0 | AK66: 0 | AL66: 0 | AM66: 0 | AN66: 0 | AO66: 0 | AP66: 0 | AQ66: 0 | AR66: 0
B67: Other Residual Payments | D67: 0 | E67: =$D67*E64 -> 0 | F67: =+$D67*F64 -> 0 | G67: 0 | H67: 0 | I67: 0 | J67: 0 | K67: 0 | L67: 0 | M67: 0 | N67: 0 | O67: 0 | P67: 0 | Q67: 0 | R67: 0 | S67: 0 | T67: 0 | U67: 0 | V67: 0 | W67: 0 | X67: 0 | Y67: 0 | Z67: 0 | AA67: 0 | AB67: 0 | AC67: 0 | AD67: 0 | AE67: 0 | AF67: 0 | AG67: 0 | AH67: 0 | AI67: 0 | AJ67: 0 | AK67: 0 | AL67: 0 | AM67: 0 | AN67: 0 | AO67: 0 | AP67: 0 | AQ67: 0 | AR67: 0
B68: Other Residual Payments | D68: 0 | E68: =$D68*E64 -> 0 | F68: =+$D68*F64 -> 0 | G68: 0 | H68: 0 | I68: 0 | J68: 0 | K68: 0 | L68: 0 | M68: 0 | N68: 0 | O68: 0 | P68: 0 | Q68: 0 | R68: 0 | S68: 0 | T68: 0 | U68: 0 | V68: 0 | W68: 0 | X68: 0 | Y68: 0 | Z68: 0 | AA68: 0 | AB68: 0 | AC68: 0 | AD68: 0 | AE68: 0 | AF68: 0 | AG68: 0 | AH68: 0 | AI68: 0 | AJ68: 0 | AK68: 0 | AL68: 0 | AM68: 0 | AN68: 0 | AO68: 0 | AP68: 0 | AQ68: 0 | AR68: 0
B69: Other Residual Payments | D69: 0 | E69: =$D69*E64 -> 0 | F69: =+$D69*F64 -> 0 | G69: 0 | H69: 0 | I69: 0 | J69: 0 | K69: 0 | L69: 0 | M69: 0 | N69: 0 | O69: 0 | P69: 0 | Q69: 0 | R69: 0 | S69: 0 | T69: 0 | U69: 0 | V69: 0 | W69: 0 | X69: 0 | Y69: 0 | Z69: 0 | AA69: 0 | AB69: 0 | AC69: 0 | AD69: 0 | AE69: 0 | AF69: 0 | AG69: 0 | AH69: 0 | AI69: 0 | AJ69: 0 | AK69: 0 | AL69: 0 | AM69: 0 | AN69: 0 | AO69: 0 | AP69: 0 | AQ69: 0 | AR69: 0
B70: Other Residual Payments | D70: 0 | E70: =$D70*E64 -> 0 | F70: =+$D70*F64 -> 0 | G70: 0 | H70: 0 | I70: 0 | J70: 0 | K70: 0 | L70: 0 | M70: 0 | N70: 0 | O70: 0 | P70: 0 | Q70: 0 | R70: 0 | S70: 0 | T70: 0 | U70: 0 | V70: 0 | W70: 0 | X70: 0 | Y70: 0 | Z70: 0 | AA70: 0 | AB70: 0 | AC70: 0 | AD70: 0 | AE70: 0 | AF70: 0 | AG70: 0 | AH70: 0 | AI70: 0 | AJ70: 0 | AK70: 0 | AL70: 0 | AM70: 0 | AN70: 0 | AO70: 0 | AP70: 0 | AQ70: 0 | AR70: 0
B72: Max Asset Mgmt/Similar Fees | D72: 0.035 | E72: =Operating!E134 -> 0 | F72: =(1+$D$72)*E72 -> 0 | G72: =(1+$D$72)*F72 -> 0 | H72: 0 | I72: 0 | J72: 0 | K72: 0 | L72: 0 | M72: 0 | N72: 0 | O72: 0 | P72: 0 | Q72: 0 | R72: 0 | S72: =(1+$D$72)*R72 -> 0 | T72: 0 | U72: 0 | V72: 0 | W72: 0 | X72: 0 | Y72: 0 | Z72: 0 | AA72: 0 | AB72: 0 | AC72: 0 | AD72: 0 | AE72: 0 | AF72: 0 | AG72: 0 | AH72: 0 | AI72: 0 | AJ72: 0 | AK72: 0 | AL72: 0 | AM72: 0 | AN72: 0 | AO72: 0 | AP72: 0 | AQ72: 0 | AR72: 0
B73: Cumulative paid Deferred Dev. Fee | E73: =+E62 -> 0 | F73: =+E73+F62 -> 0 | G73: 0 | H73: 0 | I73: 0 | J73: 0 | K73: 0 | L73: 0 | M73: 0 | N73: 0 | O73: 0 | P73: 0 | Q73: 0 | R73: 0 | S73: =+R73+S62 -> 0 | T73: =+S73+T62 -> 0 | U73: 0 | V73: 0 | W73: 0 | X73: 0 | Y73: 0 | Z73: 0 | AA73: 0 | AB73: 0 | AC73: 0 | AD73: 0 | AE73: 0 | AF73: 0 | AG73: 0 | AH73: 0 | AI73: 0 | AJ73: 0 | AK73: 0 | AL73: 0 | AM73: 0 | AN73: 0 | AO73: 0 | AP73: 0 | AQ73: 0 | AR73: 0
B75: Total Deferred Developer Fee budgeted for payment prior to distributions and residual receipt payments | E75: 0
B78: End of Document

Sheet DATA (hidden)
A1: Nonentitlement | B1: Entitlement | C1: Counties | D1: 0.01
A2: Alpine County | B2: Alameda | C2: Alameda | D2: 0.02
A3: Alturas | B3: Alhambra | C3: Alpine | D3: 0.03
A4: Amador City | B4: Aliso Viejo | C4: Amador | D4: 0.04
A5: Amador County | B5: Anaheim | C5: Butte | D5: 0.05
A6: American Canyon | B6: Antioch | C6: Calaveras | D6: 0.06
A7: Anderson | B7: Apple Valley | C7: Colusa | D7: 0.07
A8: Angels | B8: Bakersfield | C8: Contra Costa | D8: 0.08
A9: Arcata | B9: Baldwin Park | C9: Del Norte | D9: 0.09
A10: Artesia | B10: Bellflower | C10: El Dorado | D10: 0.1
A11: Arvin | B11: Berkeley | C11: Fresno | D11: 0.11
A12: Atwater | B12: Buena Park | C12: Glenn | D12: 0.12
A13: Auburn | B13: Burbank | C13: Humboldt | D13: 0.13
A14: Avenal | B14: Camarillo | C14: Imperial | D14: 0.14
A15: Benicia | B15: Carlsbad | C15: Inyo | D15: 0.15
A16: Biggs | B16: Carson | C16: Kern | D16: 0.16
A17: Bishop | B17: Cathedral City | C17: Kings | D17: 0.17
A18: Blue Lake | B18: Cerritos | C18: Lake | D18: 0.18
A19: Brawley | B19: Chico | C19: Lassen | D19: 0.19
A20: Butte County | B20: Chino | C20: Los Angeles | D20: 0.2
A21: Calaveras County | B21: Chino Hills | C21: Madera | D21: 0.21
A22: Calexico | B22: Chula Vista | C22: Marin | D22: 0.22
A23: Calimesa | B23: Citrus Heights | C23: Mariposa | D23: 0.23
A24: Calipatria | B24: Clovis City | C24: Mendocino | D24: 0.24
A25: Calistoga | B25: Compton | C25: Merced | D25: 0.25
A26: Capitola | B26: Concord | C26: Modoc | D26: 0.26
A27: Carmel-by-the-Sea | B27: Corona | C27: Mono | D27: 0.27
A28: Chowchilla | B28: Costa Mesa | C28: Monterey | D28: 0.28
A29: Clearlake | B29: Cupertino City | C29: Napa | D29: 0.29
A30: Coalinga | B30: Daly City | C30: Nevada | D30: 0.3
A31: Colfax | B31: Davis | C31: Orange | D31: 0.31
A32: Colusa | B32: Delano City | C32: Placer | D32: 0.32
A33: Colusa County | B33: Downey | C33: Plumas | D33: 0.33
A34: Corcoran | B34: El Cajon | C34: Riverside | D34: 0.34
A35: Corning | B35: El Centro | C35: Sacramento | D35: 0.35
A36: Crescent City | B36: Elk Grove | C36: San Benito | D36: 0.36
A37: Del Norte County | B37: El Monte | C37: San Bernardino | D37: 0.37
A38: Dinuba | B38: Encinitas | C38: San Diego | D38: 0.38
A39: Dixon | B39: Escondido | C39: San Francisco | D39: 0.39
A40: Dorris | B40: Fairfield | C40: San Joaquin | D40: 0.4
A41: Dos Palos | B41: Fontana | C41: San Luis Obispo | D41: 0.41
A42: Dunsmuir | B42: Fountain Valley | C42: San Mateo | D42: 0.42
A43: El Centro | B43: Fremont | C43: Santa Barbara | D43: 0.43
A44: El Dorado County | B44: Fresno | C44: Santa Clara | D44: 0.44
A45: Etna | B45: Fullerton | C45: Santa Cruz | D45: 0.45
A46: Eureka | B46: Gardena | C46: Shasta | D46: 0.46
A47: Exeter | B47: Garden Grove | C47: Sierra | D47: 0.47
A48: Farmersville | B48: Gilroy City | C48: Siskiyou | D48: 0.48
A49: Ferndale | B49: Glendale | C49: Solano | D49: 0.49
A50: Firebaugh | B50: Glendora City | C50: Sonoma | D50: 0.5
A51: Fort Bragg | B51: Goleta | C51: Stanislaus
A52: Fort Jones | B52: Hanford | C52: Sutter
A53: Fortuna | B53: Hawthorne | C53: Tehama
A54: Fowler | B54: Hayward | C54: Trinity
A55: Glenn County | B55: Hemet | C55: Tulare
A56: Grass Valley | B56: Hesperia | C56: Tuolumne
A57: Greenfield | B57: Huntington Beach | C57: Ventura
A58: Gridley | B58: Huntington Park | C58: Yolo
A59: Grover Beach | B59: Indio City | C59: Yuba
A60: Guadalupe | B60: Inglewood
A61: Gustine | B61: Irvine
A62: Hidden Hills | B62: Laguna Niguel
A63: Hollister | B63: La Habra
A64: Holtville | B64: Lake Forest
A65: Humboldt County | B65: Lake Elsinore
A66: Huron | B66: Lakewood
A67: Imperial | B67: La Mesa
A68: Imperial County | B68: Lancaster
A69: Indian Wells | B69: Livermore
A70: Industry | B70: Lodi
A71: Inyo County | B71: Lompoc
A72: Ione | B72: Long Beach
A73: Jackson | B73: Los Angeles
A74: King City | B74: Lynwood
A75: Kings County | B75: Madera
A76: Lake County | B76: Menifee
A77: Lakeport | B77: Merced
A78: Lassen County | B78: Milpitas City
A79: Lemoore | B79: Mission Viejo
A80: Lincoln | B80: Modesto
A81: Lindsay | B81: Montebello
A82: Live Oak | B82: Monterey
A83: Livingston | B83: Monterey Park
A84: Loomis | B84: Moreno Valley
A85: Los Banos | B85: Mountain View
A86: Loyalton | B86: Napa City
A87: Madera County | B87: National City
A88: Mammoth Lakes | B88: Newport Beach
A89: Maricopa | B89: Norwalk
A90: Marina | B90: Oakland
A91: Mariposa County | B91: Oceanside
A92: Marysville | B92: Ontario
A93: McFarland | B93: Orange
A94: Mendocino County | B94: Oxnard
A95: Merced County | B95: Palmdale
A96: Modoc County | B96: Palm Desert
A97: Mono County | B97: Palm Springs
A98: Montague | B98: Palo Alto
A99: Mount Shasta | B99: Paradise
A100: Napa County | B100: Paramount City
A101: Nevada City | B101: Pasadena
A102: Nevada County | B102: Perris City
A103: Orange Cove | B103: Petaluma
A104: Orland | B104: Pico Rivera
A105: Oroville | B105: Pittsburg
A106: Pacific Grove | B106: Placentia
A107: Palos Verdes Estates | B107: Pleasanton City
A108: Parlier | B108: Pomona
A109: Pismo Beach | B109: Porterville
A110: Placer County | B110: Rancho Cordova City
A111: Placerville | B111: Rancho Cucamonga
A112: Plumas County | B112: Rancho Santa Margarita
A113: Plymouth | B113: Redding
A114: Point Arena | B114: Redondo Beach
A115: Portola | B115: Redwood City
A116: Rancho Mirage | B116: Rialto
A117: Red Bluff | B117: Riverside
A118: Rio Dell | B118: Rocklin City
A119: Rio Vista | B119: Rosemead
A120: Riverbank | B120: Roseville
A121: San Benito County | B121: Sacramento
A122: San Joaquin | B122: Salinas
A123: San Juan Bautista | B123: San Bernardino
A124: San Juan Capistrano | B124: San Clemente
A125: Sand City | B125: San Diego
A126: Santa Cruz County | B126: San Francisco
A127: Scotts Valley | B127: San Jose
A128: Shasta County | B128: San Leandro
A129: Shasta Lake | B129: San Marcos City
A130: Sierra County | B130: San Mateo
A131: Siskiyou County | B131: Santa Ana
A132: Solano County | B132: Santa Barbara
A133: Soledad | B133: Santa Clara
A134: Sonora | B134: Santa Clarita
A135: South Lake Tahoe | B135: Santa Cruz
A136: St. Helena | B136: Santa Maria
A137: Suisun City | B137: Santa Monica
A138: Susanville | B138: Santa Rosa
A139: Sutter County | B139: Santee
A140: Sutter Creek | B140: Seaside
A141: Taft | B141: Simi Valley
A142: Tehama | B142: South Gate
A143: Tehama County | B143: South San Francisco
A144: Trinidad | B144: Stockton
A145: Trinity County | B145: Sunnyvale
A146: Truckee | B146: Temecula
A147: Tulare County | B147: Thousand Oaks
A148: Tulelake | B148: Torrance
A149: Tuolumne County | B149: Tulare
A150: Ukiah | B150: Turlock
A151: Vernon | B151: Tustin
A152: Wasco | B152: Union City
A153: Weed | B153: Upland
A154: Westmorland | B154: Vacaville
A155: Wheatland | B155: Vallejo
A156: Williams | B156: San Buenaventura
A157: Willits | B157: Victorville
A158: Willows | B158: Visalia
A159: Winters | B159: Vista
A160: Woodlake | B160: Walnut Creek
A161: Yolo County | B161: Watsonville
A162: Yountville | B162: West Covina
A163: Yreka | B163: Westminster
A164: Yuba County | B164: West Sacramento
B165: Whittier
B166: Woodland
B167: Yorba Linda
B168: Yuba City
B169: Alameda County
B170: Contra Costa County
B171: Fresno County
B172: Kern County
B173: Los Angeles County
B174: Marin County
B175: Monterey County
B176: Orange County
B177: Riverside County
B178: Sacramento County
B179: San Bernardino County
B180: San Diego County
B181: San Joaquin County
B182: San Luis Obispo County
B183: San Mateo County
B184: Santa Barbara County
B185: Santa Clara County
B186: Sonoma County
B187: Stanislaus County
B188: Ventura County

Sheet Certifications & Legal Status (hidden)
B2: Certifications
B3: State of California
B4: On behalf of the entity identified in the signature block below, I certify that:
B5: 1. The information, statements and attachments included in this application are, to the best of my knowledge and belief, true and correct.
B6: 2. I possess the legal authority to submit this application on behalf of the entity identified in the signature block.
B7: 3. The following is a complete disclosure of all identities of interest -- of all persons or entities, including affiliates, that will provide goods or services to the Project either (a) in one or more capacity or (b) that qualify as a "Related Party" to any person or entity that will provide goods or services to the project. "Related Party" is defined in Section 10302 of the California Code of Regulations (TCAC Regulations):
B9: 4. As of the date of application, the Project, or the real property on which the Project is proposed (Property) is not part to or the subject of any claim or action at the State or Federal appellate level.
B10: 5. I have disclosed and described below any claim or action undertaken which affects or potentially affects the feasibility of the Project.
B11: 6. The identified public owner of the facility which is responsible for the long-term operation and maintenance of the Project has approved the technical feasibility of the proposed Project.
B12: In addition, I acknowledge that all information in this application and attachments is public, and may be disclosed by the State.
B14: Printed Name and Title of Signatory | V14: Signature | AL14: Date
B16: Legal Disclosure
B17: For purposes of the following questions, and with the exceptions noted below, the term “applicant” shall include the applicant and joint applicant, and any subsidiary of the applicant or joint applicant if the subsidiary is involved in (for example, as a guarantor) or will be benefited by the application or the Project.
B18: In addition to each of these entities themselves, the term “applicant” shall also include the direct and indirect holders of more than ten percent (10%) of the ownership interests in the entity, as well as the officers, directors, principals and senior executives of the entity if the entity is a corporation, the general and limited partners of the entity if the entity is a partnership, and the members or managers of the entity if the entity is a limited liability company. For projects using tax-exempt bonds, it shall also include the individual who will be executing the bond purchase agreement.
B19: The following questions must be responded to for each entity and person qualifying as an "applicant," or "joint applicant" as defined above.
B20: Exceptions:
B21: Public entity applicants without an ownership interest in the proposed project, including but not limited to cities, counties, and joint powers authorities with 100 or more members, are not required to respond to this questionnaire.
B22: Members of the boards of directors of non-profit corporations, including officers of the boards, are also not required to respond. However, chief executive officers (Executive Directors, Chief Executive Officers, Presidents or their equivalent) must respond, as must chief financial officers (Treasurers, Chief Financial Officers, or their equivalent).
B23: Civil Matters
B24: 1. Has the applicant filed a bankruptcy or receivership case or had a bankruptcy or receivership action commenced against it, defaulted on a loan or been foreclosed against in past ten years?
B25: 2. Is the applicant currently a party to, or been notified that it may become a party to, any civil litigation that may materially and adversely affect (a) the financial condition of the applicant’s business, or (b) the project that is the subject of the application?
B26: 3. Have there been any administrative or civil settlements, decisions, or judgments against the applicant within the past ten years that materially and adversely affected (a) the financial condition of the applicant’s business, or (b) the project that is the subject of the application?
B27: 4. Is the applicant currently subject to, or been notified that it may become subject to, any civil or administrative proceeding, examination, or investigation by a local, state or federal licensing or accreditation agency, a local, state or federal taxing authority, or a local, state or federal regulatory or enforcement agency?
B28: 5. In the past ten years, has the applicant been subject to any civil or administrative proceeding, examination, or investigation by a local, state or federal licensing or accreditation agency, a local, state or federal taxing authority, or a local, state or federal regulatory or enforcement agency that resulted in a settlement, decision, or judgment?
B29: Criminal Matters
B30: 6. Is the applicant currently a party to, or the subject of, or been notified that it may become a party to or the subject of, any criminal litigation, proceeding, charge, complaint, examination or investigation, of any kind, involving, or that could result in, felony charges against the applicant?
B31: 7. Is the applicant currently a party to, or the subject of, or been notified that it may become a party to or the subject of, any criminal litigation, proceeding, charge, complaint, examination or investigation, of any kind, involving, or that could result in, misdemeanor charges against the applicant for matters relating to the conduct of the applicant’s business?
B32: 8. Is the applicant currently a party to, or the subject of, or been notified that it may become a party to or the subject of, any criminal litigation, proceeding, charge, complaint, examination or investigation, of any kind, involving, or that could result in, criminal charges (whether felony or misdemeanor) against the applicant for any financial or fraud related crime?
B33: 9. Is the applicant currently a party to, or the subject of, or been notified that it may become a party to or the subject of, any criminal litigation, proceeding, charge, complaint, examination or investigation, of any kind, that could materially affect the financial condition of the applicant’s business?
B34: 10. Within the past ten years, has the applicant been convicted of any felony?
B35: 11. Within the past ten years, has the applicant been convicted of any misdemeanor related to the conduct of the applicant’s business?
B36: 12. Within the past ten years, has the applicant been convicted of any misdemeanor for any financial or fraud related crime?
B37: Please provide a letter of explaination if you responded "Yes" to any of the questions above.
B39: Printed Name of Applicant or Joint Applicant | V39: Signature of Applicant or Joint Applicant | AL39: Date
B42: Printed Name of Signatory | V42: Printed Title of Signatory

Sheet Env & Land Use (hidden)
B2: Verification of Environmental Review & Land Use Entitlements
B3: TO THE APPLICANT: Submit this form to the Agency or Department of local government responsible for administration of the items listed. This form may be submitted to more than one Agency or Department, if necessary. Applicants need only submit one completed form per locality. If the NEPA Responsible Entity is not a local government, submit a copy of this form to the appropriate NEPA Responsible Entity. If an item is not required, include the reason why in the box provided.
B4: Applicant
B5: Entity Name | AB5: Applicant Type
B6: Address | Y6: City | AF6: State | AI6: Zip
B7: Rental Project or Navigation Center
B8: Project Name | X8: Project County
B9: Address | Y9: City | AF9: State | AI9: Zip
B10: Census Tract | L10: APN | U10: Census Tract | AE10: APN
B11: Environmental Review
B12: To the Local Jurisdiction or NEPA Responsible Entity: The Applicant named above will submit an application to the State of California, Department of Housing and Community Development, requesting funding for the project named above under the PLHA Program. Projects will be evaluated based upon readiness. Please answer the following questions:
B13: Is this Rental Project or Navigation Center approved "by-right"?
B14: This form must be completed in its entirety regardless of the answer to the preceding question.
B15: All Environmental Clearances NEPA and California Environmental Quality Act (CEQA) necessary to begin construction: | L15: Not Required for this Project | P15: Has a Negative Declaration been issued? | T15: Final Date of Public Comment Period | Y15: Date(s) EIR Certified / Notice of Determination filed | AD15: Date Appeal Period Ends | AI15: Have any appeals been filed?
B16: NEPA
B17: CEQA
B18: In the box below, explain why any items are not required and include documentation, if applicable:
B20: Signature Block for Environmental Review
B21: I certify that the information on this form is true and correct to the best of my knowledge. | Z21: Date:
B22: Printed name of party completing form: | U22: Signature of party completing form:
B23: Title of party completing form: | U23: Agency and/or Dept. name:
B24: Agency/Dept. Address | W24: City | AF24: State | AI24: Zip
B25: File Name: | E25: Auth to Use Grant Funds | M25: For National Environmental Policy Act (NEPA) only, provide a copy of the HUD 7015.16 "Authority To Use Grant Funds" or clarify current status of the issuance of HUD form. | AG25: Uploaded to HCD?
B26: File Name: | E26: Environmental | M26: Provide a copy of all environmental clearances or Notice of Exemption. | AG26: Uploaded to HCD?
B27: File Name: | E27: Environmental Verify | M27: Provide a PDF copy of this worksheet with the wet signature of the person(s) completing the Environmental Review. | AG27: Uploaded to HCD?
B28: Land Use Entitlements (indicate below the status of the following local approvals)
B29: All necessary and discretionary public land use approvals except building permits and other ministerial approvals are: | O29: Not Required for this Project | T29: Project is consistent with local planning documents & zoning ordinances | AB29: An Application has been submitted, accepted and deemed complete for processing. | AK29: Date Approved
B30: General Plan Amendment:
B31: Site Plan Review:
B32: Zoning Approval:
B33: Conditional Use Permits:
B34: Density Bonus:
B35: Other Variances:
B36: Other Variances:
B37: Other Variances:
B38: Other Variances:
B39: Other Variances:
B40: In the box below, explain why any items are not required and include documentation, if applicable:
B42: Signature Block for Land Use Entitlements
B43: I certify that the information on this form is true and correct to the best of my knowledge. | Z43: Date:
B44: Printed name of party completing form: | U44: Signature of party completing form:
B45: Title of party completing form: | U45: Agency and/or Dept. name:
B46: Agency/Dept. Address | W46: City | AD46: State | AI46: Zip
B47: File Name: | E47: Land Use Verify | M47: Provide a PDF copy of this sheet with the wet signature of the person(s) completing the Land Use Entitlements section. | AG47: Uploaded to HCD?

Sheet Sponsor Org Docs (hidden)
B2: Entity Organizational Documents
B4: Organizational Documents
B5: The following is intended as a brief summary of legal documents commonly required to verify the legal authority of the private entity or entities applying to HCD for an Award of funds and does not apply to public applicants. Documents required to apply for funds (threshold requirements) are legally distinct from those required to enter into a standard agreement or to receive bonus points. For projects receiving an Award of HCD funds, additional documents, or corrections, may be required prior to execution of the Standard Agreement.
B7: Organizational Charts
B8: Complete organizational charts are required for the Sponsor/Recipient, Borrower, MGP and AGP (if different from the Sponsor).
B10: Corporate Entities
B11: Articles of Incorporation (Corp. Code §154, 200 and 202) as certified by the CA Secretary of State. Bylaws and any amendments thereto (Corp. Code §207(b), 211 and 212). Certificate of Amendment of Articles of Incorporation (Corp. Code §900-910 (general stock), §5810-5820 (public benefit and religious corporations), §7810-7820 (mutual benefit corporations), or §12500-12510 (general cooperative corporations)) as applicable. Restated Articles of Incorporation (Corp. Code §901, 906, 910 (general stock), §5811, 5815, 5819 (public benefit and religious corporations), §7811, 7815 and 7819 (mutual benefit corporations) and §12501, 12506 and 12510 (general cooperative corporations)) as applicable. Statement of Information (CA Secretary of State form SI-100 or SI-200). Shareholder Agreements (Corp. Code §186) if applicable. Certificate of Good Standing certified by Secretary of State. Certificate of Good Standing must be dated 30 days or less from the application due date.
B13: Limited Liability Companies
B14: Articles of Organization (CA Secretary of State form LLC-1). Certificate of Amendment (CA Secretary of State form LLC-2) if applicable. Restated Articles of Organization (CA Secretary of State form LLC-10) if applicable. Certificate of Correction (CA Secretary of State form LLC-11) if applicable. Statement of Information (CA Secretary of State form LLC-12 or LLC-12NC). Operating Agreement (Corp. Code §17707.02(s) and 17701.10). Certificate of Good Standing certified by Secretary of State. Certificate of Good Standing must be dated 30 days or less from the application due date.
B16: Limited Partnerships
B17: Certificate of Limited Partnership (CA Secretary of State form LP-1). Amendment to Certificate of Limited Partnership (CA Secretary of State form LP-2) if applicable. Certificate of Correction (CA Secretary of State form LP-2) if applicable. Limited Partnership Agreement (CA Corp. Code §15901.02(x) and 15901.10). Amended and Restated Limited Partnership Agreement. Certificate of Good Standing certified by Secretary of State.
B19: Tribal Entity
B20: Tribe Formation Documents (Constitution, Charters, etc.). Federal Register of Indian Entities Recognized (81 Fed Reg. 26826) if applicable. BIA Federal Acknowledgment Petitioner List (CFR Section 83.1 of Title 25) if applicable. Contact List maintained by the Native American Heritage Commission (GC Section 65352.3) if applicable.
B22: End of Document

Sheet Selection Criteria - Scoring (hidden)
B2: Selection Criteria §403(a)
B3: 100 Points Max (points in blue shaded cells) | AG3: Total Score | AL3: =AL4+AL10+AL26 -> 0
B4: (1) Priority - 25 Points Max | AL4: =SUM(AL5:AM6)+MAX(AL7,AL8,AL9) -> 0
B5: (A) Population: Is the Applicant a county that has a population of 200,000 or less within the unincorporated areas of the county? - 5 points | AL5: =IF(AJ5="Yes",5,0) -> 0
B6: (B) Prior Award: Did the Applicant receive an award based on the formula specified in 42 USC, Section 5306 in 2016? 5 points | AL6: =IF(AJ6="No",5,0) -> 0
B7: (C)(i) Assistance for Homeless Persons through Program Activities: Application will assist persons experiencing or At risk of homelessness, including but not limited to, through programs providing rapid rehousing, or rental assistance, or operating assistance to navigation centers? - 15 points; OR | AL7: =IF(AJ7="Yes",15,0) -> 0
B8: (C)(ii) Assistance for Homeless Persons through Development of Navigation Centers: Application is for construction of a navigation center(s)? - 15 points; OR | AL8: =IF(AJ8="Yes",15,0) -> 0
B9: (C)(ii) Assistance for Homeless Persons through Rental Projects: Application is for the new construction, rehabilitation, or preservation of permanent or transitional rental housing in which all or at least 10% of the units are restricted to occupancy by tenants who are homeless or At risk of homelessness? - 15 points | AL9: =IF(AJ9="Yes",15,0) -> 0
B10: (2) Evaluation Criteria - 75 Points Max | AL10: =AL11+AL12 -> 0
B11: (A) Community Need: Select the rate (percentage) of households experiencing the most severe housing need according to the most recent HUD CHAS dataset in the Applicant Local Government - 30 points max | AL11: =IF(AJ11="",0,IF(AJ11>=0.36,30,IF(AJ11>=0.2,20,10))) -> 0
B12: (B) Applicant Administrative Experience: (i) Applicants with prior experience in the past five years from the NOFA date administering local, state or federal affordable housing or community development programs or who have entered into a contract with an entity with prior experience in the past five years from the NOFA date in the implementation of local, state, or federal affordable housing or community development programs - 15 points max NOTE: Data must be entered in all fields to earn points. | AL12: =IF(AN12>=9,15,IF(AN12>=6,10,IF(AN12>=3,5,0))) -> 0 | AN12: =SUM(AN14:AN25) -> 0
B13: Name of Affordable Housing or Community Development Program | M13: Program Type | P13: Program Description | Z13: Who Administers the Program | AE13: If Contracted with an Entity, enter Entity Name | AK13: Date Completed | AN13: 2024-03-06 | AO13: =DATE(YEAR(AN13)-5,MONTH(AN13),DAY(AN13)) -> 2019-03-06
B14: 1 | AN14: =IF(AND(C14<>"",P14<>"",AK14<>"",AK14>$AO$13,AK14<$AN$13),1,0) -> 0
B15: 2 | AN15: =IF(AND(C15<>"",P15<>"",AK15<>"",AK15>$AO$13,AK15<$AN$13),1,0) -> 0
B16: 3 | AN16: 0
B17: 4 | AN17: 0
B18: 5 | AN18: 0
B19: 6 | AN19: 0
B20: 7 | AN20: 0
B21: 8 | AN21: 0
B22: 9 | AN22: 0
B23: 10 | AN23: 0
B24: 11 | AN24: 0
B25: 12 | AN25: 0
B26: (C) Demonstrated Capacity: 30 points max NOTE: Data must be entered in all fields below to earn points. | AL26: =MAX(AL27,AL38,AL47) -> 0
B27: (i)(a) Sponsor experience in affordable housing development and ownership in the past five years from the NOFA date - 30 points max; OR | AL27: =IF(AN28>=6,30,IF(AN28>=4,20,IF(AN28>=2,10,0))) -> 0
B28: Name of Affordable Rental Housing Development | M28: Project Address and City | V28: Currently owned by the Co-Applicant | AB28: Had comprehensive development responsibilities | AH28: Project Units | AK28: Date Completed | AN28: =SUM(AN29:AN36) -> 0
B29: 1 | AN29: =IF(AND(V29="Yes",AB29="Yes",AK29<>""),1,0) -> 0
B30: 2 | AN30: =IF(AND(V30="Yes",AB30="Yes",AK30<>""),1,0) -> 0
B31: 3 | AN31: =IF(AND(V31="Yes",AB31="Yes",AK31<>""),1,0) -> 0
B32: 4 | AN32: =IF(AND(V32="Yes",AB32="Yes",AK32<>""),1,0) -> 0
B33: 5 | AN33: 0
B34: 6 | AN34: 0
B35: 7 | AN35: 0
B36: 8 | AN36: 0
B37: File Name: | E37: RHD Comp1, RHD Comp2, RHD Comp3, etc… | M37: Document with Notice of Completion, Placed in Service, Certificate of Occupancy or equivalent. | AG37: Uploaded to HCD?
B38: (i)(b) Navigation center development and ownership experience of Applicant or Co-Applicant (for development and operation of these facilities) in the past five years from the NOFA date - 30 points max; OR | AL38: =IF(AN39=3,30,IF(AN39=4,30,IF(AN39=5,30,IF(AN39=2,20,IF(AN39=1,10,0))))) -> 0
B39: Name of Navigation Center | M39: Project Address and City | V39: Currently operated by the Applicant or Co-Applicant | AB39: Had comprehensive development responsibilities | AH39: Project Beds | AK39: Date Completed | AN39: =SUM(AN40:AN44) -> 0
B40: 1 | AN40: =IF(AND(V40="Yes",AB40="Yes",AK40<>"",AK40>$AO$13,AK40<$AN$13),1,0) -> 0
B41: 2 | AN41: =IF(AND(V41="Yes",AB41="Yes",AK41<>"",AK41>$AO$13,AK41<$AN$13),1,0) -> 0
B42: 3 | AN42: 0
B43: 4 | AN43: 0
B44: 5 | AN44: =IF(AND(V44="Yes",AB44="Yes",AK44<>"",AK44>$AO$13,AK44<$AN$13),1,0) -> 0
B45: File Name: | E45: NC1, NC2, NC3 | M45: Narrative description of Development/Operating Experience to document experience for each project listed above. | AG45: Uploaded to HCD?
B46: File Name: | E46: NC Comp1, NC Comp2, NC Comp3, etc… | M46: Document with Notice of Completion, Placed in Service, Certificate of Occupancy or equivalent. | AG46: Uploaded to HCD?
B47: (i)(c) Program Operator experience (for non-development Activities) in the past five years from the NOFA date - 30 points max | AL47: =IF(AP47>=9,30,IF(AO47+AP47>=6,20,IF(AN47+AO47+AP47>=3,10,0))) -> 0 | AN47: =SUM(AN49:AN60) -> 0 | AO47: =SUM(AO49:AO60) -> 0 | AP47: =SUM(AP49:AP60) -> 0
B48: Name and Description of Program that Applicant or Co-Applicant has Operated | Y48: Program Address and City | AH48: Total Program Funding Amount | AN48: Less than $750,000 | AO48: Between $750,000 and $1,000,000 | AP48: More than $1,000,000
B49: 1 | AN49: =IF(AND(C49<>"",AH49=$AN$48),1,0) -> 0 | AO49: =IF(AND(C49<>"",AH49=$AO$48),1,0) -> 0 | AP49: =IF(AND(C49<>"",AH49=$AP$48),1,0) -> 0
B50: 2 | AN50: =IF(AND(C50<>"",AH50=$AN$48),1,0) -> 0 | AO50: =IF(AND(C50<>"",AH50=$AO$48),1,0) -> 0 | AP50: =IF(AND(C50<>"",AH50=$AP$48),1,0) -> 0
B51: 3 | AN51: 0 | AO51: 0 | AP51: 0
B52: 4 | AN52: 0 | AO52: 0 | AP52: 0
B53: 5 | AN53: 0 | AO53: 0 | AP53: 0
B54: 6 | AN54: 0 | AO54: 0 | AP54: 0
B55: 7 | AN55: 0 | AO55: 0 | AP55: 0
B56: 8 | AN56: =IF(AND(C56<>"",AH56=$AN$48),1,0) -> 0 | AO56: =IF(AND(C56<>"",AH56=$AO$48),1,0) -> 0 | AP56: =IF(AND(C56<>"",AH56=$AP$48),1,0) -> 0
B57: 9 | AN57: 0 | AO57: 0 | AP57: 0
B58: 10 | AN58: 0 | AO58: 0 | AP58: 0
B59: 11 | AN59: 0 | AO59: 0 | AP59: 0
B60: 12 | AN60: 0 | AO60: 0 | AP60: 0
B61: File Name: | E61: Operator1, Operator2, Operator3, etc. | M61: Narrative description of Program Operating Experience to document experience for each program listed above. | AG61: Uploaded to HCD?
B63: End of Document

Sheet Application Support (hidden)
B2: Application Development Team (ADT) Support Form
B3: For application related issues/questions only complete the "yellow" cells in the form below and email a copy to: PLHA@hcd.ca.gov . A member of the Application Development Team will respond to your request ASAP.
B4: Full Name: | X4: Date Requested: | AF4: Application Version Date:
B5: Organization: | Q5: Email: | AD5: Contact Phone:
B6: Justification: | AO6: PLHA Coverpage
B7: Issue # | D7: Program Name & Round | K7: Section | Q7: Cell# | S7: Update/Comment | AE7: Urgency | AH7: ADT Status | AK7: Status Date | AO7: Overview
B8: 1 | AO8: Legislative Contacts
B9: 2 | AO9: Annual Operating Budget
B10: 3 | AO10: Development Info
B11: 4 | AO11: Dev Budget - Navigation Center
B12: 5 | AO12: Rental Development Team
B13: 6 | AO13: Unit Mix
B14: 7 | AO14: Dev Sources
B15: 8 | AO15: Dev Budget
B16: 9 | AO16: TBL and HIgh Cost Test
B17: 10 | AO17: Dev Fee 2021
B18: 11 | AO18: Supportive Services Costs
B19: 12 | AO19: Operating
B20: 13 | AO20: Reserves
B21: 14 | AO21: Cash Flow
B22: 15 | AO22: Certifications & Legal Status
AO23: Env & Land Use
B24: End of Document | AO24: Selection Criteria - Scoring

Sheet Rent Limits (hidden)
A1: County | B1: 1 Person | C1: 2 Person | D1: 3 Person | E1: 4 Person | F1: 5 Person | G1: 6 Person | H1: 7 Person | I1: 8 Person | J1: 0 | K1: 1 | L1: 2 | M1: 3 | N1: 4 | O1: 5
A2: Alameda15% AMI | B2: =B9*2*0.15 -> 15540 | C2: =C9*2*0.15 -> 17760 | D2: =D9*2*0.15 -> 19980 | E2: =E9*2*0.15 -> 22185 | F2: =F9*2*0.15 -> 23970 | G2: =G9*2*0.15 -> 25740 | H2: 27510 | I2: 29295 | J2: =TRUNC(B2/12*0.3) -> 388 | K2: =TRUNC((B2+C2)/2/12*0.3) -> 416 | L2: =TRUNC((D2)/12*0.3) -> 499 | M2: =TRUNC(((E2+F2)/2)/12*0.3) -> 576 | N2: =TRUNC(G2/12*0.3) -> 643 | O2: =TRUNC(((H2+I2)/2)/12*0.3) -> 710 | Q2: Alameda50% AMI | R2: 51800 | S2: 59200 | T2: 66600 | U2: 73950 | V2: 79900 | W2: 85800 | X2: 91700 | Y2: 97650
A3: Alameda20% AMI | B3: =B9*2*0.2 -> 20720 | C3: =C9*2*0.2 -> 23680 | D3: 26640 | E3: 29580 | F3: 31960 | G3: 34320 | H3: 36680 | I3: 39060 | J3: 518 | K3: 555 | L3: 666 | M3: 769 | N3: 858 | O3: 946 | Q3: Alpine50% AMI | R3: 33650 | S3: 38450 | T3: 43250 | U3: 48050 | V3: 51900 | W3: 55750 | X3: 59600 | Y3: 63450
A4: Alameda25% AMI | B4: =B9*2*0.25 -> 25900 | C4: =C9*2*0.25 -> 29600 | D4: 33300 | E4: 36975 | F4: 39950 | G4: 42900 | H4: 45850 | I4: 48825 | J4: 647 | K4: 693 | L4: 832 | M4: 961 | N4: 1072 | O4: 1183 | Q4: Amador50% AMI | R4: 32100 | S4: 36700 | T4: 41300 | U4: 45850 | V4: 49550 | W4: 53200 | X4: 56900 | Y4: 60550
A5: Alameda30% AMI | B5: =B9*2*0.3 -> 31080 | C5: =C9*2*0.3 -> 35520 | D5: 39960 | E5: 44370 | F5: 47940 | G5: 51480 | H5: 55020 | I5: 58590 | J5: 777 | K5: 832 | L5: 999 | M5: 1153 | N5: 1287 | O5: 1420 | Q5: Butte50% AMI | R5: 28900 | S5: 33000 | T5: 37150 | U5: 41250 | V5: 44550 | W5: 47850 | X5: 51150 | Y5: 54450
A6: Alameda35% AMI | B6: =B9*2*0.35 -> 36260 | C6: =C9*2*0.35 -> 41440 | D6: 46620 | E6: 51765 | F6: 55930 | G6: 60060 | H6: 64190 | I6: 68355 | J6: 906 | K6: 971 | L6: 1165 | M6: 1346 | N6: 1501 | O6: 1656 | Q6: Calaveras50% AMI | R6: 33400 | S6: 38150 | T6: 42900 | U6: 47650 | V6: 51500 | W6: 55300 | X6: 59100 | Y6: 62900
A7: Alameda40% AMI | B7: =B9*2*0.4 -> 41440 | C7: =C9*2*0.4 -> 47360 | D7: 53280 | E7: 59160 | F7: 63920 | G7: 68640 | H7: 73360 | I7: 78120 | J7: 1036 | K7: 1110 | L7: 1332 | M7: 1538 | N7: 1716 | O7: 1893 | Q7: Colusa50% AMI | R7: 28900 | S7: 33000 | T7: 37150 | U7: 41250 | V7: 44550 | W7: 47850 | X7: 51150 | Y7: 54450
A8: Alameda45% AMI | B8: =B9*2*0.45 -> 46620 | C8: =C9*2*0.45 -> 53280 | D8: 59940 | E8: 66555 | F8: 71910 | G8: 77220 | H8: 82530 | I8: 87885 | J8: 1165 | K8: 1248 | L8: 1498 | M8: 1730 | N8: 1930 | O8: 2130 | Q8: Contra Costa50% AMI | R8: 51800 | S8: 59200 | T8: 66600 | U8: 73950 | V8: 79900 | W8: 85800 | X8: 91700 | Y8: 97650
A9: Alameda50% AMI | B9: =VLOOKUP(A9,$Q$2:$Y$59,2,FALSE) -> 51800 | C9: =VLOOKUP(A9,$Q$2:$Y$59,3,FALSE) -> 59200 | D9: =VLOOKUP(A9,$Q$2:$Y$59,4,FALSE) -> 66600 | E9: =VLOOKUP(A9,$Q$2:$Y$59,5,FALSE) -> 73950 | F9: =VLOOKUP(A9,$Q$2:$Y$59,6,FALSE) -> 79900 | G9: =VLOOKUP(A9,$Q$2:$Y$59,7,FALSE) -> 85800 | H9: =VLOOKUP(A9,$Q$2:$Y$59,8,FALSE) -> 91700 | I9: =VLOOKUP(A9,$Q$2:$Y$59,9,FALSE) -> 97650 | J9: =TRUNC(B9/12*0.3) -> 1295 | K9: =TRUNC((B9+C9)/2/12*0.3) -> 1387 | L9: =TRUNC((D9)/12*0.3) -> 1665 | M9: =TRUNC(((E9+F9)/2)/12*0.3) -> 1923 | N9: =TRUNC(G9/12*0.3) -> 2145 | O9: =TRUNC(((H9+I9)/2)/12*0.3) -> 2366 | Q9: Del Norte50% AMI | R9: 28900 | S9: 33000 | T9: 37150 | U9: 41250 | V9: 44550 | W9: 47850 | X9: 51150 | Y9: 54450
A10: Alameda55% AMI | B10: =B9*2*0.55 -> 56980 | C10: =C9*2*0.55 -> 65120 | D10: 73260 | E10: 81345 | F10: 87890 | G10: 94380 | H10: 100870 | I10: 107415 | J10: =TRUNC(B10/12*0.3) -> 1424 | K10: =TRUNC((B10+C10)/2/12*0.3) -> 1526 | L10: =TRUNC((D10)/12*0.3) -> 1831 | M10: =TRUNC(((E10+F10)/2)/12*0.3) -> 2115 | N10: =TRUNC(G10/12*0.3) -> 2359 | O10: =TRUNC(((H10+I10)/2)/12*0.3) -> 2603 | Q10: El Dorado50% AMI | R10: 37550 | S10: 42900 | T10: 48250 | U10: 53600 | V10: 57900 | W10: 62200 | X10: 66500 | Y10: 70800
A11: Alameda60% AMI | B11: =B9*2*0.6 -> 62160 | C11: =C9*2*0.6 -> 71040 | D11: 79920 | E11: 88740 | F11: 95880 | G11: 102960 | H11: 110040 | I11: 117180 | J11: 1554 | K11: 1665 | L11: 1998 | M11: 2307 | N11: 2574 | O11: 2840 | Q11: Fresno50% AMI | R11: 28900 | S11: 33000 | T11: 37150 | U11: 41250 | V11: 44550 | W11: 47850 | X11: 51150 | Y11: 54450
A12: Alameda65% AMI | B12: =B9*2*0.65 -> 67340 | C12: =C9*2*0.65 -> 76960 | D12: 86580 | E12: 96135 | F12: 103870 | G12: 111540 | H12: 119210 | I12: 126945 | J12: 1683 | K12: 1803 | L12: 2164 | M12: 2500 | N12: 2788 | O12: 3076 | Q12: Glenn50% AMI | R12: 28900 | S12: 33000 | T12: 37150 | U12: 41250 | V12: 44550 | W12: 47850 | X12: 51150 | Y12: 54450
A13: Alameda70% AMI | B13: =B9*2*0.7 -> 72520 | C13: =C9*2*0.7 -> 82880 | D13: 93240 | E13: 103530 | F13: 111860 | G13: 120120 | H13: 128380 | I13: 136710 | J13: 1813 | K13: 1942 | L13: 2331 | M13: 2692 | N13: 3003 | O13: 3313 | Q13: Humboldt50% AMI | R13: 28900 | S13: 33000 | T13: 37150 | U13: 41250 | V13: 44550 | W13: 47850 | X13: 51150 | Y13: 54450
A14: Alameda75% AMI | B14: =B9*2*0.75 -> 77700 | C14: =C9*2*0.75 -> 88800 | D14: 99900 | E14: 110925 | F14: 119850 | G14: 128700 | H14: 137550 | I14: 146475 | J14: 1942 | K14: 2081 | L14: 2497 | M14: 2884 | N14: 3217 | O14: 3550 | Q14: Imperial50% AMI | R14: 28900 | S14: 33000 | T14: 37150 | U14: 41250 | V14: 44550 | W14: 47850 | X14: 51150 | Y14: 54450
A15: Alameda80% AMI | B15: =B9*2*0.8 -> 82880 | C15: =C9*2*0.8 -> 94720 | D15: 106560 | E15: 118320 | F15: 127840 | G15: 137280 | H15: 146720 | I15: 156240 | J15: 2072 | K15: 2220 | L15: 2664 | M15: 3077 | N15: 3432 | O15: 3787 | Q15: Inyo50% AMI | R15: 29900 | S15: 34200 | T15: 38450 | U15: 42700 | V15: 46150 | W15: 49550 | X15: 52950 | Y15: 56400
A16: Alameda90% AMI | B16: =B9*2*0.9 -> 93240 | C16: =C9*2*0.9 -> 106560 | D16: 119880 | E16: 133110 | F16: 143820 | G16: 154440 | H16: 165060 | I16: 175770 | J16: 2331 | K16: 2497 | L16: 2997 | M16: 3461 | N16: 3861 | O16: 4260 | Q16: Kern50% AMI | R16: 28900 | S16: 33000 | T16: 37150 | U16: 41250 | V16: 44550 | W16: 47850 | X16: 51150 | Y16: 54450
A17: Alameda100% AMI | B17: =B9*2 -> 103600 | C17: =C9*2 -> 118400 | D17: 133200 | E17: 147900 | F17: 159800 | G17: 171600 | H17: 183400 | I17: 195300 | J17: =J9*2 -> 2590 | K17: =K9*2 -> 2774 | L17: 3330 | M17: 3846 | N17: 4290 | O17: 4732 | Q17: Kings50% AMI | R17: 28900 | S17: 33000 | T17: 37150 | U17: 41250 | V17: 44550 | W17: 47850 | X17: 51150 | Y17: 54450
A18: Alameda110% AMI | B18: =B9*2*1.1 -> 113960 | C18: =C9*2*1.1 -> 130240 | D18: 146520 | E18: 162690 | F18: 175780 | G18: 188760 | H18: 201740 | I18: 214830 | J18: 2849 | K18: 3052 | L18: 3663 | M18: 4230 | N18: 4719 | O18: 5207 | Q18: Lake50% AMI | R18: 28900 | S18: 33000 | T18: 37150 | U18: 41250 | V18: 44550 | W18: 47850 | X18: 51150 | Y18: 54450
A19: Alameda120% AMI | B19: =B9*2*1.2 -> 124320 | C19: =C9*2*1.2 -> 142080 | D19: 159840 | E19: 177480 | F19: 191760 | G19: 205920 | H19: 220080 | I19: 234360 | J19: 3108 | K19: 3330 | L19: 3996 | M19: 4615 | N19: 5148 | O19: 5680 | Q19: Lassen50% AMI | R19: 29350 | S19: 33550 | T19: 37750 | U19: 41900 | V19: 45300 | W19: 48650 | X19: 52000 | Y19: 55350
A20: Alpine15% AMI | B20: =B27*2*0.15 -> 10095 | C20: =C27*2*0.15 -> 11535 | D20: =D27*2*0.15 -> 12975 | E20: =E27*2*0.15 -> 14415 | F20: =F27*2*0.15 -> 15570 | G20: =G27*2*0.15 -> 16725 | H20: 17880 | I20: 19035 | J20: 252 | K20: 270 | L20: 324 | M20: 374 | N20: 418 | O20: 461 | Q20: Los Angeles50% AMI | R20: 44150 | S20: 50450 | T20: 56750 | U20: 63050 | V20: 68100 | W20: 73150 | X20: 78200 | Y20: 83250
A21: Alpine20% AMI | B21: =B27*2*0.2 -> 13460 | C21: =C27*2*0.2 -> 15380 | D21: 17300 | E21: 19220 | F21: 20760 | G21: 22300 | H21: 23840 | I21: 25380 | J21: 336 | K21: 360 | L21: 432 | M21: 499 | N21: 557 | O21: 615 | Q21: Madera50% AMI | R21: 28900 | S21: 33000 | T21: 37150 | U21: 41250 | V21: 44550 | W21: 47850 | X21: 51150 | Y21: 54450
A22: Alpine25% AMI | B22: =B27*2*0.25 -> 16825 | C22: =C27*2*0.25 -> 19225 | D22: 21625 | E22: 24025 | F22: 25950 | G22: 27875 | H22: 29800 | I22: 31725 | J22: 420 | K22: 450 | L22: 540 | M22: 624 | N22: 696 | O22: 769 | Q22: Marin50% AMI | R22: 65050 | S22: 74350 | T22: 83650 | U22: 92900 | V22: 100350 | W22: 107800 | X22: 115200 | Y22: 122650
A23: Alpine30% AMI | B23: =B27*2*0.3 -> 20190 | C23: =C27*2*0.3 -> 23070 | D23: 25950 | E23: 28830 | F23: 31140 | G23: 33450 | H23: 35760 | I23: 38070 | J23: 504 | K23: 540 | L23: 648 | M23: 749 | N23: 836 | O23: 922 | Q23: Mariposa50% AMI | R23: 28900 | S23: 33000 | T23: 37150 | U23: 41250 | V23: 44550 | W23: 47850 | X23: 51150 | Y23: 54450
A24: Alpine35% AMI | B24: =B27*2*0.35 -> 23555 | C24: =C27*2*0.35 -> 26915 | D24: 30275 | E24: 33635 | F24: 36330 | G24: 39025 | H24: 41720 | I24: 44415 | J24: 588 | K24: 630 | L24: 756 | M24: 874 | N24: 975 | O24: 1076 | Q24: Mendocino50% AMI | R24: 29750 | S24: 34000 | T24: 38250 | U24: 42500 | V24: 45900 | W24: 49300 | X24: 52700 | Y24: 56100
A25: Alpine40% AMI | B25: =B27*2*0.4 -> 26920 | C25: =C27*2*0.4 -> 30760 | D25: 34600 | E25: 38440 | F25: 41520 | G25: 44600 | H25: 47680 | I25: 50760 | J25: 673 | K25: 721 | L25: 865 | M25: 999 | N25: 1115 | O25: 1230 | Q25: Merced50% AMI | R25: 28900 | S25: 33000 | T25: 37150 | U25: 41250 | V25: 44550 | W25: 47850 | X25: 51150 | Y25: 54450
A26: Alpine45% AMI | B26: =B27*2*0.45 -> 30285 | C26: =C27*2*0.45 -> 34605 | D26: 38925 | E26: 43245 | F26: 46710 | G26: 50175 | H26: 53640 | I26: 57105 | J26: 757 | K26: 811 | L26: 973 | M26: 1124 | N26: 1254 | O26: 1384 | Q26: Modoc50% AMI | R26: 28900 | S26: 33000 | T26: 37150 | U26: 41250 | V26: 44550 | W26: 47850 | X26: 51150 | Y26: 54450
A27: Alpine50% AMI | B27: =VLOOKUP(A27,$Q$2:$Y$59,2,FALSE) -> 33650 | C27: =VLOOKUP(A27,$Q$2:$Y$59,3,FALSE) -> 38450 | D27: =VLOOKUP(A27,$Q$2:$Y$59,4,FALSE) -> 43250 | E27: =VLOOKUP(A27,$Q$2:$Y$59,5,FALSE) -> 48050 | F27: =VLOOKUP(A27,$Q$2:$Y$59,6,FALSE) -> 51900 | G27: =VLOOKUP(A27,$Q$2:$Y$59,7,FALSE) -> 55750 | H27: =VLOOKUP(A27,$Q$2:$Y$59,8,FALSE) -> 59600 | I27: =VLOOKUP(A27,$Q$2:$Y$59,9,FALSE) -> 63450 | J27: =TRUNC(B27/12*0.3) -> 841 | K27: =TRUNC((B27+C27)/2/12*0.3) -> 901 | L27: =TRUNC((D27)/12*0.3) -> 1081 | M27: =TRUNC(((E27+F27)/2)/12*0.3) -> 1249 | N27: =TRUNC(G27/12*0.3) -> 1393 | O27: =TRUNC(((H27+I27)/2)/12*0.3) -> 1538 | Q27: Mono50% AMI | R27: 29750 | S27: 34000 | T27: 38250 | U27: 42500 | V27: 45900 | W27: 49300 | X27: 52700 | Y27: 56100
A28: Alpine55% AMI | B28: =B27*2*0.55 -> 37015 | C28: =C27*2*0.55 -> 42295 | D28: 47575 | E28: 52855 | F28: 57090 | G28: 61325 | H28: 65560 | I28: 69795 | J28: =TRUNC(B28/12*0.3) -> 925 | K28: =TRUNC((B28+C28)/2/12*0.3) -> 991 | L28: =TRUNC((D28)/12*0.3) -> 1189 | M28: =TRUNC(((E28+F28)/2)/12*0.3) -> 1374 | N28: =TRUNC(G28/12*0.3) -> 1533 | O28: =TRUNC(((H28+I28)/2)/12*0.3) -> 1691 | Q28: Monterey50% AMI | R28: 42150 | S28: 48200 | T28: 54200 | U28: 60200 | V28: 65050 | W28: 69850 | X28: 74650 | Y28: 79500
A29: Alpine60% AMI | B29: =B27*2*0.6 -> 40380 | C29: =C27*2*0.6 -> 46140 | D29: 51900 | E29: 57660 | F29: 62280 | G29: 66900 | H29: 71520 | I29: 76140 | J29: 1009 | K29: 1081 | L29: 1297 | M29: 1499 | N29: 1672 | O29: 1845 | Q29: Napa50% AMI | R29: 46750 | S29: 53400 | T29: 60100 | U29: 66750 | V29: 72100 | W29: 77450 | X29: 82800 | Y29: 88150
A30: Alpine65% AMI | B30: =B27*2*0.65 -> 43745 | C30: =C27*2*0.65 -> 49985 | D30: 56225 | E30: 62465 | F30: 67470 | G30: 72475 | H30: 77480 | I30: 82485 | J30: 1093 | K30: 1171 | L30: 1405 | M30: 1624 | N30: 1811 | O30: 1999 | Q30: Nevada50% AMI | R30: 36500 | S30: 41700 | T30: 46900 | U30: 52100 | V30: 56300 | W30: 60450 | X30: 64650 | Y30: 68800
A31: Alpine70% AMI | B31: =B27*2*0.7 -> 47110 | C31: =C27*2*0.7 -> 53830 | D31: 60550 | E31: 67270 | F31: 72660 | G31: 78050 | H31: 83440 | I31: 88830 | J31: 1177 | K31: 1261 | L31: 1513 | M31: 1749 | N31: 1951 | O31: 2153 | Q31: Orange50% AMI | R31: 50250 | S31: 57400 | T31: 64600 | U31: 71750 | V31: 77500 | W31: 83250 | X31: 89000 | Y31: 94750
A32: Alpine75% AMI | B32: =B27*2*0.75 -> 50475 | C32: =C27*2*0.75 -> 57675 | D32: 64875 | E32: 72075 | F32: 77850 | G32: 83625 | H32: 89400 | I32: 95175 | J32: 1261 | K32: 1351 | L32: 1621 | M32: 1874 | N32: 2090 | O32: 2307 | Q32: Placer50% AMI | R32: 37550 | S32: 42900 | T32: 48250 | U32: 53600 | V32: 57900 | W32: 62200 | X32: 66500 | Y32: 70800
A33: Alpine80% AMI | B33: =B27*2*0.8 -> 53840 | C33: =C27*2*0.8 -> 61520 | D33: 69200 | E33: 76880 | F33: 83040 | G33: 89200 | H33: 95360 | I33: 101520 | J33: 1346 | K33: 1442 | L33: 1730 | M33: 1999 | N33: 2230 | O33: 2461 | Q33: Plumas50% AMI | R33: 29350 | S33: 33550 | T33: 37750 | U33: 41900 | V33: 45300 | W33: 48650 | X33: 52000 | Y33: 55350
A34: Alpine90% AMI | B34: =B27*2*0.9 -> 60570 | C34: =C27*2*0.9 -> 69210 | D34: 77850 | E34: 86490 | F34: 93420 | G34: 100350 | H34: 107280 | I34: 114210 | J34: 1514 | K34: 1622 | L34: 1946 | M34: 2248 | N34: 2508 | O34: 2768 | Q34: Riverside50% AMI | R34: 32650 | S34: 37300 | T34: 41950 | U34: 46600 | V34: 50350 | W34: 54100 | X34: 57800 | Y34: 61550
A35: Alpine100% AMI | B35: =B27*2 -> 67300 | C35: =C27*2 -> 76900 | D35: 86500 | E35: 96100 | F35: 103800 | G35: 111500 | H35: 119200 | I35: 126900 | J35: =J27*2 -> 1682 | K35: =K27*2 -> 1802 | L35: 2162 | M35: 2498 | N35: 2786 | O35: 3076 | Q35: Sacramento50% AMI | R35: 37550 | S35: 42900 | T35: 48250 | U35: 53600 | V35: 57900 | W35: 62200 | X35: 66500 | Y35: 70800
A36: Alpine110% AMI | B36: =B27*2*1.1 -> 74030 | C36: =C27*2*1.1 -> 84590 | D36: 95150 | E36: 105710 | F36: 114180 | G36: 122650 | H36: 131120 | I36: 139590 | J36: =TRUNC(B36/12*0.3) -> 1850 | K36: =TRUNC((B36+C36)/2/12*0.3) -> 1982 | L36: =TRUNC((D36)/12*0.3) -> 2378 | M36: =TRUNC(((E36+F36)/2)/12*0.3) -> 2748 | N36: =TRUNC(G36/12*0.3) -> 3066 | O36: =TRUNC(((H36+I36)/2)/12*0.3) -> 3383 | Q36: San Benito50% AMI | R36: 39000 | S36: 44550 | T36: 50100 | U36: 55650 | V36: 60150 | W36: 64600 | X36: 69050 | Y36: 73500
A37: Alpine120% AMI | B37: =B27*2*1.2 -> 80760 | C37: =C27*2*1.2 -> 92280 | D37: 103800 | E37: 115320 | F37: 124560 | G37: 133800 | H37: 143040 | I37: 152280 | J37: 2019 | K37: 2163 | L37: 2595 | M37: 2998 | N37: 3345 | O37: 3691 | Q37: San Bernardino50% AMI | R37: 32650 | S37: 37300 | T37: 41950 | U37: 46600 | V37: 50350 | W37: 54100 | X37: 57800 | Y37: 61550
A38: Amador15% AMI | B38: =B45*2*0.15 -> 9630 | C38: =C45*2*0.15 -> 11010 | D38: =D45*2*0.15 -> 12390 | E38: =E45*2*0.15 -> 13755 | F38: =F45*2*0.15 -> 14865 | G38: =G45*2*0.15 -> 15960 | H38: 17070 | I38: 18165 | J38: 240 | K38: 258 | L38: 309 | M38: 357 | N38: 399 | O38: 440 | Q38: San Diego50% AMI | R38: 48250 | S38: 55150 | T38: 62050 | U38: 68900 | V38: 74450 | W38: 79950 | X38: 85450 | Y38: 90950
A39: Amador20% AMI | B39: =B45*2*0.2 -> 12840 | C39: =C45*2*0.2 -> 14680 | D39: 16520 | E39: 18340 | F39: 19820 | G39: 21280 | H39: 22760 | I39: 24220 | J39: 321 | K39: 344 | L39: 413 | M39: 477 | N39: 532 | O39: 587 | Q39: San Francisco50% AMI | R39: 65050 | S39: 74350 | T39: 83650 | U39: 92900 | V39: 100350 | W39: 107800 | X39: 115200 | Y39: 122650
A40: Amador25% AMI | B40: =B45*2*0.25 -> 16050 | C40: =C45*2*0.25 -> 18350 | D40: 20650 | E40: 22925 | F40: 24775 | G40: 26600 | H40: 28450 | I40: 30275 | J40: 401 | K40: 430 | L40: 516 | M40: 596 | N40: 665 | O40: 734 | Q40: San Joaquin50% AMI | R40: 30700 | S40: 35100 | T40: 39500 | U40: 43850 | V40: 47400 | W40: 50900 | X40: 54400 | Y40: 57900
A41: Amador30% AMI | B41: =B45*2*0.3 -> 19260 | C41: =C45*2*0.3 -> 22020 | D41: 24780 | E41: 27510 | F41: 29730 | G41: 31920 | H41: 34140 | I41: 36330 | J41: 481 | K41: 516 | L41: 619 | M41: 715 | N41: 798 | O41: 880 | Q41: San Luis Obispo50% AMI | R41: 40550 | S41: 46350 | T41: 52150 | U41: 57900 | V41: 62550 | W41: 67200 | X41: 71800 | Y41: 76450
A42: Amador35% AMI | B42: =B45*2*0.35 -> 22470 | C42: =C45*2*0.35 -> 25690 | D42: 28910 | E42: 32095 | F42: 34685 | G42: 37240 | H42: 39830 | I42: 42385 | J42: 561 | K42: 602 | L42: 722 | M42: 834 | N42: 931 | O42: 1027 | Q42: San Mateo50% AMI | R42: 65050 | S42: 74350 | T42: 83650 | U42: 92900 | V42: 100350 | W42: 107800 | X42: 115200 | Y42: 122650
A43: Amador40% AMI | B43: =B45*2*0.4 -> 25680 | C43: =C45*2*0.4 -> 29360 | D43: 33040 | E43: 36680 | F43: 39640 | G43: 42560 | H43: 45520 | I43: 48440 | J43: 642 | K43: 688 | L43: 826 | M43: 954 | N43: 1064 | O43: 1174 | Q43: Santa Barbara50% AMI | R43: 51800 | S43: 59200 | T43: 66600 | U43: 73950 | V43: 79900 | W43: 85800 | X43: 91700 | Y43: 97650
A44: Amador45% AMI | B44: =B45*2*0.45 -> 28890 | C44: =C45*2*0.45 -> 33030 | D44: 37170 | E44: 41265 | F44: 44595 | G44: 47880 | H44: 51210 | I44: 54495 | J44: 722 | K44: 774 | L44: 929 | M44: 1073 | N44: 1197 | O44: 1321 | Q44: Santa Clara50% AMI | R44: 62450 | S44: 71400 | T44: 80300 | U44: 89200 | V44: 96350 | W44: 103500 | X44: 110650 | Y44: 117750
A45: Amador50% AMI | B45: =VLOOKUP(A45,$Q$2:$Y$59,2,FALSE) -> 32100 | C45: =VLOOKUP(A45,$Q$2:$Y$59,3,FALSE) -> 36700 | D45: =VLOOKUP(A45,$Q$2:$Y$59,4,FALSE) -> 41300 | E45: =VLOOKUP(A45,$Q$2:$Y$59,5,FALSE) -> 45850 | F45: =VLOOKUP(A45,$Q$2:$Y$59,6,FALSE) -> 49550 | G45: =VLOOKUP(A45,$Q$2:$Y$59,7,FALSE) -> 53200 | H45: =VLOOKUP(A45,$Q$2:$Y$59,8,FALSE) -> 56900 | I45: =VLOOKUP(A45,$Q$2:$Y$59,9,FALSE) -> 60550 | J45: =TRUNC(B45/12*0.3) -> 802 | K45: =TRUNC((B45+C45)/2/12*0.3) -> 860 | L45: =TRUNC((D45)/12*0.3) -> 1032 | M45: =TRUNC(((E45+F45)/2)/12*0.3) -> 1192 | N45: =TRUNC(G45/12*0.3) -> 1330 | O45: =TRUNC(((H45+I45)/2)/12*0.3) -> 1468 | Q45: Santa Cruz50% AMI | R45: 57650 | S45: 65900 | T45: 74150 | U45: 82350 | V45: 88950 | W45: 95550 | X45: 102150 | Y45: 108750
A46: Amador55% AMI | B46: =B45*2*0.55 -> 35310 | C46: =C45*2*0.55 -> 40370 | D46: 45430 | E46: 50435 | F46: 54505 | G46: 58520 | H46: 62590 | I46: 66605 | J46: =TRUNC(B46/12*0.3) -> 882 | K46: =TRUNC((B46+C46)/2/12*0.3) -> 946 | L46: =TRUNC((D46)/12*0.3) -> 1135 | M46: =TRUNC(((E46+F46)/2)/12*0.3) -> 1311 | N46: =TRUNC(G46/12*0.3) -> 1463 | O46: =TRUNC(((H46+I46)/2)/12*0.3) -> 1614 | Q46: Shasta50% AMI | R46: 29400 | S46: 33600 | T46: 37800 | U46: 42000 | V46: 45400 | W46: 48750 | X46: 52100 | Y46: 55450
A47: Amador60% AMI | B47: =B45*2*0.6 -> 38520 | C47: =C45*2*0.6 -> 44040 | D47: 49560 | E47: 55020 | F47: 59460 | G47: 63840 | H47: 68280 | I47: 72660 | J47: 963 | K47: 1032 | L47: 1239 | M47: 1431 | N47: 1596 | O47: 1761 | Q47: Sierra50% AMI | R47: 29950 | S47: 34200 | T47: 38500 | U47: 42750 | V47: 46200 | W47: 49600 | X47: 53050 | Y47: 56450
A48: Amador65% AMI | B48: =B45*2*0.65 -> 41730 | C48: =C45*2*0.65 -> 47710 | D48: 53690 | E48: 59605 | F48: 64415 | G48: 69160 | H48: 73970 | I48: 78715 | J48: 1043 | K48: 1118 | L48: 1342 | M48: 1550 | N48: 1729 | O48: 1908 | Q48: Siskiyou50% AMI | R48: 28900 | S48: 33000 | T48: 37150 | U48: 41250 | V48: 44550 | W48: 47850 | X48: 51150 | Y48: 54450
A49: Amador70% AMI | B49: =B45*2*0.7 -> 44940 | C49: =C45*2*0.7 -> 51380 | D49: 57820 | E49: 64190 | F49: 69370 | G49: 74480 | H49: 79660 | I49: 84770 | J49: 1123 | K49: 1204 | L49: 1445 | M49: 1669 | N49: 1862 | O49: 2055 | Q49: Solano50% AMI | R49: 40050 | S49: 45800 | T49: 51500 | U49: 57200 | V49: 61800 | W49: 66400 | X49: 70950 | Y49: 75550
A50: Amador75% AMI | B50: =B45*2*0.75 -> 48150 | C50: =C45*2*0.75 -> 55050 | D50: 61950 | E50: 68775 | F50: 74325 | G50: 79800 | H50: 85350 | I50: 90825 | J50: 1203 | K50: 1290 | L50: 1548 | M50: 1788 | N50: 1995 | O50: 2202 | Q50: Sonoma50% AMI | R50: 44050 | S50: 50350 | T50: 56650 | U50: 62900 | V50: 67950 | W50: 73000 | X50: 78000 | Y50: 83050
A51: Amador80% AMI | B51: =B45*2*0.8 -> 51360 | C51: =C45*2*0.8 -> 58720 | D51: 66080 | E51: 73360 | F51: 79280 | G51: 85120 | H51: 91040 | I51: 96880 | J51: 1284 | K51: 1376 | L51: 1652 | M51: 1908 | N51: 2128 | O51: 2349 | Q51: Stanislaus50% AMI | R51: 29550 | S51: 33800 | T51: 38000 | U51: 42200 | V51: 45600 | W51: 49000 | X51: 52350 | Y51: 55750
A52: Amador90% AMI | B52: =B45*2*0.9 -> 57780 | C52: =C45*2*0.9 -> 66060 | D52: 74340 | E52: 82530 | F52: 89190 | G52: 95760 | H52: 102420 | I52: 108990 | J52: 1444 | K52: 1548 | L52: 1858 | M52: 2146 | N52: 2394 | O52: 2642 | Q52: Sutter50% AMI | R52: 28900 | S52: 33000 | T52: 37150 | U52: 41250 | V52: 44550 | W52: 47850 | X52: 51150 | Y52: 54450
A53: Amador100% AMI | B53: =B45*2 -> 64200 | C53: =C45*2 -> 73400 | D53: 82600 | E53: 91700 | F53: 99100 | G53: 106400 | H53: 113800 | I53: 121100 | J53: =J45*2 -> 1604 | K53: =K45*2 -> 1720 | L53: 2064 | M53: 2384 | N53: 2660 | O53: 2936 | Q53: Tehama50% AMI | R53: 28900 | S53: 33000 | T53: 37150 | U53: 41250 | V53: 44550 | W53: 47850 | X53: 51150 | Y53: 54450
A54: Amador110% AMI | B54: =B45*2*1.1 -> 70620 | C54: =C45*2*1.1 -> 80740 | D54: 90860 | E54: 100870 | F54: 109010 | G54: 117040 | H54: 125180 | I54: 133210 | J54: =TRUNC(B54/12*0.3) -> 1765 | K54: =TRUNC((B54+C54)/2/12*0.3) -> 1892 | L54: =TRUNC((D54)/12*0.3) -> 2271 | M54: =TRUNC(((E54+F54)/2)/12*0.3) -> 2623 | N54: =TRUNC(G54/12*0.3) -> 2926 | O54: =TRUNC(((H54+I54)/2)/12*0.3) -> 3229 | Q54: Trinity50% AMI | R54: 28900 | S54: 33000 | T54: 37150 | U54: 41250 | V54: 44550 | W54: 47850 | X54: 51150 | Y54: 54450
A55: Amador120% AMI | B55: =B45*2*1.2 -> 77040 | C55: =C45*2*1.2 -> 88080 | D55: 99120 | E55: 110040 | F55: 118920 | G55: 127680 | H55: 136560 | I55: 145320 | J55: 1926 | K55: 2064 | L55: 2478 | M55: 2862 | N55: 3192 | O55: 3523 | Q55: Tulare50% AMI | R55: 28900 | S55: 33000 | T55: 37150 | U55: 41250 | V55: 44550 | W55: 47850 | X55: 51150 | Y55: 54450
A56: Butte15% AMI | B56: =B63*2*0.15 -> 8670 | C56: =C63*2*0.15 -> 9900 | D56: =D63*2*0.15 -> 11145 | E56: =E63*2*0.15 -> 12375 | F56: =F63*2*0.15 -> 13365 | G56: =G63*2*0.15 -> 14355 | H56: 15345 | I56: 16335 | J56: 216 | K56: 232 | L56: 278 | M56: 321 | N56: 358 | O56: 396 | Q56: Tuolumne50% AMI | R56: 30850 | S56: 35250 | T56: 39650 | U56: 44050 | V56: 47600 | W56: 51100 | X56: 54650 | Y56: 58150
A57: Butte20% AMI | B57: =B63*2*0.2 -> 11560 | C57: =C63*2*0.2 -> 13200 | D57: 14860 | E57: 16500 | F57: 17820 | G57: 19140 | H57: 20460 | I57: 21780 | J57: 289 | K57: 309 | L57: 371 | M57: 429 | N57: 478 | O57: 528 | Q57: Ventura50% AMI | R57: 46500 | S57: 53150 | T57: 59800 | U57: 66400 | V57: 71750 | W57: 77050 | X57: 82350 | Y57: 87650
A58: Butte25% AMI | B58: =B63*2*0.25 -> 14450 | C58: =C63*2*0.25 -> 16500 | D58: 18575 | E58: 20625 | F58: 22275 | G58: 23925 | H58: 25575 | I58: 27225 | J58: 361 | K58: 386 | L58: 464 | M58: 536 | N58: 598 | O58: 660 | Q58: Yolo50% AMI | R58: 36750 | S58: 42000 | T58: 47250 | U58: 52450 | V58: 56650 | W58: 60850 | X58: 65050 | Y58: 69250
A59: Butte30% AMI | B59: =B63*2*0.3 -> 17340 | C59: =C63*2*0.3 -> 19800 | D59: 22290 | E59: 24750 | F59: 26730 | G59: 28710 | H59: 30690 | I59: 32670 | J59: 433 | K59: 464 | L59: 557 | M59: 643 | N59: 717 | O59: 792 | Q59: Yuba50% AMI | R59: 28900 | S59: 33000 | T59: 37150 | U59: 41250 | V59: 44550 | W59: 47850 | X59: 51150 | Y59: 54450
A60: Butte35% AMI | B60: =B63*2*0.35 -> 20230 | C60: =C63*2*0.35 -> 23100 | D60: 26005 | E60: 28875 | F60: 31185 | G60: 33495 | H60: 35805 | I60: 38115 | J60: 505 | K60: 541 | L60: 650 | M60: 750 | N60: 837 | O60: 924
A61: Butte40% AMI | B61: =B63*2*0.4 -> 23120 | C61: =C63*2*0.4 -> 26400 | D61: 29720 | E61: 33000 | F61: 35640 | G61: 38280 | H61: 40920 | I61: 43560 | J61: 578 | K61: 619 | L61: 743 | M61: 858 | N61: 957 | O61: 1056
A62: Butte45% AMI | B62: =B63*2*0.45 -> 26010 | C62: =C63*2*0.45 -> 29700 | D62: 33435 | E62: 37125 | F62: 40095 | G62: 43065 | H62: 46035 | I62: 49005 | J62: 650 | K62: 696 | L62: 835 | M62: 965 | N62: 1076 | O62: 1188
A63: Butte50% AMI | B63: =VLOOKUP(A63,$Q$2:$Y$59,2,FALSE) -> 28900 | C63: =VLOOKUP(A63,$Q$2:$Y$59,3,FALSE) -> 33000 | D63: =VLOOKUP(A63,$Q$2:$Y$59,4,FALSE) -> 37150 | E63: =VLOOKUP(A63,$Q$2:$Y$59,5,FALSE) -> 41250 | F63: =VLOOKUP(A63,$Q$2:$Y$59,6,FALSE) -> 44550 | G63: =VLOOKUP(A63,$Q$2:$Y$59,7,FALSE) -> 47850 | H63: =VLOOKUP(A63,$Q$2:$Y$59,8,FALSE) -> 51150 | I63: =VLOOKUP(A63,$Q$2:$Y$59,9,FALSE) -> 54450 | J63: =TRUNC(B63/12*0.3) -> 722 | K63: =TRUNC((B63+C63)/2/12*0.3) -> 773 | L63: =TRUNC((D63)/12*0.3) -> 928 | M63: =TRUNC(((E63+F63)/2)/12*0.3) -> 1072 | N63: =TRUNC(G63/12*0.3) -> 1196 | O63: =TRUNC(((H63+I63)/2)/12*0.3) -> 1320
A64: Butte55% AMI | B64: =B63*2*0.55 -> 31790 | C64: =C63*2*0.55 -> 36300 | D64: 40865 | E64: 45375 | F64: 49005 | G64: 52635 | H64: 56265 | I64: 59895 | J64: =TRUNC(B64/12*0.3) -> 794 | K64: =TRUNC((B64+C64)/2/12*0.3) -> 851 | L64: =TRUNC((D64)/12*0.3) -> 1021 | M64: =TRUNC(((E64+F64)/2)/12*0.3) -> 1179 | N64: =TRUNC(G64/12*0.3) -> 1315 | O64: =TRUNC(((H64+I64)/2)/12*0.3) -> 1452
A65: Butte60% AMI | B65: =B63*2*0.6 -> 34680 | C65: =C63*2*0.6 -> 39600 | D65: 44580 | E65: 49500 | F65: 53460 | G65: 57420 | H65: 61380 | I65: 65340 | J65: 867 | K65: 928 | L65: 1114 | M65: 1287 | N65: 1435 | O65: 1584
A66: Butte65% AMI | B66: =B63*2*0.65 -> 37570 | C66: =C63*2*0.65 -> 42900 | D66: 48295 | E66: 53625 | F66: 57915 | G66: 62205 | H66: 66495 | I66: 70785 | J66: 939 | K66: 1005 | L66: 1207 | M66: 1394 | N66: 1555 | O66: 1716
A67: Butte70% AMI | B67: =B63*2*0.7 -> 40460 | C67: =C63*2*0.7 -> 46200 | D67: 52010 | E67: 57750 | F67: 62370 | G67: 66990 | H67: 71610 | I67: 76230 | J67: 1011 | K67: 1083 | L67: 1300 | M67: 1501 | N67: 1674 | O67: 1848
A68: Butte75% AMI | B68: =B63*2*0.75 -> 43350 | C68: =C63*2*0.75 -> 49500 | D68: 55725 | E68: 61875 | F68: 66825 | G68: 71775 | H68: 76725 | I68: 81675 | J68: 1083 | K68: 1160 | L68: 1393 | M68: 1608 | N68: 1794 | O68: 1980
A69: Butte80% AMI | B69: =B63*2*0.8 -> 46240 | C69: =C63*2*0.8 -> 52800 | D69: 59440 | E69: 66000 | F69: 71280 | G69: 76560 | H69: 81840 | I69: 87120 | J69: 1156 | K69: 1238 | L69: 1486 | M69: 1716 | N69: 1914 | O69: 2112
A70: Butte90% AMI | B70: =B63*2*0.9 -> 52020 | C70: =C63*2*0.9 -> 59400 | D70: 66870 | E70: 74250 | F70: 80190 | G70: 86130 | H70: 92070 | I70: 98010 | J70: 1300 | K70: 1392 | L70: 1671 | M70: 1930 | N70: 2153 | O70: 2376
A71: Butte100% AMI | B71: =B63*2 -> 57800 | C71: =C63*2 -> 66000 | D71: 74300 | E71: 82500 | F71: 89100 | G71: 95700 | H71: 102300 | I71: 108900 | J71: =J63*2 -> 1444 | K71: =K63*2 -> 1546 | L71: 1856 | M71: 2144 | N71: 2392 | O71: 2640
A72: Butte110% AMI | B72: =B63*2*1.1 -> 63580 | C72: =C63*2*1.1 -> 72600 | D72: 81730 | E72: 90750 | F72: 98010 | G72: 105270 | H72: 112530 | I72: 119790 | J72: =TRUNC(B72/12*0.3) -> 1589 | K72: =TRUNC((B72+C72)/2/12*0.3) -> 1702 | L72: =TRUNC((D72)/12*0.3) -> 2043 | M72: =TRUNC(((E72+F72)/2)/12*0.3) -> 2359 | N72: =TRUNC(G72/12*0.3) -> 2631 | O72: =TRUNC(((H72+I72)/2)/12*0.3) -> 2904
A73: Butte120% AMI | B73: =B63*2*1.2 -> 69360 | C73: =C63*2*1.2 -> 79200 | D73: 89160 | E73: 99000 | F73: 106920 | G73: 114840 | H73: 122760 | I73: 130680 | J73: 1734 | K73: 1857 | L73: 2229 | M73: 2574 | N73: 2871 | O73: 3168
A74: Calaveras15% AMI | B74: =B81*2*0.15 -> 10020 | C74: =C81*2*0.15 -> 11445 | D74: =D81*2*0.15 -> 12870 | E74: =E81*2*0.15 -> 14295 | F74: =F81*2*0.15 -> 15450 | G74: =G81*2*0.15 -> 16590 | H74: 17730 | I74: 18870 | J74: 250 | K74: 268 | L74: 321 | M74: 371 | N74: 414 | O74: 457
A75: Calaveras20% AMI | B75: =B81*2*0.2 -> 13360 | C75: =C81*2*0.2 -> 15260 | D75: 17160 | E75: 19060 | F75: 20600 | G75: 22120 | H75: 23640 | I75: 25160 | J75: 334 | K75: 357 | L75: 429 | M75: 495 | N75: 553 | O75: 610
A76: Calaveras25% AMI | B76: =B81*2*0.25 -> 16700 | C76: =C81*2*0.25 -> 19075 | D76: 21450 | E76: 23825 | F76: 25750 | G76: 27650 | H76: 29550 | I76: 31450 | J76: 417 | K76: 447 | L76: 536 | M76: 619 | N76: 691 | O76: 762
A77: Calaveras30% AMI | B77: =B81*2*0.3 -> 20040 | C77: =C81*2*0.3 -> 22890 | D77: 25740 | E77: 28590 | F77: 30900 | G77: 33180 | H77: 35460 | I77: 37740 | J77: 501 | K77: 536 | L77: 643 | M77: 743 | N77: 829 | O77: 915
A78: Calaveras35% AMI | B78: =B81*2*0.35 -> 23380 | C78: =C81*2*0.35 -> 26705 | D78: 30030 | E78: 33355 | F78: 36050 | G78: 38710 | H78: 41370 | I78: 44030 | J78: 584 | K78: 626 | L78: 750 | M78: 867 | N78: 967 | O78: 1067
A79: Calaveras40% AMI | B79: =B81*2*0.4 -> 26720 | C79: =C81*2*0.4 -> 30520 | D79: 34320 | E79: 38120 | F79: 41200 | G79: 44240 | H79: 47280 | I79: 50320 | J79: 668 | K79: 715 | L79: 858 | M79: 991 | N79: 1106 | O79: 1220
A80: Calaveras45% AMI | B80: =B81*2*0.45 -> 30060 | C80: =C81*2*0.45 -> 34335 | D80: 38610 | E80: 42885 | F80: 46350 | G80: 49770 | H80: 53190 | I80: 56610 | J80: 751 | K80: 804 | L80: 965 | M80: 1115 | N80: 1244 | O80: 1372
A81: Calaveras50% AMI | B81: =VLOOKUP(A81,$Q$2:$Y$59,2,FALSE) -> 33400 | C81: =VLOOKUP(A81,$Q$2:$Y$59,3,FALSE) -> 38150 | D81: =VLOOKUP(A81,$Q$2:$Y$59,4,FALSE) -> 42900 | E81: =VLOOKUP(A81,$Q$2:$Y$59,5,FALSE) -> 47650 | F81: =VLOOKUP(A81,$Q$2:$Y$59,6,FALSE) -> 51500 | G81: =VLOOKUP(A81,$Q$2:$Y$59,7,FALSE) -> 55300 | H81: =VLOOKUP(A81,$Q$2:$Y$59,8,FALSE) -> 59100 | I81: =VLOOKUP(A81,$Q$2:$Y$59,9,FALSE) -> 62900 | J81: =TRUNC(B81/12*0.3) -> 835 | K81: =TRUNC((B81+C81)/2/12*0.3) -> 894 | L81: =TRUNC((D81)/12*0.3) -> 1072 | M81: =TRUNC(((E81+F81)/2)/12*0.3) -> 1239 | N81: =TRUNC(G81/12*0.3) -> 1382 | O81: =TRUNC(((H81+I81)/2)/12*0.3) -> 1525
A82: Calaveras55% AMI | B82: =B81*2*0.55 -> 36740 | C82: =C81*2*0.55 -> 41965 | D82: 47190 | E82: 52415 | F82: 56650 | G82: 60830 | H82: 65010 | I82: 69190 | J82: =TRUNC(B82/12*0.3) -> 918 | K82: =TRUNC((B82+C82)/2/12*0.3) -> 983 | L82: =TRUNC((D82)/12*0.3) -> 1179 | M82: =TRUNC(((E82+F82)/2)/12*0.3) -> 1363 | N82: =TRUNC(G82/12*0.3) -> 1520 | O82: =TRUNC(((H82+I82)/2)/12*0.3) -> 1677
A83: Calaveras60% AMI | B83: =B81*2*0.6 -> 40080 | C83: =C81*2*0.6 -> 45780 | D83: 51480 | E83: 57180 | F83: 61800 | G83: 66360 | H83: 70920 | I83: 75480 | J83: 1002 | K83: 1073 | L83: 1287 | M83: 1487 | N83: 1659 | O83: 1830
A84: Calaveras65% AMI | B84: =B81*2*0.65 -> 43420 | C84: =C81*2*0.65 -> 49595 | D84: 55770 | E84: 61945 | F84: 66950 | G84: 71890 | H84: 76830 | I84: 81770 | J84: 1085 | K84: 1162 | L84: 1394 | M84: 1611 | N84: 1797 | O84: 1982
A85: Calaveras70% AMI | B85: =B81*2*0.7 -> 46760 | C85: =C81*2*0.7 -> 53410 | D85: 60060 | E85: 66710 | F85: 72100 | G85: 77420 | H85: 82740 | I85: 88060 | J85: 1169 | K85: 1252 | L85: 1501 | M85: 1735 | N85: 1935 | O85: 2135
A86: Calaveras75% AMI | B86: =B81*2*0.75 -> 50100 | C86: =C81*2*0.75 -> 57225 | D86: 64350 | E86: 71475 | F86: 77250 | G86: 82950 | H86: 88650 | I86: 94350 | J86: 1252 | K86: 1341 | L86: 1608 | M86: 1859 | N86: 2073 | O86: 2287
A87: Calaveras80% AMI | B87: =B81*2*0.8 -> 53440 | C87: =C81*2*0.8 -> 61040 | D87: 68640 | E87: 76240 | F87: 82400 | G87: 88480 | H87: 94560 | I87: 100640 | J87: 1336 | K87: 1431 | L87: 1716 | M87: 1983 | N87: 2212 | O87: 2440
A88: Calaveras90% AMI | B88: =B81*2*0.9 -> 60120 | C88: =C81*2*0.9 -> 68670 | D88: 77220 | E88: 85770 | F88: 92700 | G88: 99540 | H88: 106380 | I88: 113220 | J88: 1503 | K88: 1609 | L88: 1930 | M88: 2230 | N88: 2488 | O88: 2745
A89: Calaveras100% AMI | B89: =B81*2 -> 66800 | C89: =C81*2 -> 76300 | D89: 85800 | E89: 95300 | F89: 103000 | G89: 110600 | H89: 118200 | I89: 125800 | J89: =J81*2 -> 1670 | K89: =K81*2 -> 1788 | L89: 2144 | M89: 2478 | N89: 2764 | O89: 3050
A90: Calaveras110% AMI | B90: =B81*2*1.1 -> 73480 | C90: =C81*2*1.1 -> 83930 | D90: 94380 | E90: 104830 | F90: 113300 | G90: 121660 | H90: 130020 | I90: 138380 | J90: =TRUNC(B90/12*0.3) -> 1837 | K90: =TRUNC((B90+C90)/2/12*0.3) -> 1967 | L90: =TRUNC((D90)/12*0.3) -> 2359 | M90: =TRUNC(((E90+F90)/2)/12*0.3) -> 2726 | N90: =TRUNC(G90/12*0.3) -> 3041 | O90: =TRUNC(((H90+I90)/2)/12*0.3) -> 3355
A91: Calaveras120% AMI | B91: =B81*2*1.2 -> 80160 | C91: =C81*2*1.2 -> 91560 | D91: 102960 | E91: 114360 | F91: 123600 | G91: 132720 | H91: 141840 | I91: 150960 | J91: 2004 | K91: 2146 | L91: 2574 | M91: 2974 | N91: 3318 | O91: 3660
A92: Colusa15% AMI | B92: =B99*2*0.15 -> 8670 | C92: =C99*2*0.15 -> 9900 | D92: =D99*2*0.15 -> 11145 | E92: =E99*2*0.15 -> 12375 | F92: =F99*2*0.15 -> 13365 | G92: =G99*2*0.15 -> 14355 | H92: 15345 | I92: 16335 | J92: 216 | K92: 232 | L92: 278 | M92: 321 | N92: 358 | O92: 396
A93: Colusa20% AMI | B93: =B99*2*0.2 -> 11560 | C93: =C99*2*0.2 -> 13200 | D93: 14860 | E93: 16500 | F93: 17820 | G93: 19140 | H93: 20460 | I93: 21780 | J93: 289 | K93: 309 | L93: 371 | M93: 429 | N93: 478 | O93: 528
A94: Colusa25% AMI | B94: =B99*2*0.25 -> 14450 | C94: =C99*2*0.25 -> 16500 | D94: 18575 | E94: 20625 | F94: 22275 | G94: 23925 | H94: 25575 | I94: 27225 | J94: 361 | K94: 386 | L94: 464 | M94: 536 | N94: 598 | O94: 660
A95: Colusa30% AMI | B95: =B99*2*0.3 -> 17340 | C95: =C99*2*0.3 -> 19800 | D95: 22290 | E95: 24750 | F95: 26730 | G95: 28710 | H95: 30690 | I95: 32670 | J95: 433 | K95: 464 | L95: 557 | M95: 643 | N95: 717 | O95: 792
A96: Colusa35% AMI | B96: =B99*2*0.35 -> 20230 | C96: =C99*2*0.35 -> 23100 | D96: 26005 | E96: 28875 | F96: 31185 | G96: 33495 | H96: 35805 | I96: 38115 | J96: 505 | K96: 541 | L96: 650 | M96: 750 | N96: 837 | O96: 924
A97: Colusa40% AMI | B97: =B99*2*0.4 -> 23120 | C97: =C99*2*0.4 -> 26400 | D97: 29720 | E97: 33000 | F97: 35640 | G97: 38280 | H97: 40920 | I97: 43560 | J97: 578 | K97: 619 | L97: 743 | M97: 858 | N97: 957 | O97: 1056
A98: Colusa45% AMI | B98: =B99*2*0.45 -> 26010 | C98: =C99*2*0.45 -> 29700 | D98: 33435 | E98: 37125 | F98: 40095 | G98: 43065 | H98: 46035 | I98: 49005 | J98: 650 | K98: 696 | L98: 835 | M98: 965 | N98: 1076 | O98: 1188
A99: Colusa50% AMI | B99: =VLOOKUP(A99,$Q$2:$Y$59,2,FALSE) -> 28900 | C99: =VLOOKUP(A99,$Q$2:$Y$59,3,FALSE) -> 33000 | D99: =VLOOKUP(A99,$Q$2:$Y$59,4,FALSE) -> 37150 | E99: =VLOOKUP(A99,$Q$2:$Y$59,5,FALSE) -> 41250 | F99: =VLOOKUP(A99,$Q$2:$Y$59,6,FALSE) -> 44550 | G99: =VLOOKUP(A99,$Q$2:$Y$59,7,FALSE) -> 47850 | H99: =VLOOKUP(A99,$Q$2:$Y$59,8,FALSE) -> 51150 | I99: =VLOOKUP(A99,$Q$2:$Y$59,9,FALSE) -> 54450 | J99: =TRUNC(B99/12*0.3) -> 722 | K99: =TRUNC((B99+C99)/2/12*0.3) -> 773 | L99: =TRUNC((D99)/12*0.3) -> 928 | M99: =TRUNC(((E99+F99)/2)/12*0.3) -> 1072 | N99: =TRUNC(G99/12*0.3) -> 1196 | O99: =TRUNC(((H99+I99)/2)/12*0.3) -> 1320
A100: Colusa55% AMI | B100: =B99*2*0.55 -> 31790 | C100: =C99*2*0.55 -> 36300 | D100: 40865 | E100: 45375 | F100: 49005 | G100: 52635 | H100: 56265 | I100: 59895 | J100: =TRUNC(B100/12*0.3) -> 794 | K100: =TRUNC((B100+C100)/2/12*0.3) -> 851 | L100: =TRUNC((D100)/12*0.3) -> 1021 | M100: =TRUNC(((E100+F100)/2)/12*0.3) -> 1179 | N100: =TRUNC(G100/12*0.3) -> 1315 | O100: =TRUNC(((H100+I100)/2)/12*0.3) -> 1452
A101: Colusa60% AMI | B101: =B99*2*0.6 -> 34680 | C101: =C99*2*0.6 -> 39600 | D101: 44580 | E101: 49500 | F101: 53460 | G101: 57420 | H101: 61380 | I101: 65340 | J101: 867 | K101: 928 | L101: 1114 | M101: 1287 | N101: 1435 | O101: 1584
A102: Colusa65% AMI | B102: =B99*2*0.65 -> 37570 | C102: =C99*2*0.65 -> 42900 | D102: 48295 | E102: 53625 | F102: 57915 | G102: 62205 | H102: 66495 | I102: 70785 | J102: 939 | K102: 1005 | L102: 1207 | M102: 1394 | N102: 1555 | O102: 1716
A103: Colusa70% AMI | B103: =B99*2*0.7 -> 40460 | C103: =C99*2*0.7 -> 46200 | D103: 52010 | E103: 57750 | F103: 62370 | G103: 66990 | H103: 71610 | I103: 76230 | J103: 1011 | K103: 1083 | L103: 1300 | M103: 1501 | N103: 1674 | O103: 1848
A104: Colusa75% AMI | B104: =B99*2*0.75 -> 43350 | C104: =C99*2*0.75 -> 49500 | D104: 55725 | E104: 61875 | F104: 66825 | G104: 71775 | H104: 76725 | I104: 81675 | J104: 1083 | K104: 1160 | L104: 1393 | M104: 1608 | N104: 1794 | O104: 1980
A105: Colusa80% AMI | B105: =B99*2*0.8 -> 46240 | C105: =C99*2*0.8 -> 52800 | D105: 59440 | E105: 66000 | F105: 71280 | G105: 76560 | H105: 81840 | I105: 87120 | J105: 1156 | K105: 1238 | L105: 1486 | M105: 1716 | N105: 1914 | O105: 2112
A106: Colusa90% AMI | B106: =B99*2*0.9 -> 52020 | C106: =C99*2*0.9 -> 59400 | D106: 66870 | E106: 74250 | F106: 80190 | G106: 86130 | H106: 92070 | I106: 98010 | J106: 1300 | K106: 1392 | L106: 1671 | M106: 1930 | N106: 2153 | O106: 2376
A107: Colusa100% AMI | B107: =B99*2 -> 57800 | C107: =C99*2 -> 66000 | D107: 74300 | E107: 82500 | F107: 89100 | G107: 95700 | H107: 102300 | I107: 108900 | J107: =J99*2 -> 1444 | K107: =K99*2 -> 1546 | L107: 1856 | M107: 2144 | N107: 2392 | O107: 2640
A108: Colusa110% AMI | B108: =B99*2*1.1 -> 63580 | C108: =C99*2*1.1 -> 72600 | D108: 81730 | E108: 90750 | F108: 98010 | G108: 105270 | H108: 112530 | I108: 119790 | J108: =TRUNC(B108/12*0.3) -> 1589 | K108: =TRUNC((B108+C108)/2/12*0.3) -> 1702 | L108: =TRUNC((D108)/12*0.3) -> 2043 | M108: =TRUNC(((E108+F108)/2)/12*0.3) -> 2359 | N108: =TRUNC(G108/12*0.3) -> 2631 | O108: =TRUNC(((H108+I108)/2)/12*0.3) -> 2904
A109: Colusa120% AMI | B109: =B99*2*1.2 -> 69360 | C109: =C99*2*1.2 -> 79200 | D109: 89160 | E109: 99000 | F109: 106920 | G109: 114840 | H109: 122760 | I109: 130680 | J109: 1734 | K109: 1857 | L109: 2229 | M109: 2574 | N109: 2871 | O109: 3168
A110: Contra Costa15% AMI | B110: =B117*2*0.15 -> 15540 | C110: =C117*2*0.15 -> 17760 | D110: =D117*2*0.15 -> 19980 | E110: =E117*2*0.15 -> 22185 | F110: =F117*2*0.15 -> 23970 | G110: =G117*2*0.15 -> 25740 | H110: 27510 | I110: 29295 | J110: 388 | K110: 416 | L110: 499 | M110: 576 | N110: 643 | O110: 710
A111: Contra Costa20% AMI | B111: =B117*2*0.2 -> 20720 | C111: =C117*2*0.2 -> 23680 | D111: 26640 | E111: 29580 | F111: 31960 | G111: 34320 | H111: 36680 | I111: 39060 | J111: 518 | K111: 555 | L111: 666 | M111: 769 | N111: 858 | O111: 946
A112: Contra Costa25% AMI | B112: =B117*2*0.25 -> 25900 | C112: =C117*2*0.25 -> 29600 | D112: 33300 | E112: 36975 | F112: 39950 | G112: 42900 | H112: 45850 | I112: 48825 | J112: 647 | K112: 693 | L112: 832 | M112: 961 | N112: 1072 | O112: 1183
A113: Contra Costa30% AMI | B113: =B117*2*0.3 -> 31080 | C113: =C117*2*0.3 -> 35520 | D113: 39960 | E113: 44370 | F113: 47940 | G113: 51480 | H113: 55020 | I113: 58590 | J113: 777 | K113: 832 | L113: 999 | M113: 1153 | N113: 1287 | O113: 1420
A114: Contra Costa35% AMI | B114: =B117*2*0.35 -> 36260 | C114: =C117*2*0.35 -> 41440 | D114: 46620 | E114: 51765 | F114: 55930 | G114: 60060 | H114: 64190 | I114: 68355 | J114: 906 | K114: 971 | L114: 1165 | M114: 1346 | N114: 1501 | O114: 1656
A115: Contra Costa40% AMI | B115: =B117*2*0.4 -> 41440 | C115: =C117*2*0.4 -> 47360 | D115: 53280 | E115: 59160 | F115: 63920 | G115: 68640 | H115: 73360 | I115: 78120 | J115: 1036 | K115: 1110 | L115: 1332 | M115: 1538 | N115: 1716 | O115: 1893
A116: Contra Costa45% AMI | B116: =B117*2*0.45 -> 46620 | C116: =C117*2*0.45 -> 53280 | D116: 59940 | E116: 66555 | F116: 71910 | G116: 77220 | H116: 82530 | I116: 87885 | J116: 1165 | K116: 1248 | L116: 1498 | M116: 1730 | N116: 1930 | O116: 2130
A117: Contra Costa50% AMI | B117: =VLOOKUP(A117,$Q$2:$Y$59,2,FALSE) -> 51800 | C117: =VLOOKUP(A117,$Q$2:$Y$59,3,FALSE) -> 59200 | D117: =VLOOKUP(A117,$Q$2:$Y$59,4,FALSE) -> 66600 | E117: =VLOOKUP(A117,$Q$2:$Y$59,5,FALSE) -> 73950 | F117: =VLOOKUP(A117,$Q$2:$Y$59,6,FALSE) -> 79900 | G117: =VLOOKUP(A117,$Q$2:$Y$59,7,FALSE) -> 85800 | H117: =VLOOKUP(A117,$Q$2:$Y$59,8,FALSE) -> 91700 | I117: =VLOOKUP(A117,$Q$2:$Y$59,9,FALSE) -> 97650 | J117: =TRUNC(B117/12*0.3) -> 1295 | K117: =TRUNC((B117+C117)/2/12*0.3) -> 1387 | L117: =TRUNC((D117)/12*0.3) -> 1665 | M117: =TRUNC(((E117+F117)/2)/12*0.3) -> 1923 | N117: =TRUNC(G117/12*0.3) -> 2145 | O117: =TRUNC(((H117+I117)/2)/12*0.3) -> 2366
A118: Contra Costa55% AMI | B118: =B117*2*0.55 -> 56980 | C118: =C117*2*0.55 -> 65120 | D118: 73260 | E118: 81345 | F118: 87890 | G118: 94380 | H118: 100870 | I118: 107415 | J118: =TRUNC(B118/12*0.3) -> 1424 | K118: =TRUNC((B118+C118)/2/12*0.3) -> 1526 | L118: =TRUNC((D118)/12*0.3) -> 1831 | M118: =TRUNC(((E118+F118)/2)/12*0.3) -> 2115 | N118: =TRUNC(G118/12*0.3) -> 2359 | O118: =TRUNC(((H118+I118)/2)/12*0.3) -> 2603
A119: Contra Costa60% AMI | B119: =B117*2*0.6 -> 62160 | C119: =C117*2*0.6 -> 71040 | D119: 79920 | E119: 88740 | F119: 95880 | G119: 102960 | H119: 110040 | I119: 117180 | J119: 1554 | K119: 1665 | L119: 1998 | M119: 2307 | N119: 2574 | O119: 2840
A120: Contra Costa65% AMI | B120: =B117*2*0.65 -> 67340 | C120: =C117*2*0.65 -> 76960 | D120: 86580 | E120: 96135 | F120: 103870 | G120: 111540 | H120: 119210 | I120: 126945 | J120: 1683 | K120: 1803 | L120: 2164 | M120: 2500 | N120: 2788 | O120: 3076
A121: Contra Costa70% AMI | B121: =B117*2*0.7 -> 72520 | C121: =C117*2*0.7 -> 82880 | D121: 93240 | E121: 103530 | F121: 111860 | G121: 120120 | H121: 128380 | I121: 136710 | J121: 1813 | K121: 1942 | L121: 2331 | M121: 2692 | N121: 3003 | O121: 3313
A122: Contra Costa75% AMI | B122: =B117*2*0.75 -> 77700 | C122: =C117*2*0.75 -> 88800 | D122: 99900 | E122: 110925 | F122: 119850 | G122: 128700 | H122: 137550 | I122: 146475 | J122: 1942 | K122: 2081 | L122: 2497 | M122: 2884 | N122: 3217 | O122: 3550
A123: Contra Costa80% AMI | B123: =B117*2*0.8 -> 82880 | C123: =C117*2*0.8 -> 94720 | D123: 106560 | E123: 118320 | F123: 127840 | G123: 137280 | H123: 146720 | I123: 156240 | J123: 2072 | K123: 2220 | L123: 2664 | M123: 3077 | N123: 3432 | O123: 3787
A124: Contra Costa90% AMI | B124: =B117*2*0.9 -> 93240 | C124: =C117*2*0.9 -> 106560 | D124: 119880 | E124: 133110 | F124: 143820 | G124: 154440 | H124: 165060 | I124: 175770 | J124: 2331 | K124: 2497 | L124: 2997 | M124: 3461 | N124: 3861 | O124: 4260
A125: Contra Costa100% AMI | B125: =B117*2 -> 103600 | C125: =C117*2 -> 118400 | D125: 133200 | E125: 147900 | F125: 159800 | G125: 171600 | H125: 183400 | I125: 195300 | J125: =J117*2 -> 2590 | K125: =K117*2 -> 2774 | L125: 3330 | M125: 3846 | N125: 4290 | O125: 4732
A126: Contra Costa110% AMI | B126: =B117*2*1.1 -> 113960 | C126: =C117*2*1.1 -> 130240 | D126: 146520 | E126: 162690 | F126: 175780 | G126: 188760 | H126: 201740 | I126: 214830 | J126: =TRUNC(B126/12*0.3) -> 2849 | K126: =TRUNC((B126+C126)/2/12*0.3) -> 3052 | L126: =TRUNC((D126)/12*0.3) -> 3663 | M126: =TRUNC(((E126+F126)/2)/12*0.3) -> 4230 | N126: =TRUNC(G126/12*0.3) -> 4719 | O126: =TRUNC(((H126+I126)/2)/12*0.3) -> 5207
A127: Contra Costa120% AMI | B127: =B117*2*1.2 -> 124320 | C127: =C117*2*1.2 -> 142080 | D127: 159840 | E127: 177480 | F127: 191760 | G127: 205920 | H127: 220080 | I127: 234360 | J127: 3108 | K127: 3330 | L127: 3996 | M127: 4615 | N127: 5148 | O127: 5680
A128: Del Norte15% AMI | B128: =B135*2*0.15 -> 8670 | C128: =C135*2*0.15 -> 9900 | D128: =D135*2*0.15 -> 11145 | E128: =E135*2*0.15 -> 12375 | F128: =F135*2*0.15 -> 13365 | G128: =G135*2*0.15 -> 14355 | H128: 15345 | I128: 16335 | J128: 216 | K128: 232 | L128: 278 | M128: 321 | N128: 358 | O128: 396
A129: Del Norte20% AMI | B129: =B135*2*0.2 -> 11560 | C129: =C135*2*0.2 -> 13200 | D129: 14860 | E129: 16500 | F129: 17820 | G129: 19140 | H129: 20460 | I129: 21780 | J129: 289 | K129: 309 | L129: 371 | M129: 429 | N129: 478 | O129: 528
A130: Del Norte25% AMI | B130: =B135*2*0.25 -> 14450 | C130: =C135*2*0.25 -> 16500 | D130: 18575 | E130: 20625 | F130: 22275 | G130: 23925 | H130: 25575 | I130: 27225 | J130: 361 | K130: 386 | L130: 464 | M130: 536 | N130: 598 | O130: 660
A131: Del Norte30% AMI | B131: =B135*2*0.3 -> 17340 | C131: =C135*2*0.3 -> 19800 | D131: 22290 | E131: 24750 | F131: 26730 | G131: 28710 | H131: 30690 | I131: 32670 | J131: 433 | K131: 464 | L131: 557 | M131: 643 | N131: 717 | O131: 792
A132: Del Norte35% AMI | B132: =B135*2*0.35 -> 20230 | C132: =C135*2*0.35 -> 23100 | D132: 26005 | E132: 28875 | F132: 31185 | G132: 33495 | H132: 35805 | I132: 38115 | J132: 505 | K132: 541 | L132: 650 | M132: 750 | N132: 837 | O132: 924
A133: Del Norte40% AMI | B133: =B135*2*0.4 -> 23120 | C133: =C135*2*0.4 -> 26400 | D133: 29720 | E133: 33000 | F133: 35640 | G133: 38280 | H133: 40920 | I133: 43560 | J133: 578 | K133: 619 | L133: 743 | M133: 858 | N133: 957 | O133: 1056
A134: Del Norte45% AMI | B134: =B135*2*0.45 -> 26010 | C134: =C135*2*0.45 -> 29700 | D134: 33435 | E134: 37125 | F134: 40095 | G134: 43065 | H134: 46035 | I134: 49005 | J134: 650 | K134: 696 | L134: 835 | M134: 965 | N134: 1076 | O134: 1188
A135: Del Norte50% AMI | B135: =VLOOKUP(A135,$Q$2:$Y$59,2,FALSE) -> 28900 | C135: =VLOOKUP(A135,$Q$2:$Y$59,3,FALSE) -> 33000 | D135: =VLOOKUP(A135,$Q$2:$Y$59,4,FALSE) -> 37150 | E135: =VLOOKUP(A135,$Q$2:$Y$59,5,FALSE) -> 41250 | F135: =VLOOKUP(A135,$Q$2:$Y$59,6,FALSE) -> 44550 | G135: =VLOOKUP(A135,$Q$2:$Y$59,7,FALSE) -> 47850 | H135: =VLOOKUP(A135,$Q$2:$Y$59,8,FALSE) -> 51150 | I135: =VLOOKUP(A135,$Q$2:$Y$59,9,FALSE) -> 54450 | J135: =TRUNC(B135/12*0.3) -> 722 | K135: =TRUNC((B135+C135)/2/12*0.3) -> 773 | L135: =TRUNC((D135)/12*0.3) -> 928 | M135: =TRUNC(((E135+F135)/2)/12*0.3) -> 1072 | N135: =TRUNC(G135/12*0.3) -> 1196 | O135: =TRUNC(((H135+I135)/2)/12*0.3) -> 1320
A136: Del Norte55% AMI | B136: =B135*2*0.55 -> 31790 | C136: =C135*2*0.55 -> 36300 | D136: 40865 | E136: 45375 | F136: 49005 | G136: 52635 | H136: 56265 | I136: 59895 | J136: =TRUNC(B136/12*0.3) -> 794 | K136: =TRUNC((B136+C136)/2/12*0.3) -> 851 | L136: =TRUNC((D136)/12*0.3) -> 1021 | M136: =TRUNC(((E136+F136)/2)/12*0.3) -> 1179 | N136: =TRUNC(G136/12*0.3) -> 1315 | O136: =TRUNC(((H136+I136)/2)/12*0.3) -> 1452
A137: Del Norte60% AMI | B137: =B135*2*0.6 -> 34680 | C137: =C135*2*0.6 -> 39600 | D137: 44580 | E137: 49500 | F137: 53460 | G137: 57420 | H137: 61380 | I137: 65340 | J137: 867 | K137: 928 | L137: 1114 | M137: 1287 | N137: 1435 | O137: 1584
A138: Del Norte65% AMI | B138: =B135*2*0.65 -> 37570 | C138: =C135*2*0.65 -> 42900 | D138: 48295 | E138: 53625 | F138: 57915 | G138: 62205 | H138: 66495 | I138: 70785 | J138: 939 | K138: 1005 | L138: 1207 | M138: 1394 | N138: 1555 | O138: 1716
A139: Del Norte70% AMI | B139: =B135*2*0.7 -> 40460 | C139: =C135*2*0.7 -> 46200 | D139: 52010 | E139: 57750 | F139: 62370 | G139: 66990 | H139: 71610 | I139: 76230 | J139: 1011 | K139: 1083 | L139: 1300 | M139: 1501 | N139: 1674 | O139: 1848
A140: Del Norte75% AMI | B140: =B135*2*0.75 -> 43350 | C140: =C135*2*0.75 -> 49500 | D140: 55725 | E140: 61875 | F140: 66825 | G140: 71775 | H140: 76725 | I140: 81675 | J140: 1083 | K140: 1160 | L140: 1393 | M140: 1608 | N140: 1794 | O140: 1980
A141: Del Norte80% AMI | B141: =B135*2*0.8 -> 46240 | C141: =C135*2*0.8 -> 52800 | D141: 59440 | E141: 66000 | F141: 71280 | G141: 76560 | H141: 81840 | I141: 87120 | J141: 1156 | K141: 1238 | L141: 1486 | M141: 1716 | N141: 1914 | O141: 2112
A142: Del Norte90% AMI | B142: =B135*2*0.9 -> 52020 | C142: =C135*2*0.9 -> 59400 | D142: 66870 | E142: 74250 | F142: 80190 | G142: 86130 | H142: 92070 | I142: 98010 | J142: 1300 | K142: 1392 | L142: 1671 | M142: 1930 | N142: 2153 | O142: 2376
A143: Del Norte100% AMI | B143: =B135*2 -> 57800 | C143: =C135*2 -> 66000 | D143: 74300 | E143: 82500 | F143: 89100 | G143: 95700 | H143: 102300 | I143: 108900 | J143: =J135*2 -> 1444 | K143: =K135*2 -> 1546 | L143: 1856 | M143: 2144 | N143: 2392 | O143: 2640
A144: Del Norte110% AMI | B144: =B135*2*1.1 -> 63580 | C144: =C135*2*1.1 -> 72600 | D144: 81730 | E144: 90750 | F144: 98010 | G144: 105270 | H144: 112530 | I144: 119790 | J144: =TRUNC(B144/12*0.3) -> 1589 | K144: =TRUNC((B144+C144)/2/12*0.3) -> 1702 | L144: =TRUNC((D144)/12*0.3) -> 2043 | M144: =TRUNC(((E144+F144)/2)/12*0.3) -> 2359 | N144: =TRUNC(G144/12*0.3) -> 2631 | O144: =TRUNC(((H144+I144)/2)/12*0.3) -> 2904
A145: Del Norte120% AMI | B145: =B135*2*1.2 -> 69360 | C145: =C135*2*1.2 -> 79200 | D145: 89160 | E145: 99000 | F145: 106920 | G145: 114840 | H145: 122760 | I145: 130680 | J145: 1734 | K145: 1857 | L145: 2229 | M145: 2574 | N145: 2871 | O145: 3168
A146: El Dorado15% AMI | B146: =B153*2*0.15 -> 11265 | C146: =C153*2*0.15 -> 12870 | D146: =D153*2*0.15 -> 14475 | E146: =E153*2*0.15 -> 16080 | F146: =F153*2*0.15 -> 17370 | G146: =G153*2*0.15 -> 18660 | H146: 19950 | I146: 21240 | J146: 281 | K146: 301 | L146: 361 | M146: 418 | N146: 466 | O146: 514
A147: El Dorado20% AMI | B147: =B153*2*0.2 -> 15020 | C147: =C153*2*0.2 -> 17160 | D147: 19300 | E147: 21440 | F147: 23160 | G147: 24880 | H147: 26600 | I147: 28320 | J147: 375 | K147: 402 | L147: 482 | M147: 557 | N147: 622 | O147: 686
A148: El Dorado25% AMI | B148: =B153*2*0.25 -> 18775 | C148: =C153*2*0.25 -> 21450 | D148: 24125 | E148: 26800 | F148: 28950 | G148: 31100 | H148: 33250 | I148: 35400 | J148: 469 | K148: 502 | L148: 603 | M148: 696 | N148: 777 | O148: 858
A149: El Dorado30% AMI | B149: =B153*2*0.3 -> 22530 | C149: =C153*2*0.3 -> 25740 | D149: 28950 | E149: 32160 | F149: 34740 | G149: 37320 | H149: 39900 | I149: 42480 | J149: 563 | K149: 603 | L149: 723 | M149: 836 | N149: 933 | O149: 1029
A150: El Dorado35% AMI | B150: =B153*2*0.35 -> 26285 | C150: =C153*2*0.35 -> 30030 | D150: 33775 | E150: 37520 | F150: 40530 | G150: 43540 | H150: 46550 | I150: 49560 | J150: 657 | K150: 703 | L150: 844 | M150: 975 | N150: 1088 | O150: 1201
A151: El Dorado40% AMI | B151: =B153*2*0.4 -> 30040 | C151: =C153*2*0.4 -> 34320 | D151: 38600 | E151: 42880 | F151: 46320 | G151: 49760 | H151: 53200 | I151: 56640 | J151: 751 | K151: 804 | L151: 965 | M151: 1115 | N151: 1244 | O151: 1373
A152: El Dorado45% AMI | B152: =B153*2*0.45 -> 33795 | C152: =C153*2*0.45 -> 38610 | D152: 43425 | E152: 48240 | F152: 52110 | G152: 55980 | H152: 59850 | I152: 63720 | J152: 844 | K152: 905 | L152: 1085 | M152: 1254 | N152: 1399 | O152: 1544
A153: El Dorado50% AMI | B153: =VLOOKUP(A153,$Q$2:$Y$59,2,FALSE) -> 37550 | C153: =VLOOKUP(A153,$Q$2:$Y$59,3,FALSE) -> 42900 | D153: =VLOOKUP(A153,$Q$2:$Y$59,4,FALSE) -> 48250 | E153: =VLOOKUP(A153,$Q$2:$Y$59,5,FALSE) -> 53600 | F153: =VLOOKUP(A153,$Q$2:$Y$59,6,FALSE) -> 57900 | G153: =VLOOKUP(A153,$Q$2:$Y$59,7,FALSE) -> 62200 | H153: =VLOOKUP(A153,$Q$2:$Y$59,8,FALSE) -> 66500 | I153: =VLOOKUP(A153,$Q$2:$Y$59,9,FALSE) -> 70800 | J153: =TRUNC(B153/12*0.3) -> 938 | K153: =TRUNC((B153+C153)/2/12*0.3) -> 1005 | L153: =TRUNC((D153)/12*0.3) -> 1206 | M153: =TRUNC(((E153+F153)/2)/12*0.3) -> 1393 | N153: =TRUNC(G153/12*0.3) -> 1555 | O153: =TRUNC(((H153+I153)/2)/12*0.3) -> 1716
A154: El Dorado55% AMI | B154: =B153*2*0.55 -> 41305 | C154: =C153*2*0.55 -> 47190 | D154: 53075 | E154: 58960 | F154: 63690 | G154: 68420 | H154: 73150 | I154: 77880 | J154: =TRUNC(B154/12*0.3) -> 1032 | K154: =TRUNC((B154+C154)/2/12*0.3) -> 1106 | L154: =TRUNC((D154)/12*0.3) -> 1326 | M154: =TRUNC(((E154+F154)/2)/12*0.3) -> 1533 | N154: =TRUNC(G154/12*0.3) -> 1710 | O154: =TRUNC(((H154+I154)/2)/12*0.3) -> 1887
A155: El Dorado60% AMI | B155: =B153*2*0.6 -> 45060 | C155: =C153*2*0.6 -> 51480 | D155: 57900 | E155: 64320 | F155: 69480 | G155: 74640 | H155: 79800 | I155: 84960 | J155: 1126 | K155: 1206 | L155: 1447 | M155: 1672 | N155: 1866 | O155: 2059
A156: El Dorado65% AMI | B156: =B153*2*0.65 -> 48815 | C156: =C153*2*0.65 -> 55770 | D156: 62725 | E156: 69680 | F156: 75270 | G156: 80860 | H156: 86450 | I156: 92040 | J156: 1220 | K156: 1307 | L156: 1568 | M156: 1811 | N156: 2021 | O156: 2231
A157: El Dorado70% AMI | B157: =B153*2*0.7 -> 52570 | C157: =C153*2*0.7 -> 60060 | D157: 67550 | E157: 75040 | F157: 81060 | G157: 87080 | H157: 93100 | I157: 99120 | J157: 1314 | K157: 1407 | L157: 1688 | M157: 1951 | N157: 2177 | O157: 2402
A158: El Dorado75% AMI | B158: =B153*2*0.75 -> 56325 | C158: =C153*2*0.75 -> 64350 | D158: 72375 | E158: 80400 | F158: 86850 | G158: 93300 | H158: 99750 | I158: 106200 | J158: 1408 | K158: 1508 | L158: 1809 | M158: 2090 | N158: 2332 | O158: 2574
A159: El Dorado80% AMI | B159: =B153*2*0.8 -> 60080 | C159: =C153*2*0.8 -> 68640 | D159: 77200 | E159: 85760 | F159: 92640 | G159: 99520 | H159: 106400 | I159: 113280 | J159: 1502 | K159: 1609 | L159: 1930 | M159: 2230 | N159: 2488 | O159: 2746
A160: El Dorado90% AMI | B160: =B153*2*0.9 -> 67590 | C160: =C153*2*0.9 -> 77220 | D160: 86850 | E160: 96480 | F160: 104220 | G160: 111960 | H160: 119700 | I160: 127440 | J160: 1689 | K160: 1810 | L160: 2171 | M160: 2508 | N160: 2799 | O160: 3089
A161: El Dorado100% AMI | B161: =B153*2 -> 75100 | C161: =C153*2 -> 85800 | D161: 96500 | E161: 107200 | F161: 115800 | G161: 124400 | H161: 133000 | I161: 141600 | J161: =J153*2 -> 1876 | K161: =K153*2 -> 2010 | L161: 2412 | M161: 2786 | N161: 3110 | O161: 3432
A162: El Dorado110% AMI | B162: =B153*2*1.1 -> 82610 | C162: =C153*2*1.1 -> 94380 | D162: 106150 | E162: 117920 | F162: 127380 | G162: 136840 | H162: 146300 | I162: 155760 | J162: =TRUNC(B162/12*0.3) -> 2065 | K162: =TRUNC((B162+C162)/2/12*0.3) -> 2212 | L162: =TRUNC((D162)/12*0.3) -> 2653 | M162: =TRUNC(((E162+F162)/2)/12*0.3) -> 3066 | N162: =TRUNC(G162/12*0.3) -> 3421 | O162: =TRUNC(((H162+I162)/2)/12*0.3) -> 3775
A163: El Dorado120% AMI | B163: =B153*2*1.2 -> 90120 | C163: =C153*2*1.2 -> 102960 | D163: 115800 | E163: 128640 | F163: 138960 | G163: 149280 | H163: 159600 | I163: 169920 | J163: 2253 | K163: 2413 | L163: 2895 | M163: 3345 | N163: 3732 | O163: 4119
A164: Fresno15% AMI | B164: =B171*2*0.15 -> 8670 | C164: =C171*2*0.15 -> 9900 | D164: =D171*2*0.15 -> 11145 | E164: =E171*2*0.15 -> 12375 | F164: =F171*2*0.15 -> 13365 | G164: =G171*2*0.15 -> 14355 | H164: 15345 | I164: 16335 | J164: 216 | K164: 232 | L164: 278 | M164: 321 | N164: 358 | O164: 396
A165: Fresno20% AMI | B165: =B171*2*0.2 -> 11560 | C165: =C171*2*0.2 -> 13200 | D165: 14860 | E165: 16500 | F165: 17820 | G165: 19140 | H165: 20460 | I165: 21780 | J165: 289 | K165: 309 | L165: 371 | M165: 429 | N165: 478 | O165: 528
A166: Fresno25% AMI | B166: =B171*2*0.25 -> 14450 | C166: =C171*2*0.25 -> 16500 | D166: 18575 | E166: 20625 | F166: 22275 | G166: 23925 | H166: 25575 | I166: 27225 | J166: 361 | K166: 386 | L166: 464 | M166: 536 | N166: 598 | O166: 660
A167: Fresno30% AMI | B167: =B171*2*0.3 -> 17340 | C167: =C171*2*0.3 -> 19800 | D167: 22290 | E167: 24750 | F167: 26730 | G167: 28710 | H167: 30690 | I167: 32670 | J167: 433 | K167: 464 | L167: 557 | M167: 643 | N167: 717 | O167: 792
A168: Fresno35% AMI | B168: =B171*2*0.35 -> 20230 | C168: =C171*2*0.35 -> 23100 | D168: 26005 | E168: 28875 | F168: 31185 | G168: 33495 | H168: 35805 | I168: 38115 | J168: 505 | K168: 541 | L168: 650 | M168: 750 | N168: 837 | O168: 924
A169: Fresno40% AMI | B169: =B171*2*0.4 -> 23120 | C169: =C171*2*0.4 -> 26400 | D169: 29720 | E169: 33000 | F169: 35640 | G169: 38280 | H169: 40920 | I169: 43560 | J169: 578 | K169: 619 | L169: 743 | M169: 858 | N169: 957 | O169: 1056
A170: Fresno45% AMI | B170: =B171*2*0.45 -> 26010 | C170: =C171*2*0.45 -> 29700 | D170: 33435 | E170: 37125 | F170: 40095 | G170: 43065 | H170: 46035 | I170: 49005 | J170: 650 | K170: 696 | L170: 835 | M170: 965 | N170: 1076 | O170: 1188
A171: Fresno50% AMI | B171: =VLOOKUP(A171,$Q$2:$Y$59,2,FALSE) -> 28900 | C171: =VLOOKUP(A171,$Q$2:$Y$59,3,FALSE) -> 33000 | D171: =VLOOKUP(A171,$Q$2:$Y$59,4,FALSE) -> 37150 | E171: =VLOOKUP(A171,$Q$2:$Y$59,5,FALSE) -> 41250 | F171: =VLOOKUP(A171,$Q$2:$Y$59,6,FALSE) -> 44550 | G171: =VLOOKUP(A171,$Q$2:$Y$59,7,FALSE) -> 47850 | H171: =VLOOKUP(A171,$Q$2:$Y$59,8,FALSE) -> 51150 | I171: =VLOOKUP(A171,$Q$2:$Y$59,9,FALSE) -> 54450 | J171: =TRUNC(B171/12*0.3) -> 722 | K171: =TRUNC((B171+C171)/2/12*0.3) -> 773 | L171: =TRUNC((D171)/12*0.3) -> 928 | M171: =TRUNC(((E171+F171)/2)/12*0.3) -> 1072 | N171: =TRUNC(G171/12*0.3) -> 1196 | O171: =TRUNC(((H171+I171)/2)/12*0.3) -> 1320
A172: Fresno55% AMI | B172: =B171*2*0.55 -> 31790 | C172: =C171*2*0.55 -> 36300 | D172: 40865 | E172: 45375 | F172: 49005 | G172: 52635 | H172: 56265 | I172: 59895 | J172: =TRUNC(B172/12*0.3) -> 794 | K172: =TRUNC((B172+C172)/2/12*0.3) -> 851 | L172: =TRUNC((D172)/12*0.3) -> 1021 | M172: =TRUNC(((E172+F172)/2)/12*0.3) -> 1179 | N172: =TRUNC(G172/12*0.3) -> 1315 | O172: =TRUNC(((H172+I172)/2)/12*0.3) -> 1452
A173: Fresno60% AMI | B173: =B171*2*0.6 -> 34680 | C173: =C171*2*0.6 -> 39600 | D173: 44580 | E173: 49500 | F173: 53460 | G173: 57420 | H173: 61380 | I173: 65340 | J173: 867 | K173: 928 | L173: 1114 | M173: 1287 | N173: 1435 | O173: 1584
A174: Fresno65% AMI | B174: =B171*2*0.65 -> 37570 | C174: =C171*2*0.65 -> 42900 | D174: 48295 | E174: 53625 | F174: 57915 | G174: 62205 | H174: 66495 | I174: 70785 | J174: 939 | K174: 1005 | L174: 1207 | M174: 1394 | N174: 1555 | O174: 1716
A175: Fresno70% AMI | B175: =B171*2*0.7 -> 40460 | C175: =C171*2*0.7 -> 46200 | D175: 52010 | E175: 57750 | F175: 62370 | G175: 66990 | H175: 71610 | I175: 76230 | J175: 1011 | K175: 1083 | L175: 1300 | M175: 1501 | N175: 1674 | O175: 1848
A176: Fresno75% AMI | B176: =B171*2*0.75 -> 43350 | C176: =C171*2*0.75 -> 49500 | D176: 55725 | E176: 61875 | F176: 66825 | G176: 71775 | H176: 76725 | I176: 81675 | J176: 1083 | K176: 1160 | L176: 1393 | M176: 1608 | N176: 1794 | O176: 1980
A177: Fresno80% AMI | B177: =B171*2*0.8 -> 46240 | C177: =C171*2*0.8 -> 52800 | D177: 59440 | E177: 66000 | F177: 71280 | G177: 76560 | H177: 81840 | I177: 87120 | J177: 1156 | K177: 1238 | L177: 1486 | M177: 1716 | N177: 1914 | O177: 2112
A178: Fresno90% AMI | B178: =B171*2*0.9 -> 52020 | C178: =C171*2*0.9 -> 59400 | D178: 66870 | E178: 74250 | F178: 80190 | G178: 86130 | H178: 92070 | I178: 98010 | J178: 1300 | K178: 1392 | L178: 1671 | M178: 1930 | N178: 2153 | O178: 2376
A179: Fresno100% AMI | B179: =B171*2 -> 57800 | C179: =C171*2 -> 66000 | D179: 74300 | E179: 82500 | F179: 89100 | G179: 95700 | H179: 102300 | I179: 108900 | J179: =J171*2 -> 1444 | K179: =K171*2 -> 1546 | L179: 1856 | M179: 2144 | N179: 2392 | O179: 2640
A180: Fresno110% AMI | B180: =B171*2*1.1 -> 63580 | C180: =C171*2*1.1 -> 72600 | D180: 81730 | E180: 90750 | F180: 98010 | G180: 105270 | H180: 112530 | I180: 119790 | J180: =TRUNC(B180/12*0.3) -> 1589 | K180: =TRUNC((B180+C180)/2/12*0.3) -> 1702 | L180: =TRUNC((D180)/12*0.3) -> 2043 | M180: =TRUNC(((E180+F180)/2)/12*0.3) -> 2359 | N180: =TRUNC(G180/12*0.3) -> 2631 | O180: =TRUNC(((H180+I180)/2)/12*0.3) -> 2904
A181: Fresno120% AMI | B181: =B171*2*1.2 -> 69360 | C181: =C171*2*1.2 -> 79200 | D181: 89160 | E181: 99000 | F181: 106920 | G181: 114840 | H181: 122760 | I181: 130680 | J181: 1734 | K181: 1857 | L181: 2229 | M181: 2574 | N181: 2871 | O181: 3168
A182: Glenn15% AMI | B182: =B189*2*0.15 -> 8670 | C182: =C189*2*0.15 -> 9900 | D182: =D189*2*0.15 -> 11145 | E182: =E189*2*0.15 -> 12375 | F182: =F189*2*0.15 -> 13365 | G182: =G189*2*0.15 -> 14355 | H182: 15345 | I182: 16335 | J182: 216 | K182: 232 | L182: 278 | M182: 321 | N182: 358 | O182: 396
A183: Glenn20% AMI | B183: =B189*2*0.2 -> 11560 | C183: =C189*2*0.2 -> 13200 | D183: 14860 | E183: 16500 | F183: 17820 | G183: 19140 | H183: 20460 | I183: 21780 | J183: 289 | K183: 309 | L183: 371 | M183: 429 | N183: 478 | O183: 528
A184: Glenn25% AMI | B184: =B189*2*0.25 -> 14450 | C184: =C189*2*0.25 -> 16500 | D184: 18575 | E184: 20625 | F184: 22275 | G184: 23925 | H184: 25575 | I184: 27225 | J184: 361 | K184: 386 | L184: 464 | M184: 536 | N184: 598 | O184: 660
A185: Glenn30% AMI | B185: =B189*2*0.3 -> 17340 | C185: =C189*2*0.3 -> 19800 | D185: 22290 | E185: 24750 | F185: 26730 | G185: 28710 | H185: 30690 | I185: 32670 | J185: 433 | K185: 464 | L185: 557 | M185: 643 | N185: 717 | O185: 792
A186: Glenn35% AMI | B186: =B189*2*0.35 -> 20230 | C186: =C189*2*0.35 -> 23100 | D186: 26005 | E186: 28875 | F186: 31185 | G186: 33495 | H186: 35805 | I186: 38115 | J186: 505 | K186: 541 | L186: 650 | M186: 750 | N186: 837 | O186: 924
A187: Glenn40% AMI | B187: =B189*2*0.4 -> 23120 | C187: =C189*2*0.4 -> 26400 | D187: 29720 | E187: 33000 | F187: 35640 | G187: 38280 | H187: 40920 | I187: 43560 | J187: 578 | K187: 619 | L187: 743 | M187: 858 | N187: 957 | O187: 1056
A188: Glenn45% AMI | B188: =B189*2*0.45 -> 26010 | C188: =C189*2*0.45 -> 29700 | D188: 33435 | E188: 37125 | F188: 40095 | G188: 43065 | H188: 46035 | I188: 49005 | J188: 650 | K188: 696 | L188: 835 | M188: 965 | N188: 1076 | O188: 1188
A189: Glenn50% AMI | B189: =VLOOKUP(A189,$Q$2:$Y$59,2,FALSE) -> 28900 | C189: =VLOOKUP(A189,$Q$2:$Y$59,3,FALSE) -> 33000 | D189: =VLOOKUP(A189,$Q$2:$Y$59,4,FALSE) -> 37150 | E189: =VLOOKUP(A189,$Q$2:$Y$59,5,FALSE) -> 41250 | F189: =VLOOKUP(A189,$Q$2:$Y$59,6,FALSE) -> 44550 | G189: =VLOOKUP(A189,$Q$2:$Y$59,7,FALSE) -> 47850 | H189: =VLOOKUP(A189,$Q$2:$Y$59,8,FALSE) -> 51150 | I189: =VLOOKUP(A189,$Q$2:$Y$59,9,FALSE) -> 54450 | J189: =TRUNC(B189/12*0.3) -> 722 | K189: =TRUNC((B189+C189)/2/12*0.3) -> 773 | L189: =TRUNC((D189)/12*0.3) -> 928 | M189: =TRUNC(((E189+F189)/2)/12*0.3) -> 1072 | N189: =TRUNC(G189/12*0.3) -> 1196 | O189: =TRUNC(((H189+I189)/2)/12*0.3) -> 1320
A190: Glenn55% AMI | B190: =B189*2*0.55 -> 31790 | C190: =C189*2*0.55 -> 36300 | D190: 40865 | E190: 45375 | F190: 49005 | G190: 52635 | H190: 56265 | I190: 59895 | J190: =TRUNC(B190/12*0.3) -> 794 | K190: =TRUNC((B190+C190)/2/12*0.3) -> 851 | L190: =TRUNC((D190)/12*0.3) -> 1021 | M190: =TRUNC(((E190+F190)/2)/12*0.3) -> 1179 | N190: =TRUNC(G190/12*0.3) -> 1315 | O190: =TRUNC(((H190+I190)/2)/12*0.3) -> 1452
A191: Glenn60% AMI | B191: =B189*2*0.6 -> 34680 | C191: =C189*2*0.6 -> 39600 | D191: 44580 | E191: 49500 | F191: 53460 | G191: 57420 | H191: 61380 | I191: 65340 | J191: 867 | K191: 928 | L191: 1114 | M191: 1287 | N191: 1435 | O191: 1584
A192: Glenn65% AMI | B192: =B189*2*0.65 -> 37570 | C192: =C189*2*0.65 -> 42900 | D192: 48295 | E192: 53625 | F192: 57915 | G192: 62205 | H192: 66495 | I192: 70785 | J192: 939 | K192: 1005 | L192: 1207 | M192: 1394 | N192: 1555 | O192: 1716
A193: Glenn70% AMI | B193: =B189*2*0.7 -> 40460 | C193: =C189*2*0.7 -> 46200 | D193: 52010 | E193: 57750 | F193: 62370 | G193: 66990 | H193: 71610 | I193: 76230 | J193: 1011 | K193: 1083 | L193: 1300 | M193: 1501 | N193: 1674 | O193: 1848
A194: Glenn75% AMI | B194: =B189*2*0.75 -> 43350 | C194: =C189*2*0.75 -> 49500 | D194: 55725 | E194: 61875 | F194: 66825 | G194: 71775 | H194: 76725 | I194: 81675 | J194: 1083 | K194: 1160 | L194: 1393 | M194: 1608 | N194: 1794 | O194: 1980
A195: Glenn80% AMI | B195: =B189*2*0.8 -> 46240 | C195: =C189*2*0.8 -> 52800 | D195: 59440 | E195: 66000 | F195: 71280 | G195: 76560 | H195: 81840 | I195: 87120 | J195: 1156 | K195: 1238 | L195: 1486 | M195: 1716 | N195: 1914 | O195: 2112
A196: Glenn90% AMI | B196: =B189*2*0.9 -> 52020 | C196: =C189*2*0.9 -> 59400 | D196: 66870 | E196: 74250 | F196: 80190 | G196: 86130 | H196: 92070 | I196: 98010 | J196: 1300 | K196: 1392 | L196: 1671 | M196: 1930 | N196: 2153 | O196: 2376
A197: Glenn100% AMI | B197: =B189*2 -> 57800 | C197: =C189*2 -> 66000 | D197: 74300 | E197: 82500 | F197: 89100 | G197: 95700 | H197: 102300 | I197: 108900 | J197: =J189*2 -> 1444 | K197: =K189*2 -> 1546 | L197: 1856 | M197: 2144 | N197: 2392 | O197: 2640
A198: Glenn110% AMI | B198: =B189*2*1.1 -> 63580 | C198: =C189*2*1.1 -> 72600 | D198: 81730 | E198: 90750 | F198: 98010 | G198: 105270 | H198: 112530 | I198: 119790 | J198: =TRUNC(B198/12*0.3) -> 1589 | K198: =TRUNC((B198+C198)/2/12*0.3) -> 1702 | L198: =TRUNC((D198)/12*0.3) -> 2043 | M198: =TRUNC(((E198+F198)/2)/12*0.3) -> 2359 | N198: =TRUNC(G198/12*0.3) -> 2631 | O198: =TRUNC(((H198+I198)/2)/12*0.3) -> 2904
A199: Glenn120% AMI | B199: =B189*2*1.2 -> 69360 | C199: =C189*2*1.2 -> 79200 | D199: 89160 | E199: 99000 | F199: 106920 | G199: 114840 | H199: 122760 | I199: 130680 | J199: 1734 | K199: 1857 | L199: 2229 | M199: 2574 | N199: 2871 | O199: 3168
A200: Humboldt15% AMI | B200: =B207*2*0.15 -> 8670 | C200: =C207*2*0.15 -> 9900 | D200: =D207*2*0.15 -> 11145 | E200: =E207*2*0.15 -> 12375 | F200: =F207*2*0.15 -> 13365 | G200: =G207*2*0.15 -> 14355 | H200: 15345 | I200: 16335 | J200: 216 | K200: 232 | L200: 278 | M200: 321 | N200: 358 | O200: 396
... 845 more rows
